Department,Entity,Transaction Date,Supplier Name ,Amount ,Expense Type Published,Expense Area ,"Expense Description published for admin spend above 25,000 only",Transaction Number,
DFID,DFID,02/12/2011,Oxfam (India) Trust,"82,796",Aid Programme - Accountable Grant Payments,"Asia, Caribbean and Overseas Territories",,400188396,
DFID,DFID,06/12/2011,BRAC,"27,500,000",Aid Programme - Accountable Grant Payments,"Asia, Caribbean and Overseas Territories",,400188964,
DFID,DFID,01/12/2011,ActionAid India,"175,980",Aid Programme - Accountable Grant Payments,"Asia, Caribbean and Overseas Territories",,400189499,
DFID,DFID,09/12/2011,Shoklo Malaria Research Unit,"27,455",Aid Programme - Accountable Grant Payments,"Asia, Caribbean and Overseas Territories",,400189566,
DFID,DFID,05/12/2011,Rose Town Foundation for The Built Environment Limited,"20,000",Aid Programme - Accountable Grant Payments,"Asia, Caribbean and Overseas Territories",,400189639,
DFID,DFID,09/12/2011,INTERNATIONAL CENTRE FOR DIARRO,"25,000",Aid Programme - Accountable Grant Payments,"Asia, Caribbean and Overseas Territories",,400190877,
DFID,DFID,13/12/2011,IUCN,"106,923",Aid Programme - Accountable Grant Payments,"Asia, Caribbean and Overseas Territories",,400190919,
DFID,DFID,12/12/2011,Sahayog Society for Participatory Rural Development,905,Aid Programme - Accountable Grant Payments,"Asia, Caribbean and Overseas Territories",,400191125,
DFID,DFID,29/12/2011,Population Council,"29,588",Aid Programme - Accountable Grant Payments,"Asia, Caribbean and Overseas Territories",,400191363,
DFID,DFID,19/12/2011,HOPE INTERNATIONAL DEVELOPMENT AGENCY,"360,132",Aid Programme - Accountable Grant Payments,"Asia, Caribbean and Overseas Territories",,400191429,
DFID,DFID,13/12/2011,OXFAM,"49,611",Aid Programme - Accountable Grant Payments,"Asia, Caribbean and Overseas Territories",,400191579,
DFID,DFID,15/12/2011,INTERNATIONAL LABOUR OFFICE.,"30,000",Aid Programme - Accountable Grant Payments,"Asia, Caribbean and Overseas Territories",,400191590,
DFID,DFID,14/12/2011,INTERNATIONAL LABOUR OFFICE.,"30,000",Aid Programme - Accountable Grant Payments,"Asia, Caribbean and Overseas Territories",,400191618,
DFID,DFID,14/12/2011,ROYAL SOCIETY FOR THE PROTECTION OF BIRDS,"14,138",Aid Programme - Accountable Grant Payments,"Asia, Caribbean and Overseas Territories",,400191914,
DFID,DFID,15/12/2011,SHALOM FOUNDATION,"284,282",Aid Programme - Accountable Grant Payments,"Asia, Caribbean and Overseas Territories",,400191962,
DFID,DFID,15/12/2011,CHRISTIAN AID,"289,142",Aid Programme - Accountable Grant Payments,"Asia, Caribbean and Overseas Territories",,400192123,
DFID,DFID,16/12/2011,Transparency International Berlin,"42,263",Aid Programme - Accountable Grant Payments,"Asia, Caribbean and Overseas Territories",,400192235,
DFID,DFID,16/12/2011,ROYAL SOCIETY FOR THE PROTECTION OF BIRDS,964,Aid Programme - Accountable Grant Payments,"Asia, Caribbean and Overseas Territories",,400192439,
DFID,DFID,22/12/2011,The Energy and Resources Institute (TERI),"46,370",Aid Programme - Accountable Grant Payments,"Asia, Caribbean and Overseas Territories",,400192985,
DFID,DFID,22/12/2011,The Energy and Resources Institute (TERI),"4,751",Aid Programme - Accountable Grant Payments,"Asia, Caribbean and Overseas Territories",,400192985,
DFID,DFID,21/12/2011,YAYASAN KEANEKARAGMAN HAYATI INDONESIA - KEHATI,"161,542",Aid Programme - Accountable Grant Payments,"Asia, Caribbean and Overseas Territories",,400193015,
DFID,DFID,21/12/2011,COMMONWEALTH FOUNDATION,"73,131",Aid Programme - Accountable Grant Payments,"Asia, Caribbean and Overseas Territories",,400193383,
DFID,DFID,21/12/2011,THE SAVE THE CHILDREN FUND,"180,460",Aid Programme - Accountable Grant Payments,"Asia, Caribbean and Overseas Territories",,400193407,
DFID,DFID,29/12/2011,Nepal Institute for Policy Studies,"71,457",Aid Programme - Accountable Grant Payments,"Asia, Caribbean and Overseas Territories",,400193767,
DFID,DFID,28/12/2011,ST HELENA NATURE CONSERVATION GROUP,"25,782",Aid Programme - Accountable Grant Payments,"Asia, Caribbean and Overseas Territories",,400193801,
DFID,DFID,29/12/2011,OXFAM,"108,494",Aid Programme - Accountable Grant Payments,"Asia, Caribbean and Overseas Territories",,400193914,
DFID,DFID,08/12/2011,Haroon Engineering Limited,571,Building Plant - Air Conditioners,"Asia, Caribbean and Overseas Territories",,400190721,
DFID,DFID,12/12/2011,Harewelle International Limited.,"269,694",Aid Programme - Challenge Fund payments,"Asia, Caribbean and Overseas Territories",,400191283,
DFID,DFID,19/12/2011,INTEGRAL COMPUTER LIMITED,795,Computer Consumables,"Asia, Caribbean and Overseas Territories",,400192548,
DFID,DFID,09/12/2011,UNDP CONTRIBUTIONS GBP,"51,240","Conferences, Seminars & Meeting/Event Resource","Asia, Caribbean and Overseas Territories",,400190943,
DFID,DFID,19/12/2011,Hotel Yak & Yeti,"2,310","Conferences, Seminars & Meeting/Event Resource","Asia, Caribbean and Overseas Territories",,400192640,
DFID,DFID,01/12/2011,TURNER & TOWNSEND,"29,304",Supplier Services,"Asia, Caribbean and Overseas Territories",,400189570,
DFID,DFID,13/12/2011,Foreign & Commonwealth Office,"2,791",Technical and Advisory Services,"Asia, Caribbean and Overseas Territories",,400191551,
DFID,DFID,13/12/2011,Foreign & Commonwealth Office,"1,831",Technical and Advisory Services,"Asia, Caribbean and Overseas Territories",,400191551,
DFID,DFID,13/12/2011,Foreign & Commonwealth Office,"3,421",Technical and Advisory Services,"Asia, Caribbean and Overseas Territories",,400191551,
DFID,DFID,05/12/2011,THE GOURMET FACTORY,"1,916",Contract Catering Services,"Asia, Caribbean and Overseas Territories",,400189932,
DFID,DFID,19/12/2011,NARINDER PAL SINGH,548,Contract Catering Services,"Asia, Caribbean and Overseas Territories",,400192574,
DFID,DFID,02/12/2011,INTERNATIONAL DEVELOPMENT RESEARCH CENTRE,"710,950",Aid Programme - Core contributions,"Asia, Caribbean and Overseas Territories",,400189630,
DFID,DFID,08/12/2011,Dr Md Shamim Hayder Talukder,923,Aid Programme - Development Awareness Fund payments,"Asia, Caribbean and Overseas Territories",,400190739,
DFID,DFID,21/12/2011,Crown Agents Govts and Admin,"67,131",Educational Supplies/Aids,"Asia, Caribbean and Overseas Territories",,400193245,
DFID,DFID,21/12/2011,Crown Agents Govts and Admin,"6,153",Educational Supplies/Aids,"Asia, Caribbean and Overseas Territories",,400193246,
DFID,DFID,29/12/2011,Crown Agents Govts and Admin,"5,474",Educational Supplies/Aids,"Asia, Caribbean and Overseas Territories",,400193936,
DFID,DFID,14/12/2011,BSES RAJDHANI POWER LIMITED,"4,192",Electricity,"Asia, Caribbean and Overseas Territories",,400190508,
DFID,DFID,09/12/2011,Foreign & Commonwealth Office,504,Electricity,"Asia, Caribbean and Overseas Territories",,400190935,
DFID,DFID,20/12/2011,Dhaka Electric Supply Company Ltd,715,Electricity,"Asia, Caribbean and Overseas Territories",,400192685,
DFID,DFID,28/12/2011,Hongkong Land Company,549,Electricity,"Asia, Caribbean and Overseas Territories",,400193467,
DFID,DFID,28/12/2011,Neptune Properties,953,Electricity,"Asia, Caribbean and Overseas Territories",,400193739,
DFID,DFID,22/12/2011,THE GOURMET FACTORY,989,Entertainment & Hospitality,"Asia, Caribbean and Overseas Territories",,400193573,
DFID,DFID,19/12/2011,Foreign & Commonwealth Office,"1,439",Furniture & Fittings,"Asia, Caribbean and Overseas Territories",,400192701,
DFID,DFID,19/12/2011,ZEUS POWER SOLUTIONS (P) LTD,648,Generators & spares,"Asia, Caribbean and Overseas Territories",,400192580,
DFID,DFID,13/12/2011,Crown Agents Govts and Admin,"2,800",Hardware - desktop PCs,"Asia, Caribbean and Overseas Territories",,400191387,
DFID,DFID,01/12/2011,Government Procurement Card,734,Hotels - Accommodation only,"Asia, Caribbean and Overseas Territories",,100049,
DFID,DFID,05/12/2011,Corporate Travel Provider,848,Hotels - Accommodation only,"Asia, Caribbean and Overseas Territories",,6000063,
DFID,DFID,01/12/2011,Recipient name withheld,692,Hotels - Accommodation only,"Asia, Caribbean and Overseas Territories",,400189507,
DFID,DFID,02/12/2011,Recipient name withheld,913,Hotels - Accommodation only,"Asia, Caribbean and Overseas Territories",,400189731,
DFID,DFID,07/12/2011,Recipient name withheld,812,Hotels - Accommodation only,"Asia, Caribbean and Overseas Territories",,400190557,
DFID,DFID,08/12/2011,Recipient name withheld,604,Hotels - Accommodation only,"Asia, Caribbean and Overseas Territories",,400190709,
DFID,DFID,09/12/2011,Recipient name withheld,942,Hotels - Accommodation only,"Asia, Caribbean and Overseas Territories",,400190847,
DFID,DFID,14/12/2011,Recipient name withheld,692,Hotels - Accommodation only,"Asia, Caribbean and Overseas Territories",,400191645,
DFID,DFID,15/12/2011,Recipient name withheld,692,Hotels - Accommodation only,"Asia, Caribbean and Overseas Territories",,400191990,
DFID,DFID,15/12/2011,Recipient name withheld,812,Hotels - Accommodation only,"Asia, Caribbean and Overseas Territories",,400192288,
DFID,DFID,18/12/2011,Recipient name withheld,950,Hotels - Accommodation only,"Asia, Caribbean and Overseas Territories",,400192513,
DFID,DFID,18/12/2011,Recipient name withheld,"1,610",Hotels - Accommodation only,"Asia, Caribbean and Overseas Territories",,400192513,
DFID,DFID,06/12/2011,Supplier name withheld,"2,305",Secure staff accommodation,"Asia, Caribbean and Overseas Territories",,400190133,
DFID,DFID,06/12/2011,Supplier name withheld,"2,559",Secure staff accommodation,"Asia, Caribbean and Overseas Territories",,400190134,
DFID,DFID,06/12/2011,Supplier name withheld,"2,120",Secure staff accommodation,"Asia, Caribbean and Overseas Territories",,400190135,
DFID,DFID,06/12/2011,Supplier name withheld,"2,193",Secure staff accommodation,"Asia, Caribbean and Overseas Territories",,400190150,
DFID,DFID,06/12/2011,Supplier name withheld,"2,437",Secure staff accommodation,"Asia, Caribbean and Overseas Territories",,400190154,
DFID,DFID,06/12/2011,Supplier name withheld,"2,437",Secure staff accommodation,"Asia, Caribbean and Overseas Territories",,400190155,
DFID,DFID,06/12/2011,Supplier name withheld,"2,047",Secure staff accommodation,"Asia, Caribbean and Overseas Territories",,400190156,
DFID,DFID,06/12/2011,Supplier name withheld,"5,118",Secure staff accommodation,"Asia, Caribbean and Overseas Territories",,400190157,
DFID,DFID,06/12/2011,Supplier name withheld,"1,340",Secure staff accommodation,"Asia, Caribbean and Overseas Territories",,400190158,
DFID,DFID,06/12/2011,Supplier name withheld,"1,267",Secure staff accommodation,"Asia, Caribbean and Overseas Territories",,400190160,
DFID,DFID,06/12/2011,Supplier name withheld,"1,706",Secure staff accommodation,"Asia, Caribbean and Overseas Territories",,400190161,
DFID,DFID,06/12/2011,Supplier name withheld,"3,412",Secure staff accommodation,"Asia, Caribbean and Overseas Territories",,400190162,
DFID,DFID,06/12/2011,Supplier name withheld,"2,754",Secure staff accommodation,"Asia, Caribbean and Overseas Territories",,400190163,
DFID,DFID,08/12/2011,Supplier name withheld,"1,712",Secure staff accommodation,"Asia, Caribbean and Overseas Territories",,400190713,
DFID,DFID,08/12/2011,Supplier name withheld,"1,345",Secure staff accommodation,"Asia, Caribbean and Overseas Territories",,400190713,
DFID,DFID,08/12/2011,Supplier name withheld,"6,042",Secure staff accommodation,"Asia, Caribbean and Overseas Territories",,400190713,
DFID,DFID,08/12/2011,Supplier name withheld,"4,342",Secure staff accommodation,"Asia, Caribbean and Overseas Territories",,400190713,
DFID,DFID,08/12/2011,Supplier name withheld,"1,784",Secure staff accommodation,"Asia, Caribbean and Overseas Territories",,400190713,
DFID,DFID,13/12/2011,Supplier name withheld,"3,783",Secure staff accommodation,"Asia, Caribbean and Overseas Territories",,400191311,
DFID,DFID,13/12/2011,Supplier name withheld,"3,783",Secure staff accommodation,"Asia, Caribbean and Overseas Territories",,400191312,
DFID,DFID,13/12/2011,Supplier name withheld,"1,714",Secure staff accommodation,"Asia, Caribbean and Overseas Territories",,400191551,
DFID,DFID,13/12/2011,Supplier name withheld,857,Secure staff accommodation,"Asia, Caribbean and Overseas Territories",,400191551,
DFID,DFID,16/12/2011,Supplier name withheld,"7,540",Secure staff accommodation,"Asia, Caribbean and Overseas Territories",,400192334,
DFID,DFID,19/12/2011,Supplier name withheld,"4,309",Secure staff accommodation,"Asia, Caribbean and Overseas Territories",,400192567,
DFID,DFID,19/12/2011,Supplier name withheld,"1,847",Secure staff accommodation,"Asia, Caribbean and Overseas Territories",,400192572,
DFID,DFID,20/12/2011,Supplier name withheld,"7,865",Secure staff accommodation,"Asia, Caribbean and Overseas Territories",,400192939,
DFID,DFID,21/12/2011,Supplier name withheld,"1,726",Secure staff accommodation,"Asia, Caribbean and Overseas Territories",,400193222,
DFID,DFID,21/12/2011,Supplier name withheld,"2,802",Secure staff accommodation,"Asia, Caribbean and Overseas Territories",,400193223,
DFID,DFID,21/12/2011,Supplier name withheld,"2,242",Secure staff accommodation,"Asia, Caribbean and Overseas Territories",,400193224,
DFID,DFID,21/12/2011,Supplier name withheld,"2,802",Secure staff accommodation,"Asia, Caribbean and Overseas Territories",,400193225,
DFID,DFID,21/12/2011,Supplier name withheld,"2,242",Secure staff accommodation,"Asia, Caribbean and Overseas Territories",,400193226,
DFID,DFID,21/12/2011,Supplier name withheld,"3,026",Secure staff accommodation,"Asia, Caribbean and Overseas Territories",,400193227,
DFID,DFID,21/12/2011,Supplier name withheld,"1,547",Secure staff accommodation,"Asia, Caribbean and Overseas Territories",,400193228,
DFID,DFID,21/12/2011,Supplier name withheld,"1,681",Secure staff accommodation,"Asia, Caribbean and Overseas Territories",,400193229,
DFID,DFID,21/12/2011,Supplier name withheld,"1,186",Secure staff accommodation,"Asia, Caribbean and Overseas Territories",,400193230,
DFID,DFID,21/12/2011,Supplier name withheld,"1,793",Secure staff accommodation,"Asia, Caribbean and Overseas Territories",,400193232,
DFID,DFID,21/12/2011,Supplier name withheld,"2,017",Secure staff accommodation,"Asia, Caribbean and Overseas Territories",,400193234,
DFID,DFID,21/12/2011,Supplier name withheld,"2,578",Secure staff accommodation,"Asia, Caribbean and Overseas Territories",,400193237,
DFID,DFID,21/12/2011,Supplier name withheld,"1,861",Secure staff accommodation,"Asia, Caribbean and Overseas Territories",,400193238,
DFID,DFID,29/12/2011,Supplier name withheld,"1,767",Secure staff accommodation,"Asia, Caribbean and Overseas Territories",,400193859,
DFID,DFID,07/12/2011,Swiss Agency for Development and Cooperation SDC (Bangladesh),"1,255,276",Aid Programme - Joint programme contribution,"Asia, Caribbean and Overseas Territories",,400189229,
DFID,DFID,07/12/2011,UNICEF NY,"83,174",Aid Programme - Joint programme contribution,"Asia, Caribbean and Overseas Territories",,400189560,
DFID,DFID,07/12/2011,UNICEF NY,"166,348",Aid Programme - Joint programme contribution,"Asia, Caribbean and Overseas Territories",,400189560,
DFID,DFID,21/12/2011,Agence Francaise de Developpement,"17,090",Aid Programme - Joint programme contribution,"Asia, Caribbean and Overseas Territories",,400191513,
DFID,DFID,21/12/2011,Agence Francaise de Developpement,"982,911",Aid Programme - Joint programme contribution,"Asia, Caribbean and Overseas Territories",,400191513,
DFID,DFID,13/12/2011,Foreign & Commonwealth Office,"8,954",Aid Programme - Joint programme contribution,"Asia, Caribbean and Overseas Territories",,400191551,
DFID,DFID,13/12/2011,Foreign & Commonwealth Office,"5,088",Aid Programme - Joint programme contribution,"Asia, Caribbean and Overseas Territories",,400191551,
DFID,DFID,21/12/2011,Agence Francaise de Developpement,"965,000",Aid Programme - Joint programme contribution,"Asia, Caribbean and Overseas Territories",,400191605,
DFID,DFID,16/12/2011, UNICEF,"5,850,000",Aid Programme - Joint programme contribution,"Asia, Caribbean and Overseas Territories",,400192454,
DFID,DFID,16/12/2011, UNICEF,"1,650,000",Aid Programme - Joint programme contribution,"Asia, Caribbean and Overseas Territories",,400192454,
DFID,DFID,19/12/2011,Foreign & Commonwealth Office,"6,110",Aid Programme - Joint programme contribution,"Asia, Caribbean and Overseas Territories",,400192701,
DFID,DFID,19/12/2011,Foreign & Commonwealth Office,"4,811",Aid Programme - Joint programme contribution,"Asia, Caribbean and Overseas Territories",,400192701,
DFID,DFID,19/12/2011,Foreign & Commonwealth Office,"1,512",Aid Programme - Joint programme contribution,"Asia, Caribbean and Overseas Territories",,400192701,
DFID,DFID,19/12/2011,Foreign & Commonwealth Office,680,Aid Programme - Joint programme contribution,"Asia, Caribbean and Overseas Territories",,400192701,
DFID,DFID,19/12/2011,Foreign & Commonwealth Office,"4,811",Aid Programme - Joint programme contribution,"Asia, Caribbean and Overseas Territories",,400192701,
DFID,DFID,19/12/2011,Foreign & Commonwealth Office,"2,017",Aid Programme - Joint programme contribution,"Asia, Caribbean and Overseas Territories",,400192701,
DFID,DFID,23/12/2011,USAID/Cambodia,"500,000",Aid Programme - Joint programme contribution,"Asia, Caribbean and Overseas Territories",,400192763,
DFID,DFID,22/12/2011,Supplier name withheld,"1,617",Operating Lease rental of buildings,"Asia, Caribbean and Overseas Territories",,400193514,
DFID,DFID,22/12/2011,Supplier name withheld,"3,003",Operating Lease rental of buildings,"Asia, Caribbean and Overseas Territories",,400193514,
DFID,DFID,22/12/2011,Supplier name withheld,"37,499",Operating Lease rental of buildings,"Asia, Caribbean and Overseas Territories",Office Rent (Main Office Building) for  period 1 January  2012 - 31 March 2012,400193515,
DFID,DFID,22/12/2011,Supplier name withheld,"20,192",Operating Lease rental of buildings,"Asia, Caribbean and Overseas Territories",,400193515,
DFID,DFID,07/12/2011,Sheikh Nasim Imam,"2,925",Other Admin Costs,"Asia, Caribbean and Overseas Territories",,400190164,
DFID,DFID,07/12/2011,Supplier name withheld,"1,950",Other Admin Costs,"Asia, Caribbean and Overseas Territories",,400190168,
DFID,DFID,07/12/2011,Supplier name withheld,"1,828",Other Admin Costs,"Asia, Caribbean and Overseas Territories",,400190169,
DFID,DFID,01/12/2011,Crown Agents Govts and Admin - Govt India,"47,249,069",Aid Programme - Other Financial Aid to Government,"Asia, Caribbean and Overseas Territories",,400189541,
DFID,DFID,01/12/2011,St Helena Govt,"574,480",Aid Programme - Other Financial Aid to Government,"Asia, Caribbean and Overseas Territories",,400189580,
DFID,DFID,07/12/2011,Crown Agents Govts and Admin,"1,500,000",Aid Programme - Other Financial Aid to Government,"Asia, Caribbean and Overseas Territories",,400190668,
DFID,DFID,07/12/2011,Vietnam Govt,"286,000",Aid Programme - Other Financial Aid to Government,"Asia, Caribbean and Overseas Territories",,400190673,
DFID,DFID,09/12/2011,Crown Agents Bank,"17,500,000",Aid Programme - Other Financial Aid to Government,"Asia, Caribbean and Overseas Territories",,400190944,
DFID,DFID,09/12/2011,Crown Agents Bank,"4,500,000",Aid Programme - Other Financial Aid to Government,"Asia, Caribbean and Overseas Territories",,400190944,
DFID,DFID,09/12/2011,Crown Agents Bank,"3,000,000",Aid Programme - Other Financial Aid to Government,"Asia, Caribbean and Overseas Territories",,400190944,
DFID,DFID,12/12/2011,Crown Agents Govts and Admin - Govt of India,"34,670,796",Aid Programme - Other Financial Aid to Government,"Asia, Caribbean and Overseas Territories",,400191221,
DFID,DFID,12/12/2011,St Helena Govt,"1,556,500",Aid Programme - Other Financial Aid to Government,"Asia, Caribbean and Overseas Territories",,400191245,
DFID,DFID,12/12/2011,St Helena Govt,"4,000,000",Aid Programme - Other Financial Aid to Government,"Asia, Caribbean and Overseas Territories",,400191249,
DFID,DFID,14/12/2011,Vietnam Govt,"1,321,913",Aid Programme - Other Financial Aid to Government,"Asia, Caribbean and Overseas Territories",,400191774,
DFID,DFID,15/12/2011,Crown Agents Govts and Admin,"1,100,000",Aid Programme - Other Financial Aid to Government,"Asia, Caribbean and Overseas Territories",,400192117,
DFID,DFID,19/12/2011,Crown Agents Govts and Admin,"4,200,000",Aid Programme - Other Financial Aid to Government,"Asia, Caribbean and Overseas Territories",,400192679,
DFID,DFID,19/12/2011,Crown Agents Govts and Admin,"1,032,216",Aid Programme - Other Financial Aid to Government,"Asia, Caribbean and Overseas Territories",,400192800,
DFID,DFID,19/12/2011,Crown Agents Govts and Admin,"4,000,000",Aid Programme - Other Financial Aid to Government,"Asia, Caribbean and Overseas Territories",,400192807,
DFID,DFID,21/12/2011,Crown Agents Govts and Admin,"592,740",Aid Programme - Other Financial Aid to Government,"Asia, Caribbean and Overseas Territories",,400192935,
DFID,DFID,20/12/2011,Crown Agents Govts and Admin,"200,000",Aid Programme - Other Financial Aid to Government,"Asia, Caribbean and Overseas Territories",,400192982,
DFID,DFID,21/12/2011,Crown Agents Govts and Admin,"118,548",Aid Programme - Other Financial Aid to Government,"Asia, Caribbean and Overseas Territories",,400192991,
DFID,DFID,20/12/2011,Crown Agents Govts and Admin,"94,838",Aid Programme - Other Financial Aid to Government,"Asia, Caribbean and Overseas Territories",,400192997,
DFID,DFID,21/12/2011,Crown Agents Govts and Admin,"829,836",Aid Programme - Other Financial Aid to Government,"Asia, Caribbean and Overseas Territories",,400193000,
DFID,DFID,21/12/2011,Crown Agents Govts and Admin,"59,274",Aid Programme - Other Financial Aid to Government,"Asia, Caribbean and Overseas Territories",,400193002,
DFID,DFID,20/12/2011,Crown Agents Govts and Admin,"118,548",Aid Programme - Other Financial Aid to Government,"Asia, Caribbean and Overseas Territories",,400193003,
DFID,DFID,21/12/2011,Crown Agents Govts and Admin,"651,617",Aid Programme - Other Financial Aid to Government,"Asia, Caribbean and Overseas Territories",,400193006,
DFID,DFID,20/12/2011,Crown Agents Govts and Admin,"71,129",Aid Programme - Other Financial Aid to Government,"Asia, Caribbean and Overseas Territories",,400193007,
DFID,DFID,20/12/2011,Crown Agents Govts and Admin,"60,222",Aid Programme - Other Financial Aid to Government,"Asia, Caribbean and Overseas Territories",,400193014,
DFID,DFID,21/12/2011,Crown Agents Govts and Admin,"8,000,000",Aid Programme - Other Financial Aid to Government,"Asia, Caribbean and Overseas Territories",,400193391,
DFID,DFID,29/12/2011,Crown Agents Govts and Admin,"14,902",Aid Programme - Other Financial Aid to Government,"Asia, Caribbean and Overseas Territories",,400193897,
DFID,DFID,30/12/2011,Crown Agents Govts and Admin,"247,638",Aid Programme - Other Financial Aid to Government,"Asia, Caribbean and Overseas Territories",,400193967,
DFID,DFID,15/12/2011,ANDREW WEIR SHIPPING LTD,"1,633",Other passenger transport,"Asia, Caribbean and Overseas Territories",,400192239,
DFID,DFID,15/12/2011,ANDREW WEIR SHIPPING LTD,921,Other passenger transport,"Asia, Caribbean and Overseas Territories",,400192240,
DFID,DFID,15/12/2011,ANDREW WEIR SHIPPING LTD,"1,633",Other passenger transport,"Asia, Caribbean and Overseas Territories",,400192244,
DFID,DFID,15/12/2011,ANDREW WEIR SHIPPING LTD,"1,633",Other passenger transport,"Asia, Caribbean and Overseas Territories",,400192245,
DFID,DFID,19/12/2011,Center for International Forestry Research (CIFOR) (USD),"32,092",Aid Programme - Pooled/Basket funding,"Asia, Caribbean and Overseas Territories",,400191963,
DFID,DFID,16/12/2011,INTERNATIONAL COMPUTER RESOURCES,697,Printer Consumables,"Asia, Caribbean and Overseas Territories",,400192445,
DFID,DFID,05/12/2011,Transearch Consultants Private Limited,"2,047",Recruitment costs,"Asia, Caribbean and Overseas Territories",,400189866,
DFID,DFID,05/12/2011,Human Capital Solutions,"5,044",Recruitment costs,"Asia, Caribbean and Overseas Territories",,400189908,
DFID,DFID,12/12/2011,Transearch Consultants Private Limited,"2,132",Recruitment costs,"Asia, Caribbean and Overseas Territories",,400191168,
DFID,DFID,12/12/2011,Transearch Consultants Private Limited,"2,132",Recruitment costs,"Asia, Caribbean and Overseas Territories",,400191172,
DFID,DFID,05/12/2011,Property Care Services Bangladesh Pvt Ltd,509,Cleaning Costs,"Asia, Caribbean and Overseas Territories",,400189904,
DFID,DFID,12/12/2011,CB RICHARD ELLIS SOUTH ASIA PVT LTD,"13,997",Facilities Management payments,"Asia, Caribbean and Overseas Territories",,400191162,
DFID,DFID,21/12/2011,John Sanday Associates Pvt. Ltd,886,Facilities Management payments,"Asia, Caribbean and Overseas Territories",,400193221,
DFID,DFID,21/12/2011,CB RICHARD ELLIS SOUTH ASIA PVT LTD,"4,575",Facilities Management payments,"Asia, Caribbean and Overseas Territories",,400193250,
DFID,DFID,13/12/2011,H&T Interior JSC,"1,084",Other Building Costs,"Asia, Caribbean and Overseas Territories",,400191318,
DFID,DFID,15/12/2011,Crown Agents Govts and Admin,"12,395",Other Building Costs,"Asia, Caribbean and Overseas Territories",,400192254,
DFID,DFID,15/12/2011,Crown Agents Govts and Admin,"250,000","Repairs, Maint, Alter - Property & Constrct. Services","Asia, Caribbean and Overseas Territories",,400191755,
DFID,DFID,15/12/2011,ADEX Corporation Limited,"11,635","Repairs, Maint, Alter - Property & Constrct. Services","Asia, Caribbean and Overseas Territories",,400191785,
DFID,DFID,19/12/2011,Duos Brain Managment Support Services,793,"Repairs, Maint, Alter - Property & Constrct. Services","Asia, Caribbean and Overseas Territories",,400192727,
DFID,DFID,05/12/2011,Corporate Travel Provider,726,Air fares,"Asia, Caribbean and Overseas Territories",,6000063,
DFID,DFID,05/12/2011,Corporate Travel Provider,641,UK Staff costs - Flexible Travel Allowance,"Asia, Caribbean and Overseas Territories",,6000063,
DFID,DFID,05/12/2011,Corporate Travel Provider,641,UK Staff costs - Flexible Travel Allowance,"Asia, Caribbean and Overseas Territories",,6000063,
DFID,DFID,05/12/2011,Corporate Travel Provider,852,Air fares,"Asia, Caribbean and Overseas Territories",,6000063,
DFID,DFID,05/12/2011,Corporate Travel Provider,"1,939",Air fares,"Asia, Caribbean and Overseas Territories",,6000063,
DFID,DFID,16/12/2011,Corporate Travel Provider,735,Air fares,"Asia, Caribbean and Overseas Territories",,6000064,
DFID,DFID,16/12/2011,Corporate Travel Provider,735,Air fares,"Asia, Caribbean and Overseas Territories",,6000064,
DFID,DFID,16/12/2011,Corporate Travel Provider,"1,206",Air fares,"Asia, Caribbean and Overseas Territories",,6000064,
DFID,DFID,07/12/2011,MAF-Sweden Air Support,"1,950",Air fares,"Asia, Caribbean and Overseas Territories",,400190256,
DFID,DFID,07/12/2011,Saimon Overseas Ltd,"1,776",Air fares,"Asia, Caribbean and Overseas Territories",,400190278,
DFID,DFID,07/12/2011,Saimon Overseas Ltd,991,Air fares,"Asia, Caribbean and Overseas Territories",,400190278,
DFID,DFID,08/12/2011,Jaya Travels & Tours Ltd,571,Air fares,"Asia, Caribbean and Overseas Territories",,400190756,
DFID,DFID,09/12/2011,Corporate Travel Provider,649,Air fares,"Asia, Caribbean and Overseas Territories",,400190935,
DFID,DFID,09/12/2011,Corporate Travel Provider,815,Air fares,"Asia, Caribbean and Overseas Territories",,400190996,
DFID,DFID,15/12/2011,KUONI BUSINESS TRAVEL INDIA PVT LTD,516,Air fares,"Asia, Caribbean and Overseas Territories",,400191444,
DFID,DFID,13/12/2011,Corporate Travel Provider,"6,204",Air fares,"Asia, Caribbean and Overseas Territories",,400191551,
DFID,DFID,19/12/2011,Corporate Travel Provider,665,Air fares,"Asia, Caribbean and Overseas Territories",,400192701,
DFID,DFID,21/12/2011,KUONI BUSINESS TRAVEL INDIA PVT LTD,865,Air fares,"Asia, Caribbean and Overseas Territories",,400192878,
DFID,DFID,21/12/2011,KUONI BUSINESS TRAVEL INDIA PVT LTD,785,Air fares,"Asia, Caribbean and Overseas Territories",,400192878,
DFID,DFID,28/12/2011,Hanoi Toserco,"2,138",Air fares,"Asia, Caribbean and Overseas Territories",,400193101,
DFID,DFID,21/12/2011,Saimon Overseas Ltd,"2,780",Air fares,"Asia, Caribbean and Overseas Territories",,400193125,
DFID,DFID,21/12/2011,BRITISH HIGH COMMISSION,945,Subscriptions,"Asia, Caribbean and Overseas Territories",,400193258,
DFID,DFID,09/12/2011,HTSPE LTD,"26,456",Technical and Advisory Services,"Asia, Caribbean and Overseas Territories",,400186958,
DFID,DFID,09/12/2011,HTSPE LTD,567,Technical and Advisory Services,"Asia, Caribbean and Overseas Territories",,400186958,
DFID,DFID,23/12/2011,HLSP LTD,"5,292",Technical and Advisory Services,"Asia, Caribbean and Overseas Territories",,400188775,
DFID,DFID,02/12/2011,ERNST &  YOUNG PRIVATE LTD,"21,425",Technical and Advisory Services,"Asia, Caribbean and Overseas Territories",,400189491,
DFID,DFID,02/12/2011,ERNST &  YOUNG PRIVATE LTD,"11,030",Technical and Advisory Services,"Asia, Caribbean and Overseas Territories",,400189505,
DFID,DFID,02/12/2011,Pricewaterhousecoopers Pvt. Ltd.,"5,528",Technical and Advisory Services,"Asia, Caribbean and Overseas Territories",,400189684,
DFID,DFID,05/12/2011,CAPITA HELM CORPORATION LTD,"204,466",Technical and Advisory Services,"Asia, Caribbean and Overseas Territories",,400189817,
DFID,DFID,05/12/2011,Pricewaterhousecoopers Pvt. Ltd.,"6,824",Technical and Advisory Services,"Asia, Caribbean and Overseas Territories",,400189909,
DFID,DFID,05/12/2011,Public Health Foundation of India,"4,909",Technical and Advisory Services,"Asia, Caribbean and Overseas Territories",,400189918,
DFID,DFID,05/12/2011,Infrastructure Professionals Enterprise (P) Ltd.,"37,252",Technical and Advisory Services,"Asia, Caribbean and Overseas Territories",,400189924,
DFID,DFID,07/12/2011,PRICEWATERHOUSECOOPERS DEVELOPMENT,"64,269",Technical and Advisory Services,"Asia, Caribbean and Overseas Territories",,400189948,
DFID,DFID,07/12/2011,PRICEWATERHOUSECOOPERS DEVELOPMENT,"37,690",Technical and Advisory Services,"Asia, Caribbean and Overseas Territories",,400189950,
DFID,DFID,05/12/2011,Ecological Economies and Development Limited,"10,420",Technical and Advisory Services,"Asia, Caribbean and Overseas Territories",,400189993,
DFID,DFID,09/12/2011,Coffey International Development ,"25,879",Technical and Advisory Services,"Asia, Caribbean and Overseas Territories",,400190003,
DFID,DFID,05/12/2011,Teraquad Limited,"10,992",Technical and Advisory Services,"Asia, Caribbean and Overseas Territories",,400190095,
DFID,DFID,07/12/2011,ERNST &  YOUNG PRIVATE LTD,"20,000",Technical and Advisory Services,"Asia, Caribbean and Overseas Territories",,400190290,
DFID,DFID,07/12/2011,ERNST &  YOUNG PRIVATE LTD,"7,500",Technical and Advisory Services,"Asia, Caribbean and Overseas Territories",,400190290,
DFID,DFID,06/12/2011,UNIVERSITY OF WOLVERHAMPTON,"1,048,283",Technical and Advisory Services,"Asia, Caribbean and Overseas Territories",,400190311,
DFID,DFID,06/12/2011,UNIVERSITY OF WOLVERHAMPTON,"106,082",Technical and Advisory Services,"Asia, Caribbean and Overseas Territories",,400190311,
DFID,DFID,06/12/2011,IMC Worldwide Ltd,"16,975",Technical and Advisory Services,"Asia, Caribbean and Overseas Territories",,400190375,
DFID,DFID,06/12/2011,IMC Worldwide Ltd,"73,203",Technical and Advisory Services,"Asia, Caribbean and Overseas Territories",,400190452,
DFID,DFID,08/12/2011,INFRASTRUCTURE PROFESSIONALS ENTERPRISE,"25,784",Technical and Advisory Services,"Asia, Caribbean and Overseas Territories",,400190603,
DFID,DFID,09/12/2011,ERNST &  YOUNG PRIVATE LTD,"5,500",Technical and Advisory Services,"Asia, Caribbean and Overseas Territories",,400190664,
DFID,DFID,09/12/2011,PRICEWATERHOUSECOOPERS DEVELOPMENT,"37,563",Technical and Advisory Services,"Asia, Caribbean and Overseas Territories",,400190678,
DFID,DFID,09/12/2011,PRICEWATERHOUSECOOPERS DEVELOPMENT,"28,255",Technical and Advisory Services,"Asia, Caribbean and Overseas Territories",,400190680,
DFID,DFID,08/12/2011,GHK CONSULTING LTD,"21,070",Technical and Advisory Services,"Asia, Caribbean and Overseas Territories",,400190768,
DFID,DFID,08/12/2011,GHK CONSULTING LTD,"10,002",Technical and Advisory Services,"Asia, Caribbean and Overseas Territories",,400190768,
DFID,DFID,09/12/2011,INFRASTRUCTURE PROFESSIONALS ENTERPRISE,"34,378",Technical and Advisory Services,"Asia, Caribbean and Overseas Territories",,400190782,
DFID,DFID,09/12/2011,INFRASTRUCTURE PROFESSIONALS ENTERPRISE,"42,973",Technical and Advisory Services,"Asia, Caribbean and Overseas Territories",,400190791,
DFID,DFID,12/12/2011,COFFEY INTERNATIONAL DEVELOPMENT LTD,"2,531",Technical and Advisory Services,"Asia, Caribbean and Overseas Territories",,400190913,
DFID,DFID,12/12/2011,COFFEY INTERNATIONAL DEVELOPMENT LTD,844,Technical and Advisory Services,"Asia, Caribbean and Overseas Territories",,400190913,
DFID,DFID,09/12/2011,HTSPE LTD,"43,553",Technical and Advisory Services,"Asia, Caribbean and Overseas Territories",,400190965,
DFID,DFID,09/12/2011,HTSPE LTD,"32,057",Technical and Advisory Services,"Asia, Caribbean and Overseas Territories",,400190979,
DFID,DFID,09/12/2011,HTSPE LTD,"35,440",Technical and Advisory Services,"Asia, Caribbean and Overseas Territories",,400190979,
DFID,DFID,09/12/2011,Foreign & Commonwealth Office,"1,623",Technical and Advisory Services,"Asia, Caribbean and Overseas Territories",,400190996,
DFID,DFID,09/12/2011,Foreign & Commonwealth Office,"3,285",Technical and Advisory Services,"Asia, Caribbean and Overseas Territories",,400190996,
DFID,DFID,09/12/2011,Foreign & Commonwealth Office,"5,353",Technical and Advisory Services,"Asia, Caribbean and Overseas Territories",,400190996,
DFID,DFID,09/12/2011,Foreign & Commonwealth Office,"2,913",Technical and Advisory Services,"Asia, Caribbean and Overseas Territories",,400190996,
DFID,DFID,09/12/2011,Foreign & Commonwealth Office,"1,467",Technical and Advisory Services,"Asia, Caribbean and Overseas Territories",,400190996,
DFID,DFID,12/12/2011,IMC Worldwide Ltd,"126,586",Technical and Advisory Services,"Asia, Caribbean and Overseas Territories",,400191051,
DFID,DFID,12/12/2011,IMC Worldwide Ltd,"255,650",Technical and Advisory Services,"Asia, Caribbean and Overseas Territories",,400191051,
DFID,DFID,12/12/2011,Crown Agents Govts and Admin,"71,059",Technical and Advisory Services,"Asia, Caribbean and Overseas Territories",,400191052,
DFID,DFID,12/12/2011,IMC Worldwide Ltd,"17,830",Technical and Advisory Services,"Asia, Caribbean and Overseas Territories",,400191151,
DFID,DFID,12/12/2011,PKF (UK) LLP,"35,848",Technical and Advisory Services,"Asia, Caribbean and Overseas Territories",,400191232,
DFID,DFID,12/12/2011,Harewelle International Limited.,"125,311",Technical and Advisory Services,"Asia, Caribbean and Overseas Territories",,400191283,
DFID,DFID,13/12/2011,Tran Thi Hong,"1,958",Technical and Advisory Services,"Asia, Caribbean and Overseas Territories",,400191305,
DFID,DFID,13/12/2011,COFFEY INTERNATIONAL DEVELOPMENT LTD,"17,709",Technical and Advisory Services,"Asia, Caribbean and Overseas Territories",,400191396,
DFID,DFID,13/12/2011,OPTIONS CONSULTANCY SERVICES LIMITED,"72,329",Technical and Advisory Services,"Asia, Caribbean and Overseas Territories",,400191402,
DFID,DFID,14/12/2011, Yin Yongyuan,"7,158",Technical and Advisory Services,"Asia, Caribbean and Overseas Territories",,400191451,
DFID,DFID,13/12/2011,TURNER & TOWNSEND,"30,620",Technical and Advisory Services,"Asia, Caribbean and Overseas Territories",,400191575,
DFID,DFID,13/12/2011, MARY HOBLEY & ASSOCIATES LTD,"10,666",Technical and Advisory Services,"Asia, Caribbean and Overseas Territories",,400191584,
DFID,DFID,15/12/2011,OBSERVER RESEARCH FOUNDATION,"5,382",Technical and Advisory Services,"Asia, Caribbean and Overseas Territories",,400191634,
DFID,DFID,14/12/2011, JOHN MURPHY,"1,532",Technical and Advisory Services,"Asia, Caribbean and Overseas Territories",,400191643,
DFID,DFID,14/12/2011,IMC Worldwide Ltd,"769,937",Technical and Advisory Services,"Asia, Caribbean and Overseas Territories",,400191778,
DFID,DFID,14/12/2011,IMC Worldwide Ltd,"19,798",Technical and Advisory Services,"Asia, Caribbean and Overseas Territories",,400191778,
DFID,DFID,14/12/2011,IMC Worldwide Ltd,"9,776",Technical and Advisory Services,"Asia, Caribbean and Overseas Territories",,400191778,
DFID,DFID,14/12/2011,GHK CONSULTING LTD,"6,076",Technical and Advisory Services,"Asia, Caribbean and Overseas Territories",,400191802,
DFID,DFID,15/12/2011,OPTIONS CONSULTANCY SERVICES LIMITED,"96,346",Technical and Advisory Services,"Asia, Caribbean and Overseas Territories",,400191806,
DFID,DFID,15/12/2011, JOHN MURPHY,"14,416",Technical and Advisory Services,"Asia, Caribbean and Overseas Territories",,400191807,
DFID,DFID,14/12/2011,OPTIONS CONSULTANCY SERVICES LIMITED,"104,106",Technical and Advisory Services,"Asia, Caribbean and Overseas Territories",,400191808,
DFID,DFID,14/12/2011,INSTITUTE OF DEVELOPMENT STUDIES,"12,640",Technical and Advisory Services,"Asia, Caribbean and Overseas Territories",,400191820,
DFID,DFID,14/12/2011,OPTIONS CONSULTANCY SERVICES LIMITED,"170,880",Technical and Advisory Services,"Asia, Caribbean and Overseas Territories",,400191833,
DFID,DFID,14/12/2011,OPTIONS CONSULTANCY SERVICES LIMITED,"161,181",Technical and Advisory Services,"Asia, Caribbean and Overseas Territories",,400191835,
DFID,DFID,14/12/2011,STEPHEN A TURNBULL,"10,111",Technical and Advisory Services,"Asia, Caribbean and Overseas Territories",,400191843,
DFID,DFID,19/12/2011,HTSPE LTD,"14,090",Technical and Advisory Services,"Asia, Caribbean and Overseas Territories",,400191849,
DFID,DFID,14/12/2011,Nimbus Social Enterprise Consulting Ltd,"35,000",Technical and Advisory Services,"Asia, Caribbean and Overseas Territories",,400191869,
DFID,DFID,14/12/2011,GRM INTERNATIONAL LTD,"629,433",Technical and Advisory Services,"Asia, Caribbean and Overseas Territories",,400191885,
DFID,DFID,15/12/2011,Global Alliance Against Traffic in Women,"23,029",Technical and Advisory Services,"Asia, Caribbean and Overseas Territories",,400191910,
DFID,DFID,14/12/2011,IMC Worldwide Ltd,"2,654",Technical and Advisory Services,"Asia, Caribbean and Overseas Territories",,400191913,
DFID,DFID,15/12/2011,CHARLES KENDALL & PARTNERS LTD,"29,500",Technical and Advisory Services,"Asia, Caribbean and Overseas Territories",,400192145,
DFID,DFID,20/12/2011,ERNST &  YOUNG PRIVATE LTD,"2,932",Technical and Advisory Services,"Asia, Caribbean and Overseas Territories",,400192272,
DFID,DFID,20/12/2011,ERNST &  YOUNG PRIVATE LTD,"28,467",Technical and Advisory Services,"Asia, Caribbean and Overseas Territories",,400192272,
DFID,DFID,20/12/2011,ERNST &  YOUNG PRIVATE LTD,"20,000",Technical and Advisory Services,"Asia, Caribbean and Overseas Territories",,400192277,
DFID,DFID,20/12/2011,ERNST &  YOUNG PRIVATE LTD,"2,060",Technical and Advisory Services,"Asia, Caribbean and Overseas Territories",,400192277,
DFID,DFID,20/12/2011,ERNST &  YOUNG PRIVATE LTD,"1,030",Technical and Advisory Services,"Asia, Caribbean and Overseas Territories",,400192278,
DFID,DFID,20/12/2011,ERNST &  YOUNG PRIVATE LTD,"10,000",Technical and Advisory Services,"Asia, Caribbean and Overseas Territories",,400192278,
DFID,DFID,21/12/2011,ERNST &  YOUNG PRIVATE LTD,"75,000",Technical and Advisory Services,"Asia, Caribbean and Overseas Territories",,400192279,
DFID,DFID,21/12/2011,ERNST &  YOUNG PRIVATE LTD,"7,725",Technical and Advisory Services,"Asia, Caribbean and Overseas Territories",,400192279,
DFID,DFID,16/12/2011,Coffey International Development ,"19,930",Technical and Advisory Services,"Asia, Caribbean and Overseas Territories",,400192298,
DFID,DFID,16/12/2011,SPC MANAGEMENT SERVICES PRIVATE LIMI,"2,335",Technical and Advisory Services,"Asia, Caribbean and Overseas Territories",,400192409,
DFID,DFID,16/12/2011,SPC MANAGEMENT SERVICES PRIVATE LIMI,572,Technical and Advisory Services,"Asia, Caribbean and Overseas Territories",,400192411,
DFID,DFID,16/12/2011,MAXWELL STAMP PLC,"200,000",Technical and Advisory Services,"Asia, Caribbean and Overseas Territories",,400192413,
DFID,DFID,16/12/2011,MAXWELL STAMP PLC,"730,872",Technical and Advisory Services,"Asia, Caribbean and Overseas Territories",,400192413,
DFID,DFID,16/12/2011,SPC MANAGEMENT SERVICES PRIVATE LIMI,"2,141",Technical and Advisory Services,"Asia, Caribbean and Overseas Territories",,400192414,
DFID,DFID,16/12/2011,MAXWELL STAMP PLC,"156,873",Technical and Advisory Services,"Asia, Caribbean and Overseas Territories",,400192415,
DFID,DFID,16/12/2011,SPC MANAGEMENT SERVICES PRIVATE LIMI,726,Technical and Advisory Services,"Asia, Caribbean and Overseas Territories",,400192416,
DFID,DFID,16/12/2011,SPC MANAGEMENT SERVICES PRIVATE LIMI,"1,127",Technical and Advisory Services,"Asia, Caribbean and Overseas Territories",,400192436,
DFID,DFID,16/12/2011,HTSPE LTD,"22,454",Technical and Advisory Services,"Asia, Caribbean and Overseas Territories",,400192457,
DFID,DFID,16/12/2011,DELOITTE TOUCHE TOHMATSU INDIA PRIVA,"41,498",Technical and Advisory Services,"Asia, Caribbean and Overseas Territories",,400192463,
DFID,DFID,16/12/2011,GHK CONSULTING LTD,"75,090",Technical and Advisory Services,"Asia, Caribbean and Overseas Territories",,400192466,
DFID,DFID,19/12/2011,Irin Parveen,"5,910",Technical and Advisory Services,"Asia, Caribbean and Overseas Territories",,400192553,
DFID,DFID,20/12/2011,BMB MOTT  MACDONALD,"505,805",Technical and Advisory Services,"Asia, Caribbean and Overseas Territories",,400192629,
DFID,DFID,19/12/2011,MAXWELL STAMP PLC,"19,419",Technical and Advisory Services,"Asia, Caribbean and Overseas Territories",,400192634,
DFID,DFID,19/12/2011,COFFEY INTERNATIONAL DEVELOPMENT LTD,"15,276",Technical and Advisory Services,"Asia, Caribbean and Overseas Territories",,400192644,
DFID,DFID,20/12/2011,Cordia Ming Yeuk Chu,"3,577",Technical and Advisory Services,"Asia, Caribbean and Overseas Territories",,400192798,
DFID,DFID,19/12/2011,The NSMC,"46,559",Technical and Advisory Services,"Asia, Caribbean and Overseas Territories",,400192818,
DFID,DFID,23/12/2011,TURNER & TOWNSEND,600,Technical and Advisory Services,"Asia, Caribbean and Overseas Territories",,400193024,
DFID,DFID,28/12/2011,BMB MOTT  MACDONALD,"72,084",Technical and Advisory Services,"Asia, Caribbean and Overseas Territories",,400193028,
DFID,DFID,20/12/2011,Richard Thompson Associates,"8,366",Technical and Advisory Services,"Asia, Caribbean and Overseas Territories",,400193067,
DFID,DFID,21/12/2011,CROWN AGENTS (INDIA) PVT. LTD,"1,495",Technical and Advisory Services,"Asia, Caribbean and Overseas Territories",,400193151,
DFID,DFID,21/12/2011,BROADLINE COMPUTER SYSTEMS,"3,160",Technical and Advisory Services,"Asia, Caribbean and Overseas Territories",,400193155,
DFID,DFID,21/12/2011,BROADLINE COMPUTER SYSTEMS,988,Technical and Advisory Services,"Asia, Caribbean and Overseas Territories",,400193249,
DFID,DFID,21/12/2011,IMC Worldwide Ltd,"15,072",Technical and Advisory Services,"Asia, Caribbean and Overseas Territories",,400193294,
DFID,DFID,23/12/2011,HTSPE LTD,"7,419",Technical and Advisory Services,"Asia, Caribbean and Overseas Territories",,400193338,
DFID,DFID,29/12/2011,HTSPE LTD,"22,832",Technical and Advisory Services,"Asia, Caribbean and Overseas Territories",,400193353,
DFID,DFID,29/12/2011,ERNST &  YOUNG PRIVATE LTD,"36,035",Technical and Advisory Services,"Asia, Caribbean and Overseas Territories",,400193356,
DFID,DFID,28/12/2011,COFFEY INTERNATIONAL DEVELOPMENT LTD,"31,595",Technical and Advisory Services,"Asia, Caribbean and Overseas Territories",,400193359,
DFID,DFID,29/12/2011,ERNST &  YOUNG PRIVATE LTD,"49,635",Technical and Advisory Services,"Asia, Caribbean and Overseas Territories",,400193360,
DFID,DFID,21/12/2011,COFFEY INTERNATIONAL DEVELOPMENT LTD,"15,750",Technical and Advisory Services,"Asia, Caribbean and Overseas Territories",,400193365,
DFID,DFID,29/12/2011,ADAM SMITH INTERNATIONAL  LTD,"268,226",Technical and Advisory Services,"Asia, Caribbean and Overseas Territories",,400193395,
DFID,DFID,21/12/2011,WIND BUSINESS SUPPORT,"2,029",Technical and Advisory Services,"Asia, Caribbean and Overseas Territories",,400193427,
DFID,DFID,21/12/2011,N D Hearnden,"20,696",Technical and Advisory Services,"Asia, Caribbean and Overseas Territories",,400193428,
DFID,DFID,30/12/2011,CARICOM/PANCAP,"9,077",Technical and Advisory Services,"Asia, Caribbean and Overseas Territories",,400193434,
DFID,DFID,28/12/2011,Expatplus c/o Vanbreda Int.,"7,686",Technical and Advisory Services,"Asia, Caribbean and Overseas Territories",,400193625,
DFID,DFID,28/12/2011,PRICEWATERHOUSECOOPERS DEVELOPMENT,"73,638",Technical and Advisory Services,"Asia, Caribbean and Overseas Territories",,400193632,
DFID,DFID,28/12/2011,PRICEWATERHOUSECOOPERS DEVELOPMENT,"50,727",Technical and Advisory Services,"Asia, Caribbean and Overseas Territories",,400193633,
DFID,DFID,28/12/2011,PRICEWATERHOUSECOOPERS DEVELOPMENT,"38,045",Technical and Advisory Services,"Asia, Caribbean and Overseas Territories",,400193634,
DFID,DFID,28/12/2011,Maheen Sultan,"2,494",Technical and Advisory Services,"Asia, Caribbean and Overseas Territories",,400193730,
DFID,DFID,28/12/2011,COFFEY INTERNATIONAL DEVELOPMENT LTD,"21,434",Technical and Advisory Services,"Asia, Caribbean and Overseas Territories",,400193759,
DFID,DFID,28/12/2011,HTSPE LTD,794,Technical and Advisory Services,"Asia, Caribbean and Overseas Territories",,400193765,
DFID,DFID,28/12/2011,HTSPE LTD,"8,452",Technical and Advisory Services,"Asia, Caribbean and Overseas Territories",,400193765,
DFID,DFID,28/12/2011,CAMBRIDGE EDUCATION LTD,"284,862",Technical and Advisory Services,"Asia, Caribbean and Overseas Territories",,400193790,
DFID,DFID,29/12/2011,Tanveer Ahsan,"2,699",Technical and Advisory Services,"Asia, Caribbean and Overseas Territories",,400193842,
DFID,DFID,29/12/2011,Tran Thi Hong,"1,852",Technical and Advisory Services,"Asia, Caribbean and Overseas Territories",,400193847,
DFID,DFID,30/12/2011,OPTIONS CONSULTANCY SERVICES LIMITED,"80,072",Technical and Advisory Services,"Asia, Caribbean and Overseas Territories",,400193880,
DFID,DFID,29/12/2011,OPTIONS CONSULTANCY SERVICES LIMITED,"19,104",Technical and Advisory Services,"Asia, Caribbean and Overseas Territories",,400193898,
DFID,DFID,30/12/2011,OPTIONS CONSULTANCY SERVICES LIMITED,"72,329",Technical and Advisory Services,"Asia, Caribbean and Overseas Territories",,400193903,
DFID,DFID,30/12/2011,CARE INTERNATIONAL,"44,860",Technical and Advisory Services,"Asia, Caribbean and Overseas Territories",,400193909,
DFID,DFID,30/12/2011,CARE INTERNATIONAL,"34,262",Technical and Advisory Services,"Asia, Caribbean and Overseas Territories",,400193910,
DFID,DFID,30/12/2011,CARE INTERNATIONAL,"9,244",Technical and Advisory Services,"Asia, Caribbean and Overseas Territories",,400193910,
DFID,DFID,29/12/2011,CHRISTIAN AID,"686,638",Technical and Advisory Services,"Asia, Caribbean and Overseas Territories",,400193912,
DFID,DFID,29/12/2011,Foreign & Commonwealth Office,"1,793",Technical and Advisory Services,"Asia, Caribbean and Overseas Territories",,400193916,
DFID,DFID,29/12/2011,Foreign & Commonwealth Office,"1,238",Technical and Advisory Services,"Asia, Caribbean and Overseas Territories",,400193916,
DFID,DFID,29/12/2011,Foreign & Commonwealth Office,"1,679",Technical and Advisory Services,"Asia, Caribbean and Overseas Territories",,400193916,
DFID,DFID,29/12/2011,Foreign & Commonwealth Office,"4,085",Technical and Advisory Services,"Asia, Caribbean and Overseas Territories",,400193916,
DFID,DFID,29/12/2011,Foreign & Commonwealth Office,"3,126",Technical and Advisory Services,"Asia, Caribbean and Overseas Territories",,400193916,
DFID,DFID,29/12/2011,Foreign & Commonwealth Office,"3,377",Technical and Advisory Services,"Asia, Caribbean and Overseas Territories",,400193916,
DFID,DFID,29/12/2011,Foreign & Commonwealth Office,800,Technical and Advisory Services,"Asia, Caribbean and Overseas Territories",,400193916,
DFID,DFID,29/12/2011,Foreign & Commonwealth Office,"2,991",Technical and Advisory Services,"Asia, Caribbean and Overseas Territories",,400193916,
DFID,DFID,29/12/2011,Foreign & Commonwealth Office,933,Technical and Advisory Services,"Asia, Caribbean and Overseas Territories",,400193916,
DFID,DFID,29/12/2011,Foreign & Commonwealth Office,507,Technical and Advisory Services,"Asia, Caribbean and Overseas Territories",,400193916,
DFID,DFID,29/12/2011,HAREWELLE INTERNATIONAL LIMITED,"6,398",Technical and Advisory Services,"Asia, Caribbean and Overseas Territories",,400193919,
DFID,DFID,29/12/2011,Ecological Economies and Development Limited,"118,682",Technical and Advisory Services,"Asia, Caribbean and Overseas Territories",,400193926,
DFID,DFID,29/12/2011, Overseas Development Institute,"22,950",Technical and Advisory Services,"Asia, Caribbean and Overseas Territories",,400193932,
DFID,DFID,30/12/2011,CAPITA HELM CORPORATION LTD,"200,586",Technical and Advisory Services,"Asia, Caribbean and Overseas Territories",,400193985,
DFID,DFID,09/12/2011,Foreign & Commonwealth Office,728,Telephone Usage & services,"Asia, Caribbean and Overseas Territories",,400190935,
DFID,DFID,16/12/2011,BHARTI AIRTEL LIMITED,507,Telephone Usage & services,"Asia, Caribbean and Overseas Territories",,400191991,
DFID,DFID,30/12/2011,Government Procurement Card,714,Training - Course Fees,"Asia, Caribbean and Overseas Territories",,100050,
DFID,DFID,05/12/2011,REED LEARNING PLC,636,Training - Course Fees,"Asia, Caribbean and Overseas Territories",,400190126,
DFID,DFID,12/12/2011,Jaya Travels & Tours Ltd,"1,358",Staff Travel - Air fares,"Asia, Caribbean and Overseas Territories",,400191023,
DFID,DFID,12/12/2011,Jaya Travels & Tours Pvt Ltd. (US$),"1,208",Staff Travel - Air fares,"Asia, Caribbean and Overseas Territories",,400191024,
DFID,DFID,12/12/2011,LOUGHBOROUGH UNIVERSITY,890,Training - Course Fees,"Asia, Caribbean and Overseas Territories",,400191274,
DFID,DFID,15/12/2011,KUONI BUSINESS TRAVEL INDIA PVT LTD,555,Training - Travel & Subsistence,"Asia, Caribbean and Overseas Territories",,400192078,
DFID,DFID,16/12/2011,KUONI BUSINESS TRAVEL INDIA PVT LTD,553,Training - Travel & Subsistence,"Asia, Caribbean and Overseas Territories",,400192396,
DFID,DFID,28/12/2011,Recipient name withheld,"1,553",Training - Course Fees,"Asia, Caribbean and Overseas Territories",,400193465,
DFID,DFID,09/12/2011,Foreign & Commonwealth Office,684,Training - Travel & Subsistence,"Asia, Caribbean and Overseas Territories",,400190996,
DFID,DFID,14/12/2011,KUONI BUSINESS TRAVEL INDIA PVT LTD,516,Training - Travel & Subsistence,"Asia, Caribbean and Overseas Territories",,400191441,
DFID,DFID,13/12/2011,Foreign & Commonwealth Office,645,Training - Travel & Subsistence,"Asia, Caribbean and Overseas Territories",,400191551,
DFID,DFID,13/12/2011,Foreign & Commonwealth Office,"1,413",Training - Travel & Subsistence,"Asia, Caribbean and Overseas Territories",,400191551,
DFID,DFID,15/12/2011,KUONI BUSINESS TRAVEL INDIA PVT LTD,516,Training - Travel & Subsistence,"Asia, Caribbean and Overseas Territories",,400191983,
DFID,DFID,15/12/2011,KUONI BUSINESS TRAVEL INDIA PVT LTD,541,Training - Travel & Subsistence,"Asia, Caribbean and Overseas Territories",,400191983,
DFID,DFID,16/12/2011,KUONI BUSINESS TRAVEL INDIA PVT LTD,516,Training - Travel & Subsistence,"Asia, Caribbean and Overseas Territories",,400192318,
DFID,DFID,21/12/2011,KUONI BUSINESS TRAVEL INDIA PVT LTD,924,Training - Travel & Subsistence,"Asia, Caribbean and Overseas Territories",,400192891,
DFID,DFID,28/12/2011,Hanoi Toserco,"1,025",Training - Travel & Subsistence,"Asia, Caribbean and Overseas Territories",,400193101,
DFID,DFID,28/12/2011,Hanoi Toserco,"1,079",Training - Travel & Subsistence,"Asia, Caribbean and Overseas Territories",,400193101,
DFID,DFID,06/12/2011,PANKAJ JAIN,742,Training Providers/Facilitation Services,"Asia, Caribbean and Overseas Territories",,400189946,
DFID,DFID,09/12/2011,Foreign & Commonwealth Office,781,Travel - Subsistence,"Asia, Caribbean and Overseas Territories",,400190935,
DFID,DFID,09/12/2011,Foreign & Commonwealth Office,"1,252",Travel - Subsistence,"Asia, Caribbean and Overseas Territories",,400190996,
DFID,DFID,05/12/2011,IBRD (HSBC)  C/O THE WORLD BANK,"1,300,000",Aid Programme - Trust Funds contributions,"Asia, Caribbean and Overseas Territories",,400189989,
DFID,DFID,07/12/2011,IBRD HSBC T,"518,982",Aid Programme - Trust Funds contributions,"Asia, Caribbean and Overseas Territories",,400190535,
DFID,DFID,12/12/2011,IBRD HSBC T,"6,000,000",Aid Programme - Trust Funds contributions,"Asia, Caribbean and Overseas Territories",,400191189,
DFID,DFID,12/12/2011,IBRD HSBC T,"2,800,000",Aid Programme - Trust Funds contributions,"Asia, Caribbean and Overseas Territories",,400191223,
DFID,DFID,13/12/2011,IBRD (HSBC)  C/O THE WORLD BANK,"869,000",Aid Programme - Trust Funds contributions,"Asia, Caribbean and Overseas Territories",,400191617,
DFID,DFID,15/12/2011,IBRD (HSBC)  C/O THE WORLD BANK,"23,000,000",Aid Programme - Trust Funds contributions,"Asia, Caribbean and Overseas Territories",,400191799,
DFID,DFID,15/12/2011,IBRD (HSBC)  C/O THE WORLD BANK,"2,000,000",Aid Programme - Trust Funds contributions,"Asia, Caribbean and Overseas Territories",,400191799,
DFID,DFID,15/12/2011,UNOPS,"1,690,000",Aid Programme - Trust Funds contributions,"Asia, Caribbean and Overseas Territories",,400191934,
DFID,DFID,16/12/2011,UNOPS,"15,000,000",Aid Programme - Trust Funds contributions,"Asia, Caribbean and Overseas Territories",,400192198,
DFID,DFID,20/12/2011,IBRD (HSBC)  C/O THE WORLD BANK,"135,000",Aid Programme - Trust Funds contributions,"Asia, Caribbean and Overseas Territories",,400192994,
DFID,DFID,13/12/2011,Foreign & Commonwealth Office,914,Other travel costs,"Asia, Caribbean and Overseas Territories",,400191551,
DFID,DFID,21/12/2011,Sikder Filling and Serivce Station,550,Vehicle Petrol & Oil,"Asia, Caribbean and Overseas Territories",,400192866,
DFID,DFID,12/12/2011,Crown Agents Govts and Admin,"50,783",Vehicle Purchase Costs,"Asia, Caribbean and Overseas Territories",,400191250,
DFID,DFID,14/12/2011,QUTAB SERVICE STATION,942,Vehicle Repairs & Maintenance,"Asia, Caribbean and Overseas Territories",,400190534,
DFID,DFID,14/12/2011,International Monetary Fund (GBP),"1,000,000",Aid Programme - Voluntary contributions,"Asia, Caribbean and Overseas Territories",,400191769,
DFID,DFID,28/12/2011,CARIBBEAN COMMUNITY CLIMATE CHANGE CENTER,"1,283,582",Aid Programme - Voluntary contributions,"Asia, Caribbean and Overseas Territories",,400192983,
DFID,DFID,21/12/2011,IBRD (HSBC)  C/O THE WORLD BANK,"316,750",Aid Programme - Voluntary contributions,"Asia, Caribbean and Overseas Territories",,400193290,
DFID,DFID,21/12/2011,UNDP CONTRIBUTIONS GBP,"250,000",Aid Programme - Voluntary contributions,"Asia, Caribbean and Overseas Territories",,400193330,
DFID,DFID,09/12/2011,Bal Krishna Dahal,653,Water charges,"Asia, Caribbean and Overseas Territories",,400190850,
DFID,DFID,09/12/2011,Bal Krishna Dahal,516,Water charges,"Asia, Caribbean and Overseas Territories",,400190852,
DFID,DFID,09/12/2011,Bal Krishna Dahal,577,Water charges,"Asia, Caribbean and Overseas Territories",,400190853,
DFID,DFID,01/12/2011,Government Procurement Card,646,Computer Consumables,Business Solutions Division Level,,100049,
DFID,DFID,01/12/2011,Government Procurement Card,646,Computer Consumables,Business Solutions Division Level,,100049,
DFID,DFID,30/12/2011,Government Procurement Card,564,Computer Consumables,Business Solutions Division Level,,100050,
DFID,DFID,30/12/2011,Government Procurement Card,"1,995",Computer Consumables,Business Solutions Division Level,,100050,
DFID,DFID,30/12/2011,Government Procurement Card,691,Computer Consumables,Business Solutions Division Level,,100050,
DFID,DFID,20/12/2011,Rufus Leonard Ltd,"1,020",Computer hardware maintenance,Business Solutions Division Level,,400193027,
DFID,DFID,28/12/2011,ATTENDA LIMITED,868,Computer hardware maintenance,Business Solutions Division Level,,400193768,
DFID,DFID,28/12/2011,ATTENDA LIMITED,"19,404",Computer hardware maintenance,Business Solutions Division Level,,400193769,
DFID,DFID,01/12/2011,Government Procurement Card,744,Computer software maintenance,Business Solutions Division Level,,100049,
DFID,DFID,07/12/2011,ALLEGIS GROUP LIMITED,"2,600",Computer software maintenance,Business Solutions Division Level,,400190394,
DFID,DFID,16/12/2011,ORACLE CORPORATION UK LIMITED,"3,119",Computer software maintenance,Business Solutions Division Level,,400192280,
DFID,DFID,16/12/2011,ORACLE CORPORATION UK LIMITED,"32,001",Computer software maintenance,Business Solutions Division Level,Annual Licence/Support costs QUEST DEVELOPMENT AND DATABASE SUPPORT,400192282,
DFID,DFID,16/12/2011,ORACLE CORPORATION UK LIMITED,"32,852",Computer software maintenance,Business Solutions Division Level,Annual Licence/Support costs QUEST DEVELOPMENT AND DATABASE SUPPORT,400192284,
DFID,DFID,21/12/2011,Rufus Leonard Ltd,"2,412",Computer software maintenance,Business Solutions Division Level,,400193063,
DFID,DFID,08/12/2011,Subisu Cable Net Pvt Ltd,714,Data Network - land lines,Business Solutions Division Level,,400190734,
DFID,DFID,09/12/2011,Foreign & Commonwealth Office,"2,790",Data Network - land lines,Business Solutions Division Level,,400190935,
DFID,DFID,13/12/2011,Telkom SA Ltd,"1,657",Data Network - land lines,Business Solutions Division Level,,400191096,
DFID,DFID,13/12/2011,Agni Systems Limited,917,Data Network - land lines,Business Solutions Division Level,,400191314,
DFID,DFID,15/12/2011,VERIZON UK LIMITED,"3,644",Data Network - land lines,Business Solutions Division Level,,400191812,
DFID,DFID,15/12/2011,BT BACS PAYMENTS,885,Data Network - land lines,Business Solutions Division Level,,400192189,
DFID,DFID,28/12/2011,MTN Business Solutions,"19,079",Data Network - land lines,Business Solutions Division Level,,400193087,
DFID,DFID,28/12/2011,MTN Business Solutions,"19,079",Data Network - land lines,Business Solutions Division Level,,400193088,
DFID,DFID,21/12/2011,SKYVISION GLOBAL NETWORKS LLC,"4,745",Data network- remote working,Business Solutions Division Level,,400192289,
DFID,DFID,20/12/2011,Networkshop Limited,963,Data network- remote working,Business Solutions Division Level,,400192441,
DFID,DFID,16/12/2011,IPNX Nigeria Ltd,"1,766",Data network- remote working,Business Solutions Division Level,,400192483,
DFID,DFID,19/12/2011,Foreign & Commonwealth Office,579,Data network- remote working,Business Solutions Division Level,,400192683,
DFID,DFID,07/12/2011,VIZADA NETWORKS,"2,185",Data Network -Satellite,Business Solutions Division Level,,400189713,
DFID,DFID,21/12/2011,VIZADA NETWORKS,"2,185",Data Network -Satellite,Business Solutions Division Level,,400192151,
DFID,DFID,01/12/2011,Government Procurement Card,"1,197",Further Education costs,Business Solutions Division Level,,100049,
DFID,DFID,30/12/2011,Government Procurement Card,984,Hardware - printers,Business Solutions Division Level,,100050,
DFID,DFID,01/12/2011,Government Procurement Card,"1,058",Hardware -Laptop PCs,Business Solutions Division Level,,100049,
DFID,DFID,01/12/2011,Government Procurement Card,"2,817",Hardware -Laptop PCs,Business Solutions Division Level,,100049,
DFID,DFID,05/12/2011,Corporate Travel Provider,527,Hotels - Accommodation only,Business Solutions Division Level,,6000063,
DFID,DFID,13/12/2011,Recipient name withheld,540,Hotels - Accommodation only,Business Solutions Division Level,,400191531,
DFID,DFID,19/12/2011,Corporate Travel Provider,"1,025",Hotels - Accommodation only,Business Solutions Division Level,,400192701,
DFID,DFID,22/12/2011,THE INDIAN HOTELS COM. LTD,725,Hotels - Accommodation only,Business Solutions Division Level,,400193256,
DFID,DFID,08/12/2011,FCO SERVICES,"1,284",Office Equipment - Purchases,Business Solutions Division Level,,400190624,
DFID,DFID,08/12/2011,FCO SERVICES,552,other information and communication technologies,Business Solutions Division Level,,400190684,
DFID,DFID,08/12/2011,NAYATEL (PVT) LTD,"1,133",other information and communication technologies,Business Solutions Division Level,,400190798,
DFID,DFID,30/12/2011,Government Procurement Card,"4,465",Printer Consumables,Business Solutions Division Level,,100050,
DFID,DFID,08/12/2011,INSIGHT DIRECT (UK) LTD,"11,188",Printer Consumables,Business Solutions Division Level,,400190788,
DFID,DFID,30/12/2011,Government Procurement Card,528,Air fares,Business Solutions Division Level,,100050,
DFID,DFID,16/12/2011,Corporate Travel Provider,571,Air fares,Business Solutions Division Level,,6000064,
DFID,DFID,16/12/2011,Corporate Travel Provider,562,Air fares,Business Solutions Division Level,,6000064,
DFID,DFID,21/12/2011,Saimon Overseas Ltd,"1,091",Air fares,Business Solutions Division Level,,400193125,
DFID,DFID,15/12/2011,TNT Express (UK) Ltd,"6,737",Storage & Distribution costs,Business Solutions Division Level,,400192250,
DFID,DFID,30/12/2011,Government Procurement Card,"2,400",Subscriptions,Business Solutions Division Level,,100050,
DFID,DFID,05/12/2011,CarePack Sales Ltd,"7,590",Technical and Advisory Services,Business Solutions Division Level,,400190027,
DFID,DFID,07/12/2011,ALLEGIS GROUP LIMITED,740,Technical and Advisory Services,Business Solutions Division Level,,400190122,
DFID,DFID,07/12/2011,OPIN SYSTEMS LIMITED,"13,690",Technical and Advisory Services,Business Solutions Division Level,,400190417,
DFID,DFID,12/12/2011,LLOYDS REGISTER QUALITY ASSURANCE LTD,"2,500",Technical and Advisory Services,Business Solutions Division Level,,400190964,
DFID,DFID,15/12/2011,OPIN SYSTEMS LIMITED,"1,500",Technical and Advisory Services,Business Solutions Division Level,,400191831,
DFID,DFID,06/12/2011,BT BACS PAYMENTS,"3,397",Telephone Usage & services,Business Solutions Division Level,,400190025,
DFID,DFID,30/12/2011,Government Procurement Card,840,Training - Course Fees,Business Solutions Division Level,,100050,
DFID,DFID,12/12/2011,QA Limited,"1,642",Training - Course Fees,Business Solutions Division Level,,400190986,
DFID,DFID,19/12/2011,AIIM International Ltd,"1,980",Training - Course Fees,Business Solutions Division Level,,400192292,
DFID,DFID,06/12/2011,d&m taxis,600,Other travel costs,Business Solutions Division Level,,400190115,
DFID,DFID,06/12/2011,Southern Sun Ridgeway,711,Other travel costs,Business Solutions Division Level,,400190203,
DFID,DFID,07/12/2011,Durrants lTD,"3,310",Advertising & Publicity costs,Communications Division,,400189654,
DFID,DFID,16/12/2011,CENTRAL OFFICE OF INFORMATION,"6,914",Contract & Agency Staff,Communications Division,,400192462,
DFID,DFID,05/12/2011,Crown Agents Govts and Admin,"47,651",Aid Programme - Development Awareness Fund payments,Communications Division,,400189752,
DFID,DFID,05/12/2011,Crown Agents Govts and Admin,"25,039",Aid Programme - Development Awareness Fund payments,Communications Division,,400189754,
DFID,DFID,05/12/2011,Crown Agents Govts and Admin,"8,708",Aid Programme - Development Awareness Fund payments,Communications Division,,400189758,
DFID,DFID,21/12/2011,Crown Agents Govts and Admin,"208,886",Aid Programme - Development Awareness Fund payments,Communications Division,,400193358,
DFID,DFID,21/12/2011,Crown Agents Govts and Admin,"12,742",Aid Programme - Development Awareness Fund payments,Communications Division,,400193372,
DFID,DFID,09/12/2011,COPYPRINT UK LTD,"1,259",Print Services,Communications Division,,400190960,
DFID,DFID,16/12/2011,Corporate Travel Provider,"1,595",Air fares,Communications Division,,6000064,
DFID,DFID,16/12/2011,Corporate Travel Provider,"1,092",Air fares,Communications Division,,6000064,
DFID,DFID,02/12/2011,Durrants lTD,"3,476",Technical and Advisory Services,Communications Division,,400189698,
DFID,DFID,07/12/2011,Durrants lTD,"4,801",Technical and Advisory Services,Communications Division,,400189699,
DFID,DFID,07/12/2011,Durrants lTD,"4,388",Technical and Advisory Services,Communications Division,,400189700,
DFID,DFID,05/12/2011,Interconnect IT,504,Technical and Advisory Services,Communications Division,,400190093,
DFID,DFID,22/12/2011,THE PRESS ASSOCIATION,530,Technical and Advisory Services,Communications Division,,400193425,
DFID,DFID,23/12/2011,TRIPLE LINE CONSULTING LTD,"10,338",Technical and Advisory Services,Communications Division,,400193676,
DFID,DFID,23/12/2011,TRIPLE LINE CONSULTING LTD,"4,280",Technical and Advisory Services,Communications Division,,400193676,
DFID,DFID,12/12/2011,NATIONAL AUDIT OFFICE,"8,936",Technical and Advisory Services,Corporate Hub,,400189814,
DFID,DFID,09/12/2011,KPMG LLP,"31,830",Technical and Advisory Services,Corporate Hub,,400190970,
DFID,DFID,09/12/2011,KPMG LLP,"31,830",Technical and Advisory Services,Corporate Hub,,400190971,
DFID,DFID,09/12/2011,KPMG LLP,"31,830",Technical and Advisory Services,Corporate Hub,,400190973,
DFID,DFID,28/12/2011,KPMG LLP,"68,394",Technical and Advisory Services,Corporate Hub,,400193786,
DFID,DFID,28/12/2011,KPMG LLP,"41,589",Technical and Advisory Services,Corporate Hub,,400193787,
DFID,DFID,28/12/2011,KPMG LLP,"140,929",Technical and Advisory Services,Corporate Hub,,400193788,
DFID,DFID,28/12/2011,KPMG LLP,"71,689",Technical and Advisory Services,Corporate Hub,,400193789,
DFID,DFID,28/12/2011,KPMG LLP,"31,830",Technical and Advisory Services,Corporate Hub,,400193794,
DFID,DFID,01/12/2011,FSD Kenya,"266,505",Aid Programme - Accountable Grant Payments,East and Central Africa,,400184261,
DFID,DFID,01/12/2011,FOUNDATION FOR CIVIL SOCIETY,"1,340,414",Aid Programme - Accountable Grant Payments,East and Central Africa,,400188101,
DFID,DFID,01/12/2011,HivosGBP,"500,000",Aid Programme - Accountable Grant Payments,East and Central Africa,,400188893,
DFID,DFID,06/12/2011,CARE INTERNATIONAL UK,"79,557",Aid Programme - Accountable Grant Payments,East and Central Africa,,400189057,
DFID,DFID,02/12/2011,Ifakara Health Institute,"400,239",Aid Programme - Accountable Grant Payments,East and Central Africa,,400189545,
DFID,DFID,01/12/2011,TEARFUND,"415,259",Aid Programme - Accountable Grant Payments,East and Central Africa,,400189556,
DFID,DFID,02/12/2011,SAVE THE CHILDREN UK,"182,587",Aid Programme - Accountable Grant Payments,East and Central Africa,,400189807,
DFID,DFID,02/12/2011,SAVE THE CHILDREN UK,"387,692",Aid Programme - Accountable Grant Payments,East and Central Africa,,400189807,
DFID,DFID,05/12/2011,RED R,"167,780",Aid Programme - Accountable Grant Payments,East and Central Africa,,400190075,
DFID,DFID,05/12/2011,RED R,"146,213",Aid Programme - Accountable Grant Payments,East and Central Africa,,400190075,
DFID,DFID,09/12/2011,The Nile Basin Discourse (NBD),"559,476",Aid Programme - Accountable Grant Payments,East and Central Africa,,400190387,
DFID,DFID,14/12/2011,REFUGEE EDUCATION TRUST,"350,000",Aid Programme - Accountable Grant Payments,East and Central Africa,,400190686,
DFID,DFID,12/12/2011,Olympus Mons Foundation,"75,000",Aid Programme - Accountable Grant Payments,East and Central Africa,,400190930,
DFID,DFID,13/12/2011,Tanzania Natural Resources Forum,"83,050",Aid Programme - Accountable Grant Payments,East and Central Africa,,400191047,
DFID,DFID,12/12/2011,THE MENTOR INITIATIVE,"842,733",Aid Programme - Accountable Grant Payments,East and Central Africa,,400191094,
DFID,DFID,14/12/2011,Tanzania Natural Resources Forum,"74,050",Aid Programme - Accountable Grant Payments,East and Central Africa,,400191486,
DFID,DFID,15/12/2011,POPULATION  SERVICES INTERNATIONAL,"2,180",Aid Programme - Accountable Grant Payments,East and Central Africa,,400191827,
DFID,DFID,15/12/2011,POPULATION  SERVICES INTERNATIONAL,"1,389,755",Aid Programme - Accountable Grant Payments,East and Central Africa,,400191827,
DFID,DFID,19/12/2011,PACT INC,"534,982",Aid Programme - Accountable Grant Payments,East and Central Africa,,400192105,
DFID,DFID,19/12/2011,International Food PolicyResearch Institute (IFRI,"250,000",Aid Programme - Accountable Grant Payments,East and Central Africa,,400192261,
DFID,DFID,16/12/2011,THE SAVE THE CHILDREN FUND,"116,133",Aid Programme - Accountable Grant Payments,East and Central Africa,,400192405,
DFID,DFID,19/12/2011,OXFAM,"489,895",Aid Programme - Accountable Grant Payments,East and Central Africa,,400192656,
DFID,DFID,19/12/2011,SAVE THE CHILDREN,"832,077",Aid Programme - Accountable Grant Payments,East and Central Africa,,400192664,
DFID,DFID,19/12/2011,CARE INTERNATIONAL UK,"49,448",Aid Programme - Accountable Grant Payments,East and Central Africa,,400192673,
DFID,DFID,19/12/2011,OXFAM,"97,492",Aid Programme - Accountable Grant Payments,East and Central Africa,,400192674,
DFID,DFID,19/12/2011,OXFAM,"250,000",Aid Programme - Accountable Grant Payments,East and Central Africa,,400192681,
DFID,DFID,20/12/2011,Action Against Hunger - USA,"100,307",Aid Programme - Accountable Grant Payments,East and Central Africa,,400192736,
DFID,DFID,20/12/2011,TRADEMARK EAST AFRICA,"138,875",Aid Programme - Accountable Grant Payments,East and Central Africa,,400192775,
DFID,DFID,20/12/2011,MEDAIR,"98,912",Aid Programme - Accountable Grant Payments,East and Central Africa,,400192779,
DFID,DFID,30/12/2011,MERCY CORPS,"208,665",Aid Programme - Accountable Grant Payments,East and Central Africa,,400192814,
DFID,DFID,19/12/2011,Gatsby Charitable Foundation UK,"769,808",Aid Programme - Accountable Grant Payments,East and Central Africa,,400192815,
DFID,DFID,28/12/2011,PACT INC,"175,000",Aid Programme - Accountable Grant Payments,East and Central Africa,,400192821,
DFID,DFID,21/12/2011,VSO,"58,128",Aid Programme - Accountable Grant Payments,East and Central Africa,,400193241,
DFID,DFID,28/12/2011,CEDO VIP,"32,411",Aid Programme - Accountable Grant Payments,East and Central Africa,,400193716,
DFID,DFID,28/12/2011,ACTIONAID (UGANDA) INTERNATIONAL,"142,587",Aid Programme - Accountable Grant Payments,East and Central Africa,,400193719,
DFID,DFID,28/12/2011, Overseas Development Institute,"47,359",Aid Programme - Accountable Grant Payments,East and Central Africa,,400193784,
DFID,DFID,28/12/2011,OXFAM INSTITUTIONAL INCOME ACCOUNT,"80,186",Aid Programme - Accountable Grant Payments,East and Central Africa,,400193795,
DFID,DFID,29/12/2011,AGRA IN AFRICA (NO2),"600,000",Aid Programme - Accountable Grant Payments,East and Central Africa,,400193869,
DFID,DFID,30/12/2011,CARE INTERNATIONAL,"341,919",Aid Programme - Accountable Grant Payments,East and Central Africa,,400193983,
DFID,DFID,16/12/2011,RSM Tenon Limited,"20,932",Auditors Assurance Service,East and Central Africa,,400192428,
DFID,DFID,19/12/2011,Direct Publications International (DPI),"2,079",Books & Publications,East and Central Africa,,400192719,
DFID,DFID,01/12/2011,Government Procurement Card,"3,130",Computer Consumables,East and Central Africa,,100049,
DFID,DFID,07/12/2011,MFI OFFICE SOLUTIONS (U) LIMITED,685,Computer Consumables,East and Central Africa,,400189943,
DFID,DFID,07/12/2011,MFI OFFICE SOLUTIONS (U) LIMITED,"1,330",Computer Consumables,East and Central Africa,,400189943,
DFID,DFID,07/12/2011,Recipient name withheld,812,"Conferences, Seminars & Meeting/Event Resource",East and Central Africa,,400190077,
DFID,DFID,12/12/2011,Emerge Leaders Consultancy and Training plc,"3,672","Conferences, Seminars & Meeting/Event Resource",East and Central Africa,,400191028,
DFID,DFID,22/12/2011,Kijiko Enterprises,"2,586","Conferences, Seminars & Meeting/Event Resource",East and Central Africa,,400193507,
DFID,DFID,22/12/2011,Kijiko Enterprises,646,"Conferences, Seminars & Meeting/Event Resource",East and Central Africa,,400193507,
DFID,DFID,15/12/2011,Recipient name withheld,"3,375",Consultancy Services,East and Central Africa,,400191186,
DFID,DFID,14/12/2011,Ben Fowler Consulting Inc ,"7,205",Consultancy Services,East and Central Africa,,400191372,
DFID,DFID,15/12/2011,Ben Fowler Consulting Inc ,"2,754",Consultancy Services,East and Central Africa,,400191569,
DFID,DFID,16/12/2011,Recipient name withheld,"4,800",Consultancy Services,East and Central Africa,,400192432,
DFID,DFID,20/12/2011,Swiss Agency for Development and Cooperation SDC,"29,470",Aid Programme - Core contributions,East and Central Africa,,400189361,
DFID,DFID,07/12/2011,NEPAD (International Partnership for Africa Fisheries),"707,835",Aid Programme - Core contributions,East and Central Africa,,400190289,
DFID,DFID,12/12/2011,Royal Danish Embassy (Dar Es Salaam),"128,300",Aid Programme - Core contributions,East and Central Africa,,400190945,
DFID,DFID,19/12/2011,AFRICAN DEVELOPMENT BANK GRP,"100,295",Aid Programme - Core contributions,East and Central Africa,,400192751,
DFID,DFID,19/12/2011,AFRICAN DEVELOPMENT BANK GRP,"178,738",Aid Programme - Core contributions,East and Central Africa,,400192751,
DFID,DFID,19/12/2011,AFRICAN DEVELOPMENT BANK GRP,"460,015",Aid Programme - Core contributions,East and Central Africa,,400192751,
DFID,DFID,19/12/2011,AFRICAN DEVELOPMENT BANK GRP,"145,000",Aid Programme - Core contributions,East and Central Africa,,400192751,
DFID,DFID,19/12/2011,AFRICAN DEVELOPMENT BANK GRP,"61,852",Aid Programme - Core contributions,East and Central Africa,,400192751,
DFID,DFID,19/12/2011,AFRICAN DEVELOPMENT BANK GRP,"353,000",Aid Programme - Core contributions,East and Central Africa,,400192751,
DFID,DFID,23/12/2011,TRADEMARK EAST AFRICA,"750,000",Aid Programme - Core contributions,East and Central Africa,,400192952,
DFID,DFID,09/12/2011,Foreign & Commonwealth Office,571,DFID Learning Events,East and Central Africa,,400190996,
DFID,DFID,13/12/2011,Foreign & Commonwealth Office,"1,014",DFID Learning Events,East and Central Africa,,400191551,
DFID,DFID,07/12/2011,ELECTROGAZ,538,Electricity,East and Central Africa,,400190113,
DFID,DFID,09/12/2011,ELECTROGAZ,521,Electricity,East and Central Africa,,400190117,
DFID,DFID,09/12/2011,Foreign & Commonwealth Office,"1,260",Electricity,East and Central Africa,,400190996,
DFID,DFID,23/12/2011,BRITISH HIGH COMMISION KAMPALA,"1,031",Electricity,East and Central Africa,,400192777,
DFID,DFID,23/12/2011,BRITISH HIGH COMMISION KAMPALA,531,Electricity,East and Central Africa,,400192777,
DFID,DFID,12/12/2011,World Food  Programme,"4,800,000",Aid Programme - Emergency Food Aid,East and Central Africa,,400190899,
DFID,DFID,06/12/2011,JMC Umoja House,"2,944",FCO shared service charges,East and Central Africa,,400190177,
DFID,DFID,06/12/2011,JMC Umoja House,"6,880",FCO shared service charges,East and Central Africa,,400190177,
DFID,DFID,13/12/2011,Foreign & Commonwealth Office,"2,665",FCO shared service charges,East and Central Africa,,400191551,
DFID,DFID,13/12/2011,Foreign & Commonwealth Office,"1,021",FCO shared service charges,East and Central Africa,,400191551,
DFID,DFID,13/12/2011,Foreign & Commonwealth Office,602,FCO shared service charges,East and Central Africa,,400191551,
DFID,DFID,13/12/2011,Foreign & Commonwealth Office,"7,993",FCO shared service charges,East and Central Africa,,400191551,
DFID,DFID,16/12/2011,British High Commission(Tsh),"3,296",FCO shared service charges,East and Central Africa,,400192006,
DFID,DFID,16/12/2011,British High Commission(Tsh),"1,413",FCO shared service charges,East and Central Africa,,400192006,
DFID,DFID,22/12/2011,British High Commission(Tsh),"1,460",FCO shared service charges,East and Central Africa,,400193244,
DFID,DFID,22/12/2011,British High Commission(Tsh),"3,406",FCO shared service charges,East and Central Africa,,400193244,
DFID,DFID,17/12/2011,DOMUS WOODWORKS LIMITED,"5,386",Furniture & Fittings,East and Central Africa,,400192329,
DFID,DFID,19/12/2011,Amare Aragaw Modern Metal and Wood work Enterprise,"3,316",Furniture & Fittings,East and Central Africa,,400192764,
DFID,DFID,22/12/2011,Depatech Limited,"1,213",Furniture & Fittings,East and Central Africa,,400193484,
DFID,DFID,01/12/2011,University of Nairobi Enterprises & Services Ltd,515,Further Education costs,East and Central Africa,,400189480,
DFID,DFID,01/12/2011,University of Nairobi Enterprises & Services Ltd,515,Further Education costs,East and Central Africa,,400189484,
DFID,DFID,06/12/2011,AZ IMPEX,"2,161",Generators & spares,East and Central Africa,,400190180,
DFID,DFID,05/12/2011,Corporate Travel Provider,543,Hotels - Accommodation only,East and Central Africa,,6000063,
DFID,DFID,16/12/2011,Corporate Travel Provider,"1,585",Hotels - Accommodation only,East and Central Africa,,6000064,
DFID,DFID,16/12/2011,Corporate Travel Provider,778,Hotels - Accommodation only,East and Central Africa,,6000064,
DFID,DFID,08/12/2011,Crown Agents Govts and Admin,"8,745",Hotels - Accommodation only,East and Central Africa,,400189345,
DFID,DFID,02/12/2011,Recipient name withheld,812,Hotels - Accommodation only,East and Central Africa,,400189724,
DFID,DFID,07/12/2011,Recipient name withheld,785,Hotels - Accommodation only,East and Central Africa,,400190619,
DFID,DFID,07/12/2011,Recipient name withheld,942,Hotels - Accommodation only,East and Central Africa,,400190623,
DFID,DFID,09/12/2011,Recipient name withheld,504,Hotels - Accommodation only,East and Central Africa,,400190862,
DFID,DFID,13/12/2011,Foreign & Commonwealth Office,908,Hotels - Accommodation only,East and Central Africa,,400191551,
DFID,DFID,14/12/2011,Recipient name withheld,514,Hotels - Accommodation only,East and Central Africa,,400191858,
DFID,DFID,16/12/2011,Hilton International Hotel,828,Hotels - Accommodation only,East and Central Africa,,400192164,
DFID,DFID,16/12/2011,Hilton International Hotel,828,Hotels - Accommodation only,East and Central Africa,,400192165,
DFID,DFID,19/12/2011,Recipient name withheld,726,Hotels - Accommodation only,East and Central Africa,,400192822,
DFID,DFID,22/12/2011,Fairview Hotel,579,Hotels - Accommodation only,East and Central Africa,,400193508,
DFID,DFID,22/12/2011,Golden Jubilee Ltd,841,Hotels - Accommodation only,East and Central Africa,,400193509,
DFID,DFID,22/12/2011,Recipient name withheld,516,Hotels - Accommodation only,East and Central Africa,,400193628,
DFID,DFID,29/12/2011,Recipient name withheld,738,Hotels - Accommodation only,East and Central Africa,,400193892,
DFID,DFID,02/12/2011,Supplier name withheld,"8,957",Secure staff accommodation,East and Central Africa,,400189032,
DFID,DFID,05/12/2011,Supplier name withheld,"14,923",Secure staff accommodation,East and Central Africa,,400190022,
DFID,DFID,14/12/2011,Supplier name withheld,"13,650",Secure staff accommodation,East and Central Africa,,400191702,
DFID,DFID,14/12/2011,Supplier name withheld,"11,538",Secure staff accommodation,East and Central Africa,,400191710,
DFID,DFID,16/12/2011,Supplier name withheld,"1,263",Secure staff accommodation,East and Central Africa,,400192016,
DFID,DFID,16/12/2011,Supplier name withheld,"1,260",Secure staff accommodation,East and Central Africa,,400192023,
DFID,DFID,15/12/2011,Supplier name withheld,657,Secure staff accommodation,East and Central Africa,,400192132,
DFID,DFID,19/12/2011,Supplier name withheld,"4,502",Secure staff accommodation,East and Central Africa,,400192729,
DFID,DFID,22/12/2011,Supplier name withheld,"2,772",Secure staff accommodation,East and Central Africa,,400193480,
DFID,DFID,29/12/2011,Supplier name withheld,"6,483",Secure staff accommodation,East and Central Africa,,400193920,
DFID,DFID,14/12/2011, UNICEF,"1,035,258",Aid Programme - Humanitarian Material Relief Assistance and Services,East and Central Africa,,400191776,
DFID,DFID,14/12/2011, UNICEF,"1,540,000",Aid Programme - Humanitarian Material Relief Assistance and Services,East and Central Africa,,400191776,
DFID,DFID,16/12/2011,THE BRITISH RED CROSS SOCIETY,"92,127",Aid Programme - Humanitarian Material Relief Assistance and Services,East and Central Africa,,400192467,
DFID,DFID,19/12/2011,THE BRITISH RED CROSS SOCIETY,"215,000",Aid Programme - Humanitarian Material Relief Assistance and Services,East and Central Africa,,400192691,
DFID,DFID,06/12/2011,IBRD HSBC T,"25,000,000",Aid Programme - Joint programme contribution,East and Central Africa,,400189568,
DFID,DFID,14/12/2011,UNICEF,"250,000",Aid Programme - Joint programme contribution,East and Central Africa,,400191772,
DFID,DFID,19/12/2011,UNICEF,"200,000",Aid Programme - Joint programme contribution,East and Central Africa,,400192731,
DFID,DFID,05/12/2011,Crown Agents Govts and Admin,512,Legal costs,East and Central Africa,,400188535,
DFID,DFID,05/12/2011,Crown Agents Govts and Admin,"3,814",Legal costs,East and Central Africa,,400188535,
DFID,DFID,07/12/2011,KING FAISAL HOSPITAL,653,Medical/Health Services,East and Central Africa,,400190105,
DFID,DFID,01/12/2011,Government Procurement Card,510,Office Equipment - Maintenance,East and Central Africa,,100049,
DFID,DFID,22/12/2011,CSI Eletrical & Maintanance Ltd(TZ),907,Office Equipment - Maintenance,East and Central Africa,,400193483,
DFID,DFID,06/12/2011,PAPETERIE PRIX BAS,510,Office Equipment - Purchases,East and Central Africa,,400190188,
DFID,DFID,15/12/2011,Crown Agents Govts and Admin,"2,790",Office Equipment - Purchases,East and Central Africa,,400191428,
DFID,DFID,13/12/2011,Foreign & Commonwealth Office,"1,777",Office Equipment - Purchases,East and Central Africa,,400191551,
DFID,DFID,16/12/2011,British High Commission(Tsh),"4,065",Office Equipment - Purchases,East and Central Africa,,400192035,
DFID,DFID,06/12/2011,Colour Print (t) Ltd,879,Office Supplies,East and Central Africa,,400190175,
DFID,DFID,09/12/2011,Foreign & Commonwealth Office,"2,012",Office Supplies,East and Central Africa,,400190996,
DFID,DFID,22/12/2011,British Embassy,536,Office Supplies,East and Central Africa,,400192916,
DFID,DFID,15/12/2011,Recipient name withheld,604,Oil - Other Utilities,East and Central Africa,,400191988,
DFID,DFID,09/12/2011,Crown Agents Govts and Admin,"2,500",Aid Programme - Other Financial Aid to Government,East and Central Africa,,400190898,
DFID,DFID,12/12/2011,Crown Agents Govts and Admin,"111,689",Aid Programme - Other Financial Aid to Government,East and Central Africa,,400191253,
DFID,DFID,13/12/2011,Crown Agents Govts and Admin,"3,000,000",Aid Programme - Other Financial Aid to Government,East and Central Africa,,400191640,
DFID,DFID,22/12/2011,Crown Agents Govts and Admin,"1,000,000",Aid Programme - Other Financial Aid to Government,East and Central Africa,,400193627,
DFID,DFID,15/12/2011,Crown Agents Govts and Admin,"3,322",Other non-passenger transportation,East and Central Africa,,400191428,
DFID,DFID,08/12/2011,Crown Agents Govts and Admin,"1,304",Other passenger transport,East and Central Africa,,400189345,
DFID,DFID,15/12/2011,TRADEMARK EAST AFRICA,"2,000,000",Aid Programme - Partnership Programme Arrangements,East and Central Africa,,400191805,
DFID,DFID,06/12/2011,Crown Agents Govts and Admin,"12,500,000",Aid Programme - Poverty Reduction Budget Support,East and Central Africa,,400190412,
DFID,DFID,07/12/2011,Crown Agents Govts and Admin,"6,290,000",Aid Programme - Poverty Reduction Budget Support,East and Central Africa,,400190635,
DFID,DFID,12/12/2011,Crown Agents Govts and Admin,"14,777,379",Aid Programme - Poverty Reduction Budget Support,East and Central Africa,,400191260,
DFID,DFID,12/12/2011,Crown Agents Govts and Admin,"3,722,621",Aid Programme - Poverty Reduction Budget Support,East and Central Africa,,400191260,
DFID,DFID,14/12/2011,IBRD HSBC T,"2,800,000",Aid Programme - Poverty Reduction Budget Support,East and Central Africa,,400191792,
DFID,DFID,15/12/2011,Crown Agents Govts and Admin - Govt Ethiopia,"52,000,000",Aid Programme - Financial Aid to Govt,East and Central Africa,,400192030,
DFID,DFID,15/12/2011,Crown Agents Govts and Admin,"5,000,000",Aid Programme - Poverty Reduction Budget Support,East and Central Africa,,400192296,
DFID,DFID,20/12/2011,Crown Agents Govts and Admin,"6,800,000",Aid Programme - Poverty Reduction Budget Support,East and Central Africa,,400192996,
DFID,DFID,19/12/2011,United Nations Office on Drugs and Crime (UNODC),"32,000",Aid Programme - Programme Contribution,East and Central Africa,,400190940,
DFID,DFID,07/12/2011,People Performance Group,"3,375",Recruitment costs,East and Central Africa,,400190000,
DFID,DFID,23/12/2011,Kimberly Ryan Ltd,989,Recruitment costs,East and Central Africa,,400193537,
DFID,DFID,30/12/2011,Government Procurement Card,551,Relocation costs,East and Central Africa,,100050,
DFID,DFID,02/12/2011,CROWN RELOCATIONS  UK,"9,122",Relocation costs,East and Central Africa,,400189625,
DFID,DFID,15/12/2011,CROWN RELOCATIONS  UK,"3,503",Relocation costs,East and Central Africa,,400191107,
DFID,DFID,15/12/2011,CROWN RELOCATIONS  UK,"10,339",Relocation costs,East and Central Africa,,400191118,
DFID,DFID,02/12/2011,DOMUS WOODWORKS LIMITED(USD),992,Facilities Management payments,East and Central Africa,,400189679,
DFID,DFID,05/12/2011,Central Highway Contractors Limited (CHICO),786,Facilities Management payments,East and Central Africa,,400189841,
DFID,DFID,06/12/2011,Tip Shop,"1,571",Facilities Management payments,East and Central Africa,,400190194,
DFID,DFID,07/12/2011,K.B.M Investments Ltd,"1,051",Facilities Management payments,East and Central Africa,,400190488,
DFID,DFID,07/12/2011,K.B.M Investments Ltd,"3,924",Facilities Management payments,East and Central Africa,,400190496,
DFID,DFID,14/12/2011,K.B.M Investments Ltd,675,Facilities Management payments,East and Central Africa,,400191696,
DFID,DFID,16/12/2011,British High Commission(Tsh),"2,419",Facilities Management payments,East and Central Africa,,400192009,
DFID,DFID,16/12/2011,British High Commission(Tsh),"1,440",Facilities Management payments,East and Central Africa,,400192012,
DFID,DFID,16/12/2011,British High Commission(USD),"1,837",Facilities Management payments,East and Central Africa,,400192025,
DFID,DFID,16/12/2011,British High Commission(Tsh),700,Facilities Management payments,East and Central Africa,,400192029,
DFID,DFID,16/12/2011,British High Commission(Tsh),"2,459",Facilities Management payments,East and Central Africa,,400192032,
DFID,DFID,23/12/2011,British High Commission (RW),"2,315",Facilities Management payments,East and Central Africa,,400193519,
DFID,DFID,23/12/2011,British High Commission (RW),992,Facilities Management payments,East and Central Africa,,400193519,
DFID,DFID,22/12/2011,A & M Executive Cleaning services Co. Ltd,665,Facilities Management payments,East and Central Africa,,400193590,
DFID,DFID,22/12/2011,Game Discount World (U) Ltd,827,Facilities Management payments,East and Central Africa,,400193595,
DFID,DFID,22/12/2011,K.B.M Investments Ltd,"1,606",Facilities Management payments,East and Central Africa,,400193596,
DFID,DFID,22/12/2011,K.B.M Investments Ltd,827,Facilities Management payments,East and Central Africa,,400193596,
DFID,DFID,28/12/2011,Victoria Engineering,"1,242",Facilities Management payments,East and Central Africa,,400193751,
DFID,DFID,12/12/2011,DMS AFRICA,"178,781","Repairs, Maint, Alter - Property & Constrct. Services",East and Central Africa,,400190993,
DFID,DFID,14/12/2011,DMS AFRICA,"99,207","Repairs, Maint, Alter - Property & Constrct. Services",East and Central Africa,,400191483,
DFID,DFID,14/12/2011,SAFECON Electro Mechanical Works PLC,"12,015","Repairs, Maint, Alter - Property & Constrct. Services",East and Central Africa,,400191884,
DFID,DFID,14/12/2011,SAFECON Electro Mechanical Works PLC,"1,442","Repairs, Maint, Alter - Property & Constrct. Services",East and Central Africa,,400191886,
DFID,DFID,14/12/2011,SAFECON Electro Mechanical Works PLC,"4,038","Repairs, Maint, Alter - Property & Constrct. Services",East and Central Africa,,400191886,
DFID,DFID,15/12/2011,SAFECON Electro Mechanical Works PLC,"2,502","Repairs, Maint, Alter - Property & Constrct. Services",East and Central Africa,,400192106,
DFID,DFID,15/12/2011,Glorious Pvt.Ltd.Co,"7,727","Repairs, Maint, Alter - Property & Constrct. Services",East and Central Africa,,400192181,
DFID,DFID,20/12/2011,TURNER & TOWNSEND,"46,248","Repairs, Maint, Alter - Property & Constrct. Services",East and Central Africa,,400193069,
DFID,DFID,21/12/2011,SAFECON Electro Mechanical Works PLC,"32,815","Repairs, Maint, Alter - Property & Constrct. Services",East and Central Africa,Renovation of secure staff accommodation and security upgrade,400193130,
DFID,DFID,21/12/2011,TURNER & TOWNSEND,"26,402","Repairs, Maint, Alter - Property & Constrct. Services",East and Central Africa,,400193363,
DFID,DFID,29/12/2011,Campbell Project Management Services,549,"Repairs, Maint, Alter - Property & Constrct. Services",East and Central Africa,,400193889,
DFID,DFID,05/12/2011,Corporate Travel Provider,"1,121",Air fares,East and Central Africa,,6000063,
DFID,DFID,05/12/2011,Corporate Travel Provider,"1,484",Air fares,East and Central Africa,,6000063,
DFID,DFID,05/12/2011,Corporate Travel Provider,671,Air fares,East and Central Africa,,6000063,
DFID,DFID,05/12/2011,Corporate Travel Provider,694,Air fares,East and Central Africa,,6000063,
DFID,DFID,05/12/2011,Corporate Travel Provider,767,Air fares,East and Central Africa,,6000063,
DFID,DFID,05/12/2011,Corporate Travel Provider,606,Air fares,East and Central Africa,,6000063,
DFID,DFID,05/12/2011,Corporate Travel Provider,513,Air fares,East and Central Africa,,6000063,
DFID,DFID,05/12/2011,Corporate Travel Provider,721,Air fares,East and Central Africa,,6000063,
DFID,DFID,05/12/2011,Corporate Travel Provider,"1,057",Air fares,East and Central Africa,,6000063,
DFID,DFID,05/12/2011,Corporate Travel Provider,814,Air fares,East and Central Africa,,6000063,
DFID,DFID,05/12/2011,Corporate Travel Provider,"1,121",Air fares,East and Central Africa,,6000063,
DFID,DFID,05/12/2011,Corporate Travel Provider,743,Air fares,East and Central Africa,,6000063,
DFID,DFID,16/12/2011,Corporate Travel Provider,"1,172",Air fares,East and Central Africa,,6000064,
DFID,DFID,16/12/2011,Corporate Travel Provider,573,Air fares,East and Central Africa,,6000064,
DFID,DFID,16/12/2011,Corporate Travel Provider,653,Air fares,East and Central Africa,,6000064,
DFID,DFID,16/12/2011,Corporate Travel Provider,579,Air fares,East and Central Africa,,6000064,
DFID,DFID,16/12/2011,Corporate Travel Provider,579,Air fares,East and Central Africa,,6000064,
DFID,DFID,16/12/2011,Corporate Travel Provider,558,Air fares,East and Central Africa,,6000064,
DFID,DFID,16/12/2011,Corporate Travel Provider,982,Air fares,East and Central Africa,,6000064,
DFID,DFID,16/12/2011,Corporate Travel Provider,928,Air fares,East and Central Africa,,6000064,
DFID,DFID,13/12/2011,Corporate Travel Provider,662,Air fares,East and Central Africa,,400190167,
DFID,DFID,06/12/2011,Mukwa Travel and Tours,562,Air fares,East and Central Africa,,400190220,
DFID,DFID,06/12/2011,SATGURU TRAVEL & TOURS SERVICE,561,Air fares,East and Central Africa,,400190322,
DFID,DFID,06/12/2011,Corporate Travel Provider,592,Air fares,East and Central Africa,,400190345,
DFID,DFID,09/12/2011,Corporate Travel Provider,862,Air fares,East and Central Africa,,400190996,
DFID,DFID,12/12/2011,The Express Travel Group,670,Air fares,East and Central Africa,,400191032,
DFID,DFID,14/12/2011,Simbatravelcare Limited,664,Air fares,East and Central Africa,,400191745,
DFID,DFID,14/12/2011,Simbatravelcare Limited,664,Air fares,East and Central Africa,,400191746,
DFID,DFID,14/12/2011,Simbatravelcare Limited,597,Air fares,East and Central Africa,,400191750,
DFID,DFID,15/12/2011,Simbatravelcare Limited,597,Air fares,East and Central Africa,,400191753,
DFID,DFID,20/12/2011,SATGURU TRAVEL & TOURS SERVICE,705,Air fares,East and Central Africa,,400192908,
DFID,DFID,23/12/2011,Corporate Travel Provider,"12,403",Air fares,East and Central Africa,,400193614,
DFID,DFID,23/12/2011,The Express Travel Group,"1,044",Air fares,East and Central Africa,,400193674,
DFID,DFID,23/12/2011,The Express Travel Group,502,Air fares,East and Central Africa,,400193674,
DFID,DFID,15/12/2011,TRADEMARK EAST AFRICA,"2,270,000",Aid Programme - Strategic Grant Arrangement payments,East and Central Africa,,400191825,
DFID,DFID,19/12/2011,HIVOS,"1,300,000",Aid Programme - Strategic Grant Arrangement payments,East and Central Africa,,400192412,
DFID,DFID,01/12/2011,KPMG EAST AFRICA LTD,"190,228",Technical and Advisory Services,East and Central Africa,,400189174,
DFID,DFID,02/12/2011,Malik AMan,"6,250",Technical and Advisory Services,East and Central Africa,,400189315,
DFID,DFID,02/12/2011,BMB  MOTT  MACDONALD,"979,175",Technical and Advisory Services,East and Central Africa,,400189353,
DFID,DFID,06/12/2011,DIOP,"10,543",Technical and Advisory Services,East and Central Africa,,400189384,
DFID,DFID,02/12/2011,MARK Q WATSON,"11,950",Technical and Advisory Services,East and Central Africa,,400189393,
DFID,DFID,06/12/2011,OPTIONS CONSULTANCY SERVICES LIMITED,"218,807",Technical and Advisory Services,East and Central Africa,,400189706,
DFID,DFID,02/12/2011,COFFEY INTERNATIONAL DEVELOPMENT LTD,"17,899",Technical and Advisory Services,East and Central Africa,,400189723,
DFID,DFID,02/12/2011,PRICEWATERHOUSECOOPERS,"109,339",Technical and Advisory Services,East and Central Africa,,400189733,
DFID,DFID,15/12/2011,Crown Agents Govts and Admin,"61,651",Technical and Advisory Services,East and Central Africa,,400189736,
DFID,DFID,02/12/2011,HLSP LIMITED,"9,957",Technical and Advisory Services,East and Central Africa,,400189737,
DFID,DFID,02/12/2011,D T SMITH,"10,608",Technical and Advisory Services,East and Central Africa,,400189786,
DFID,DFID,02/12/2011,MOTT MACDONALD INTERNATIONAL,"11,974",Technical and Advisory Services,East and Central Africa,,400189787,
DFID,DFID,06/12/2011,Crown Agents Govts and Admin,"8,460",Technical and Advisory Services,East and Central Africa,,400189799,
DFID,DFID,06/12/2011,Crown Agents Govts and Admin,"8,460",Technical and Advisory Services,East and Central Africa,,400189800,
DFID,DFID,05/12/2011,ADAM SMITH INTERNATIONAL  LTD,"175,675",Technical and Advisory Services,East and Central Africa,,400189945,
DFID,DFID,05/12/2011,Haile Melekot teklegiorgis,"7,101",Technical and Advisory Services,East and Central Africa,,400190013,
DFID,DFID,05/12/2011,HELPAGE INTERNATIONAL,"53,251",Technical and Advisory Services,East and Central Africa,,400190049,
DFID,DFID,06/12/2011,International Law and Policy Institute,"7,358",Technical and Advisory Services,East and Central Africa,,400190057,
DFID,DFID,05/12/2011,Uganda National Association for the Deaf,"7,604",Technical and Advisory Services,East and Central Africa,,400190065,
DFID,DFID,05/12/2011,ADAM SMITH INTERNATIONAL  LTD,"197,701",Technical and Advisory Services,East and Central Africa,,400190090,
DFID,DFID,08/12/2011,Maizemoor International Inc,"8,112",Technical and Advisory Services,East and Central Africa,,400190252,
DFID,DFID,06/12/2011,SOCIAL DEVELOPMENT DIRECT LTD,"8,603",Technical and Advisory Services,East and Central Africa,,400190266,
DFID,DFID,06/12/2011,MOTT MACDONALD LTD,"21,642",Technical and Advisory Services,East and Central Africa,,400190276,
DFID,DFID,06/12/2011,Jean Paul Mugiraneza,"2,648",Technical and Advisory Services,East and Central Africa,,400190315,
DFID,DFID,06/12/2011,ADAM SMITH INTERNATIONAL  LTD,"5,136",Technical and Advisory Services,East and Central Africa,,400190328,
DFID,DFID,07/12/2011,AVID Development,"5,476",Technical and Advisory Services,East and Central Africa,,400190485,
DFID,DFID,07/12/2011,New Vision,"4,185",Technical and Advisory Services,East and Central Africa,,400190499,
DFID,DFID,15/12/2011,Crown Agents Govts and Admin,"5,422",Technical and Advisory Services,East and Central Africa,,400190552,
DFID,DFID,15/12/2011,Crown Agents Govts and Admin,"19,656",Technical and Advisory Services,East and Central Africa,,400190552,
DFID,DFID,09/12/2011,BMB  MOTT  MACDONALD,"148,730",Technical and Advisory Services,East and Central Africa,,400190797,
DFID,DFID,09/12/2011,The Law & Development Partnership,"77,600",Technical and Advisory Services,East and Central Africa,,400190873,
DFID,DFID,09/12/2011,The Law & Development Partnership,"23,300",Technical and Advisory Services,East and Central Africa,,400190875,
DFID,DFID,09/12/2011,COFFEY INTERNATIONAL DEVELOPMENT LTD,"6,908",Technical and Advisory Services,East and Central Africa,,400190905,
DFID,DFID,09/12/2011,THE IDL GROUP,"10,785",Technical and Advisory Services,East and Central Africa,,400190911,
DFID,DFID,09/12/2011,MAXWELL STAMP PLC,"186,830",Technical and Advisory Services,East and Central Africa,,400190961,
DFID,DFID,12/12/2011,The Express Travel Group,682,Technical and Advisory Services,East and Central Africa,,400191032,
DFID,DFID,12/12/2011,Selome Taddesse Mihiretu,"1,370",Technical and Advisory Services,East and Central Africa,,400191044,
DFID,DFID,13/12/2011,Hilton International Hotel,"2,622",Technical and Advisory Services,East and Central Africa,,400191104,
DFID,DFID,13/12/2011,COFFEY INTERNATIONAL DEVELOPMENT LTD,"13,865",Technical and Advisory Services,East and Central Africa,,400191266,
DFID,DFID,13/12/2011,Sehin Teferra,"3,753",Technical and Advisory Services,East and Central Africa,,400191323,
DFID,DFID,13/12/2011,COFFEY INTERNATIONAL DEVELOPMENT LTD,"14,551",Technical and Advisory Services,East and Central Africa,,400191416,
DFID,DFID,14/12/2011,COFFEY INTERNATIONAL DEVELOPMENT LTD,"18,240",Technical and Advisory Services,East and Central Africa,,400191434,
DFID,DFID,14/12/2011,COFFEY INTERNATIONAL DEVELOPMENT LTD,"1,820",Technical and Advisory Services,East and Central Africa,,400191434,
DFID,DFID,13/12/2011,HLSP LIMITED,"19,356",Technical and Advisory Services,East and Central Africa,,400191442,
DFID,DFID,13/12/2011,Crown Agents Govts and Admin,"45,065",Technical and Advisory Services,East and Central Africa,,400191454,
DFID,DFID,13/12/2011,"Save the Children UK,Ethiopia","2,442",Technical and Advisory Services,East and Central Africa,,400191540,
DFID,DFID,30/12/2011,IMC Worldwide Ltd,"5,783",Technical and Advisory Services,East and Central Africa,,400191568,
DFID,DFID,14/12/2011,Makerere University Centre for langauge and Communications services,541,Technical and Advisory Services,East and Central Africa,,400191711,
DFID,DFID,14/12/2011,DELTA PARTNERSHIP SOLUTIONS LTD,"81,604",Technical and Advisory Services,East and Central Africa,,400191811,
DFID,DFID,14/12/2011,ADAM SMITH INTERNATIONAL  LTD,"187,762",Technical and Advisory Services,East and Central Africa,,400191871,
DFID,DFID,14/12/2011,Common Futures Consulting Limited,"14,946",Technical and Advisory Services,East and Central Africa,,400191877,
DFID,DFID,14/12/2011,Selome Taddesse Mihiretu,825,Technical and Advisory Services,East and Central Africa,,400191887,
DFID,DFID,14/12/2011,ADAM SMITH INTERNATIONAL  LTD,"203,394",Technical and Advisory Services,East and Central Africa,,400191889,
DFID,DFID,14/12/2011,ADAM SMITH INTERNATIONAL  LTD,"13,670",Technical and Advisory Services,East and Central Africa,,400191890,
DFID,DFID,15/12/2011,EFOY TOUR & TRAVEL AGENT P.L.C.,987,Technical and Advisory Services,East and Central Africa,,400191894,
DFID,DFID,15/12/2011,PENIEL TOUR OPERATIONS,942,Technical and Advisory Services,East and Central Africa,,400191898,
DFID,DFID,14/12/2011,HTSPE LTD,"22,412",Technical and Advisory Services,East and Central Africa,,400191915,
DFID,DFID,20/12/2011,DELTA PARTNERSHIP SOLUTIONS LTD,"1,351",Technical and Advisory Services,East and Central Africa,,400191940,
DFID,DFID,20/12/2011,DELTA PARTNERSHIP SOLUTIONS LTD,"4,950",Technical and Advisory Services,East and Central Africa,,400191940,
DFID,DFID,14/12/2011,MOTT MACDONALD LTD,"45,713",Technical and Advisory Services,East and Central Africa,,400191967,
DFID,DFID,14/12/2011,CAPITA HELM CORPORATION LTD,"16,665",Technical and Advisory Services,East and Central Africa,,400191969,
DFID,DFID,14/12/2011,CAPITA HELM CORPORATION LTD,"2,100",Technical and Advisory Services,East and Central Africa,,400191970,
DFID,DFID,16/12/2011,British High Commission(Tsh),"1,772",Technical and Advisory Services,East and Central Africa,,400192006,
DFID,DFID,16/12/2011,British High Commission(Tsh),688,Technical and Advisory Services,East and Central Africa,,400192006,
DFID,DFID,16/12/2011,Centre for Justice and Crime Prevention,"12,584",Technical and Advisory Services,East and Central Africa,,400192022,
DFID,DFID,30/12/2011,MOTT MACDONALD LTD,"12,030",Technical and Advisory Services,East and Central Africa,,400192024,
DFID,DFID,15/12/2011,ATOS CONSULTING LIMITED,"352,537",Technical and Advisory Services,East and Central Africa,,400192044,
DFID,DFID,15/12/2011,Philip & Co. Certified Public Accounts,"7,752",Technical and Advisory Services,East and Central Africa,,400192062,
DFID,DFID,16/12/2011,ATOS CONSULTING LIMITED,"35,996",Technical and Advisory Services,East and Central Africa,,400192066,
DFID,DFID,16/12/2011,BMB  MOTT  MACDONALD,"625,854",Technical and Advisory Services,East and Central Africa,,400192076,
DFID,DFID,16/12/2011,Hilton International Hotel,"1,673",Technical and Advisory Services,East and Central Africa,,400192120,
DFID,DFID,16/12/2011,KPMG EAST AFRICA LTD,"70,246",Technical and Advisory Services,East and Central Africa,,400192129,
DFID,DFID,15/12/2011,PRICEWATERHOUSECOOPERS,"7,325",Technical and Advisory Services,East and Central Africa,,400192220,
DFID,DFID,15/12/2011,THE MEDIAE COMPANY,"119,938",Technical and Advisory Services,East and Central Africa,,400192236,
DFID,DFID,16/12/2011,MAXWELL STAMP PLC,"325,513",Technical and Advisory Services,East and Central Africa,,400192434,
DFID,DFID,20/12/2011,TERRAFIRMA LDA,"25,013",Technical and Advisory Services,East and Central Africa,,400192435,
DFID,DFID,20/12/2011,BMB  MOTT  MACDONALD,"120,871",Technical and Advisory Services,East and Central Africa,,400192636,
DFID,DFID,21/12/2011,Mennonite Economic Development Associates of Canada,"37,079",Technical and Advisory Services,East and Central Africa,,400192756,
DFID,DFID,21/12/2011,Jarat Chopra,"12,998",Technical and Advisory Services,East and Central Africa,,400192809,
DFID,DFID,19/12/2011,Charlie Goldsmith Associates Limited,"20,000",Technical and Advisory Services,East and Central Africa,,400192812,
DFID,DFID,19/12/2011,RIFT VALLEY RESEARCH LIMITED,"44,628",Technical and Advisory Services,East and Central Africa,,400192819,
DFID,DFID,20/12/2011,SORAS,951,Technical and Advisory Services,East and Central Africa,,400192922,
DFID,DFID,20/12/2011,Crown Agents Govts and Admin,"1,074",Technical and Advisory Services,East and Central Africa,,400192942,
DFID,DFID,28/12/2011,Malik AMan,"6,250",Technical and Advisory Services,East and Central Africa,,400192974,
DFID,DFID,20/12/2011,IMC Worldwide Ltd,"14,753",Technical and Advisory Services,East and Central Africa,,400193065,
DFID,DFID,20/12/2011,IMC Worldwide Ltd,"466,814",Technical and Advisory Services,East and Central Africa,,400193075,
DFID,DFID,23/12/2011,SOCIAL DEVELOPMENT DIRECT LTD,"11,905",Technical and Advisory Services,East and Central Africa,,400193078,
DFID,DFID,20/12/2011,HLSP LIMITED,"44,896",Technical and Advisory Services,East and Central Africa,,400193082,
DFID,DFID,22/12/2011,British High Commission(Tsh),"1,831",Technical and Advisory Services,East and Central Africa,,400193244,
DFID,DFID,22/12/2011,British High Commission(Tsh),710,Technical and Advisory Services,East and Central Africa,,400193244,
DFID,DFID,21/12/2011,COFFEY INTERNATIONAL DEVELOPMENT LTD,"3,623",Technical and Advisory Services,East and Central Africa,,400193253,
DFID,DFID,23/12/2011,Social Impact,"2,426",Technical and Advisory Services,East and Central Africa,,400193280,
DFID,DFID,23/12/2011,Social Impact,"17,510",Technical and Advisory Services,East and Central Africa,,400193289,
DFID,DFID,21/12/2011,vicbutler,"2,960",Technical and Advisory Services,East and Central Africa,,400193295,
DFID,DFID,21/12/2011,Crown Agents Govts and Admin,"2,997",Technical and Advisory Services,East and Central Africa,,400193300,
DFID,DFID,21/12/2011,Crown Agents Govts and Admin,"69,175",Technical and Advisory Services,East and Central Africa,,400193307,
DFID,DFID,21/12/2011,IMC Worldwide Ltd,"23,087",Technical and Advisory Services,East and Central Africa,,400193309,
DFID,DFID,21/12/2011,CAPITA HELM CORPORATION LTD,"21,400",Technical and Advisory Services,East and Central Africa,,400193312,
DFID,DFID,23/12/2011,HAREWELLE INTERNATIONAL LIMITED,"8,557",Technical and Advisory Services,East and Central Africa,,400193313,
DFID,DFID,21/12/2011,HTSPE LTD,"45,778",Technical and Advisory Services,East and Central Africa,,400193349,
DFID,DFID,21/12/2011,HTSPE LTD,"3,283",Technical and Advisory Services,East and Central Africa,,400193349,
DFID,DFID,21/12/2011,HTSPE LTD,"20,258",Technical and Advisory Services,East and Central Africa,,400193354,
DFID,DFID,21/12/2011,COFFEY INTERNATIONAL DEVELOPMENT LTD,"21,593",Technical and Advisory Services,East and Central Africa,,400193386,
DFID,DFID,30/12/2011,PRICEWATERHOUSECOOPERS,"30,452",Technical and Advisory Services,East and Central Africa,,400193405,
DFID,DFID,21/12/2011,HTSPE LTD,"14,145",Technical and Advisory Services,East and Central Africa,,400193408,
DFID,DFID,21/12/2011,COFFEY INTERNATIONAL DEVELOPMENT LTD,"18,771",Technical and Advisory Services,East and Central Africa,,400193421,
DFID,DFID,21/12/2011,dan whitaker,"10,400",Technical and Advisory Services,East and Central Africa,,400193430,
DFID,DFID,21/12/2011,Paul Bennell,"2,200",Technical and Advisory Services,East and Central Africa,,400193443,
DFID,DFID,22/12/2011,Mekdim Enkossa Ayana,"3,851",Technical and Advisory Services,East and Central Africa,,400193474,
DFID,DFID,22/12/2011,Kairichi Consultancy Limited,"3,458",Technical and Advisory Services,East and Central Africa,,400193494,
DFID,DFID,22/12/2011,Andrew Nyabera Nyagwencha,"1,819",Technical and Advisory Services,East and Central Africa,,400193495,
DFID,DFID,22/12/2011,Susan Amlango Aletia,"2,939",Technical and Advisory Services,East and Central Africa,,400193496,
DFID,DFID,22/12/2011,Pauline Akinyi Gogo,"2,255",Technical and Advisory Services,East and Central Africa,,400193497,
DFID,DFID,22/12/2011,Carree Njeri Ndoka,"2,255",Technical and Advisory Services,East and Central Africa,,400193500,
DFID,DFID,22/12/2011,Fairview Hotel,681,Technical and Advisory Services,East and Central Africa,,400193502,
DFID,DFID,22/12/2011,The Kenyan Alliance Insurance Co Ltd,604,Technical and Advisory Services,East and Central Africa,,400193522,
DFID,DFID,22/12/2011,Mc Donagh2,"2,487",Technical and Advisory Services,East and Central Africa,,400193570,
DFID,DFID,22/12/2011,Mc Donagh2,"5,580",Technical and Advisory Services,East and Central Africa,,400193572,
DFID,DFID,23/12/2011,Crown Agents Govts and Admin,"12,037",Technical and Advisory Services,East and Central Africa,,400193672,
DFID,DFID,23/12/2011,HTSPE LTD,"38,790",Technical and Advisory Services,East and Central Africa,,400193679,
DFID,DFID,23/12/2011,GL&SCS,"10,800",Technical and Advisory Services,East and Central Africa,,400193681,
DFID,DFID,28/12/2011,ADAM SMITH INTERNATIONAL  LTD,"116,990",Technical and Advisory Services,East and Central Africa,,400193792,
DFID,DFID,29/12/2011,ADAM SMITH INTERNATIONAL  LTD,"13,670",Technical and Advisory Services,East and Central Africa,,400193906,
DFID,DFID,29/12/2011,Crown Agents Govts and Admin,"23,296",Technical and Advisory Services,East and Central Africa,,400193951,
DFID,DFID,30/12/2011,Crown Agents Govts and Admin,"6,883",Technical and Advisory Services,East and Central Africa,,400193977,
DFID,DFID,30/12/2011,ATOS CONSULTING LIMITED,"235,025",Technical and Advisory Services,East and Central Africa,,400193987,
DFID,DFID,09/12/2011,Foreign & Commonwealth Office,653,Telephone Usage & services,East and Central Africa,,400190996,
DFID,DFID,22/12/2011,VODACOM TANZANIA,760,Telephone Usage & services,East and Central Africa,,400193140,
DFID,DFID,06/12/2011,Campbell McWilliams Consulting Ltd.,579,Training - Course Fees,East and Central Africa,,400190465,
DFID,DFID,12/12/2011,FALCONBURY LTD,"1,599",Training - Course Fees,East and Central Africa,,400191252,
DFID,DFID,12/12/2011,The Express Travel Group,981,Training - Travel & Subsistence,East and Central Africa,,400191032,
DFID,DFID,08/12/2011,AfDB AFRICAN WATER FACILITY,"5,000,000",Aid Programme - Trust Funds contributions,East and Central Africa,,400190001,
DFID,DFID,13/12/2011,IBRD HSBC T,"2,333,333",Aid Programme - Trust Funds contributions,East and Central Africa,,400191482,
DFID,DFID,15/12/2011,TRADEMARK EAST AFRICA,"930,000",Aid Programme - Trust Funds contributions,East and Central Africa,,400191825,
DFID,DFID,15/12/2011,WFP CONTRIBUTIONS UNIT,"200,000",Aid Programme - Trust Funds contributions,East and Central Africa,,400191906,
DFID,DFID,19/12/2011,   THE WORLD BANK,"177,920",Aid Programme - Trust Funds contributions,East and Central Africa,,400192688,
DFID,DFID,20/12/2011,IBRD HSBC T,"1,625,000",Aid Programme - Trust Funds contributions,East and Central Africa,,400193009,
DFID,DFID,23/12/2011,BRITISH HIGH COMMISION KAMPALA,868,Vehicle Petrol & Oil,East and Central Africa,,400192777,
DFID,DFID,15/12/2011,SOKOINE DRIVE SERVICE STATION LTD.,501,Vehicle Repairs & Maintenance,East and Central Africa,,400191810,
DFID,DFID,22/12/2011,S.M.Shayo,581,Vehicle Repairs & Maintenance,East and Central Africa,,400193477,
DFID,DFID,22/12/2011,S.M.Shayo,872,Vehicle Repairs & Maintenance,East and Central Africa,,400193477,
DFID,DFID,01/12/2011,WHO (GENEVA),"300,000",Aid Programme - Voluntary contributions,East and Central Africa,,400189256,
DFID,DFID,12/12/2011,FAO,"1,029,300",Aid Programme - Voluntary contributions,East and Central Africa,,400191290,
DFID,DFID,15/12/2011,UNDP CONTRIBUTIONS ACCOUNT,"2,500,000",Aid Programme - Voluntary contributions,East and Central Africa,,400192263,
DFID,DFID,20/12/2011,THE WORLD BANK (IBRD ACCOUNT),"417,300",Aid Programme - Voluntary contributions,East and Central Africa,,400192722,
DFID,DFID,20/12/2011,UNDP MULTI-DONOR TRUST FUND OFFICE (USD) ACCOUNT,"750,000",Aid Programme - Voluntary contributions,East and Central Africa,,400192795,
DFID,DFID,20/12/2011,FAO (USD),"500,000",Aid Programme - Voluntary contributions,East and Central Africa,,400192797,
DFID,DFID,23/12/2011,UNOPS,"1,000,000",Aid Programme - Voluntary contributions,East and Central Africa,,400192946,
DFID,DFID,20/12/2011,UN OCHA,"500,000",Aid Programme - Voluntary contributions,East and Central Africa,,400192957,
DFID,DFID,29/12/2011,UNOPS,"240,000",Aid Programme - Voluntary contributions,East and Central Africa,,400192988,
DFID,DFID,20/12/2011,FAO,"30,000",Aid Programme - Voluntary contributions,East and Central Africa,,400193001,
DFID,DFID,29/12/2011,UNOPS,"75,000",Aid Programme - Voluntary contributions,East and Central Africa,,400193010,
DFID,DFID,07/12/2011,ELECTROGAZ,691,Water charges,East and Central Africa,,400190113,
DFID,DFID,07/12/2011,National Water and Sewerage Corp,705,Water charges,East and Central Africa,,400190498,
DFID,DFID,01/12/2011,Government Procurement Card,703,Contract & Agency Staff,Finance and Corporate Performance Division,,100049,
DFID,DFID,30/12/2011,Government Procurement Card,659,Contract & Agency Staff,Finance and Corporate Performance Division,,100050,
DFID,DFID,02/12/2011,MICHAEL PAGE INTERNATIONAL RECRUITMENT LIMITED,"1,103",Contract & Agency Staff,Finance and Corporate Performance Division,,400189390,
DFID,DFID,02/12/2011,Hays Specialist Recruitment Ltd,735,Contract & Agency Staff,Finance and Corporate Performance Division,,400189738,
DFID,DFID,05/12/2011,Hays Specialist Recruitment Ltd,551,Contract & Agency Staff,Finance and Corporate Performance Division,,400190018,
DFID,DFID,15/12/2011,Hays Specialist Recruitment Ltd,"1,628",Contract & Agency Staff,Finance and Corporate Performance Division,,400190052,
DFID,DFID,09/12/2011,Hays Specialist Recruitment Ltd,"1,562",Contract & Agency Staff,Finance and Corporate Performance Division,,400190067,
DFID,DFID,14/12/2011,MICHAEL PAGE INTERNATIONAL RECRUITMENT LIMITED,"1,379",Contract & Agency Staff,Finance and Corporate Performance Division,,400191881,
DFID,DFID,19/12/2011,MICHAEL PAGE INTERNATIONAL RECRUITMENT LIMITED,"1,170",Contract & Agency Staff,Finance and Corporate Performance Division,,400192646,
DFID,DFID,19/12/2011,MICHAEL PAGE INTERNATIONAL RECRUITMENT LIMITED,"1,379",Contract & Agency Staff,Finance and Corporate Performance Division,,400192758,
DFID,DFID,19/12/2011,MICHAEL PAGE INTERNATIONAL RECRUITMENT LIMITED,936,Contract & Agency Staff,Finance and Corporate Performance Division,,400192786,
DFID,DFID,19/12/2011,MICHAEL PAGE INTERNATIONAL RECRUITMENT LIMITED,"1,170",Contract & Agency Staff,Finance and Corporate Performance Division,,400192787,
DFID,DFID,19/12/2011,MICHAEL PAGE INTERNATIONAL RECRUITMENT LIMITED,"1,170",Contract & Agency Staff,Finance and Corporate Performance Division,,400192789,
DFID,DFID,20/12/2011,MICHAEL PAGE INTERNATIONAL RECRUITMENT LIMITED,"1,160",Contract & Agency Staff,Finance and Corporate Performance Division,,400192790,
DFID,DFID,21/12/2011,MICHAEL PAGE INTERNATIONAL RECRUITMENT LIMITED,"1,379",Contract & Agency Staff,Finance and Corporate Performance Division,,400193303,
DFID,DFID,21/12/2011,MICHAEL PAGE INTERNATIONAL RECRUITMENT LIMITED,"1,379",Contract & Agency Staff,Finance and Corporate Performance Division,,400193304,
DFID,DFID,23/12/2011,Hays Specialist Recruitment Ltd,735,Contract & Agency Staff,Finance and Corporate Performance Division,,400193727,
DFID,DFID,29/12/2011,Hays Specialist Recruitment Ltd,919,Contract & Agency Staff,Finance and Corporate Performance Division,,400193938,
DFID,DFID,30/12/2011,Hays Specialist Recruitment Ltd,919,Contract & Agency Staff,Finance and Corporate Performance Division,,400193996,
DFID,DFID,30/12/2011,Hays Specialist Recruitment Ltd,919,Contract & Agency Staff,Finance and Corporate Performance Division,,400193999,
DFID,DFID,13/12/2011,Recipient name withheld,565,Hotels - Accommodation only,Finance and Corporate Performance Division,,400191620,
DFID,DFID,15/12/2011,Recipient name withheld,604,Hotels - Accommodation only,Finance and Corporate Performance Division,,400192152,
DFID,DFID,05/12/2011,Crown Agents Govts and Admin,"2,560",Legal costs,Finance and Corporate Performance Division,,400188535,
DFID,DFID,05/12/2011,Crown Agents Govts and Admin,"1,715",Legal costs,Finance and Corporate Performance Division,,400188535,
DFID,DFID,16/12/2011,TSoL,948,Legal costs,Finance and Corporate Performance Division,,400191571,
DFID,DFID,02/12/2011,Government Actuary's Department,"5,329",Other Admin Costs,Finance and Corporate Performance Division,,400189336,
DFID,DFID,13/12/2011,THE WHITEHALL & INDUSTRY GROUP,"9,840",Recruitment costs,Finance and Corporate Performance Division,,400191518,
DFID,DFID,05/12/2011,Corporate Travel Provider,637,Air fares,Finance and Corporate Performance Division,,6000063,
DFID,DFID,05/12/2011,Corporate Travel Provider,"2,251",Air fares,Finance and Corporate Performance Division,,6000063,
DFID,DFID,16/12/2011,Corporate Travel Provider,557,Air fares,Finance and Corporate Performance Division,,6000064,
DFID,DFID,12/12/2011,Crown Agents Govts and Admin,"36,250",Technical and Advisory Services,Finance and Corporate Performance Division,,400191170,
DFID,DFID,29/12/2011,OXFORD POLICY MANAGEMENT,"2,550",Technical and Advisory Services,Finance and Corporate Performance Division,,400193925,
DFID,DFID,21/12/2011,INSTITUTE OF RISK MANAGEMENT,"1,360",Training - Course Fees,Finance and Corporate Performance Division,,400193326,
DFID,DFID,22/12/2011,EAST OF ENGLAND AMBULANCE SERVICE NH,509,Training - Course Fees,Finance and Corporate Performance Division,,400193540,
DFID,DFID,06/12/2011,WORLD CAREERS NETWORK PLC,"7,148",Computer software maintenance,"Human Resources,Security & Facilities Division",,400190269,
DFID,DFID,01/12/2011,Government Procurement Card,549,Contract & Agency Staff,"Human Resources,Security & Facilities Division",,100049,
DFID,DFID,01/12/2011,Government Procurement Card,501,Contract & Agency Staff,"Human Resources,Security & Facilities Division",,100049,
DFID,DFID,09/12/2011,MICHAEL PAGE INTERNATIONAL RECRUITMENT LIMITED,"1,160",Contract & Agency Staff,"Human Resources,Security & Facilities Division",,400190978,
DFID,DFID,15/12/2011,MICHAEL PAGE INTERNATIONAL RECRUITMENT LIMITED,"1,440",Contract & Agency Staff,"Human Resources,Security & Facilities Division",,400192301,
DFID,DFID,21/12/2011,MICHAEL PAGE INTERNATIONAL RECRUITMENT LIMITED,840,Contract & Agency Staff,"Human Resources,Security & Facilities Division",,400193315,
DFID,DFID,07/12/2011,EDF ENERGY,"31,261",Electricity cost Palace Street Office,"Human Resources,Security & Facilities Division",NOV 2011 SUPPLY Electricity Palace Street,400190062,
DFID,DFID,06/12/2011,EDF ENERGY,"14,974",Electricity,"Human Resources,Security & Facilities Division",,400190299,
DFID,DFID,05/12/2011,FCO SERVICES,"2,257",FCO shared service charges,"Human Resources,Security & Facilities Division",,400189381,
DFID,DFID,07/12/2011,CORONA ENERGY,"1,014",Gas,"Human Resources,Security & Facilities Division",,400188982,
DFID,DFID,28/12/2011,CORONA ENERGY,"1,929",Gas,"Human Resources,Security & Facilities Division",,400193764,
DFID,DFID,05/12/2011,Corporate Travel Provider,711,Hotels - Accommodation only,"Human Resources,Security & Facilities Division",,6000063,
DFID,DFID,05/12/2011,Corporate Travel Provider,510,Hotels - Accommodation only,"Human Resources,Security & Facilities Division",,6000063,
DFID,DFID,05/12/2011,Corporate Travel Provider,571,Hotels - Accommodation only,"Human Resources,Security & Facilities Division",,6000063,
DFID,DFID,05/12/2011,Corporate Travel Provider,660,Hotels - Accommodation only,"Human Resources,Security & Facilities Division",,6000063,
DFID,DFID,05/12/2011,Corporate Travel Provider,604,Hotels - Accommodation only,"Human Resources,Security & Facilities Division",,6000063,
DFID,DFID,05/12/2011,Corporate Travel Provider,571,Hotels - Accommodation only,"Human Resources,Security & Facilities Division",,6000063,
DFID,DFID,05/12/2011,Corporate Travel Provider,578,Hotels - Accommodation only,"Human Resources,Security & Facilities Division",,6000063,
DFID,DFID,16/12/2011,Corporate Travel Provider,"1,133",Hotels - Accommodation only,"Human Resources,Security & Facilities Division",,6000064,
DFID,DFID,16/12/2011,Corporate Travel Provider,513,Hotels - Accommodation only,"Human Resources,Security & Facilities Division",,6000064,
DFID,DFID,16/12/2011,TSoL,"17,060",Legal costs,"Human Resources,Security & Facilities Division",,400191571,
DFID,DFID,16/12/2011,TSoL,977,Legal costs,"Human Resources,Security & Facilities Division",,400191571,
DFID,DFID,30/12/2011,TREASURY SOLICITORS CASH ACC,"2,056",Legal costs,"Human Resources,Security & Facilities Division",,400193984,
DFID,DFID,30/12/2011,TREASURY SOLICITORS CASH ACC,930,Legal costs,"Human Resources,Security & Facilities Division",,400193984,
DFID,DFID,30/12/2011,Government Procurement Card,544,Office Equipment - Purchases,"Human Resources,Security & Facilities Division",,100050,
DFID,DFID,30/12/2011,Government Procurement Card,998,Office Equipment - Purchases,"Human Resources,Security & Facilities Division",,100050,
DFID,DFID,14/12/2011,Supplier name withheld,"1,311,421",Operating Lease rental of buildings,"Human Resources,Security & Facilities Division",QUARTERLY RENT 25/12/11 UNTIL 24/03/12 Palace Street,400191824,
DFID,DFID,15/12/2011,EMPLOYERS FORUM ON DISABILITY,"3,600",Professional member subscriptions,"Human Resources,Security & Facilities Division",,400192294,
DFID,DFID,12/12/2011,SOUTH LANARKSHIRE COUNCIL,"216,933",Property rates,"Human Resources,Security & Facilities Division",NON DOMESTIC RATES SECOND INSTALLMENT 2011/12,400191264,
DFID,DFID,06/12/2011,DISCLOSURE SCOTLAND,900,Recruitment costs,"Human Resources,Security & Facilities Division",,400189760,
DFID,DFID,15/12/2011,SHL Group LTD,593,Recruitment costs,"Human Resources,Security & Facilities Division",,400191445,
DFID,DFID,13/12/2011,SHL Group LTD,775,Recruitment costs,"Human Resources,Security & Facilities Division",,400191452,
DFID,DFID,13/12/2011,MITIE Technical Facilities Management Ltd,"11,242",Cleaning Costs,"Human Resources,Security & Facilities Division",,400191496,
DFID,DFID,13/12/2011,MITIE Technical Facilities Management Ltd,"20,186",Cleaning Costs,"Human Resources,Security & Facilities Division",,400191496,
DFID,DFID,13/12/2011,MITIE Technical Facilities Management Ltd,"9,184",Facilities Management payments,"Human Resources,Security & Facilities Division",,400191496,
DFID,DFID,13/12/2011,MITIE Technical Facilities Management Ltd,"15,742",Facilities Management payments,"Human Resources,Security & Facilities Division",,400191496,
DFID,DFID,06/12/2011,MITIE Technical Facilities Management Ltd,"4,671",Other Building Costs,"Human Resources,Security & Facilities Division",,400190424,
DFID,DFID,12/12/2011,MITIE Technical Facilities Management Ltd,"1,943",Other Building Costs,"Human Resources,Security & Facilities Division",,400190434,
DFID,DFID,12/12/2011,MITIE Technical Facilities Management Ltd,"2,936",Other Building Costs,"Human Resources,Security & Facilities Division",,400190440,
DFID,DFID,06/12/2011,MITIE Technical Facilities Management Ltd,"1,210",Other Building Costs,"Human Resources,Security & Facilities Division",,400190468,
DFID,DFID,07/12/2011,MITIE Technical Facilities Management Ltd,522,Other Building Costs,"Human Resources,Security & Facilities Division",,400190512,
DFID,DFID,07/12/2011,MITIE Technical Facilities Management Ltd,870,Other Building Costs,"Human Resources,Security & Facilities Division",,400190514,
DFID,DFID,07/12/2011,MITIE Technical Facilities Management Ltd,"5,766",Other Building Costs,"Human Resources,Security & Facilities Division",,400190515,
DFID,DFID,07/12/2011,MITIE Technical Facilities Management Ltd,"3,080",Other Building Costs,"Human Resources,Security & Facilities Division",,400190520,
DFID,DFID,07/12/2011,MITIE Technical Facilities Management Ltd,757,Other Building Costs,"Human Resources,Security & Facilities Division",,400190573,
DFID,DFID,07/12/2011,MITIE Technical Facilities Management Ltd,"2,379",Other Building Costs,"Human Resources,Security & Facilities Division",,400190575,
DFID,DFID,07/12/2011,MITIE Technical Facilities Management Ltd,"3,782",Other Building Costs,"Human Resources,Security & Facilities Division",,400190578,
DFID,DFID,07/12/2011,MITIE Technical Facilities Management Ltd,"1,698",Other Building Costs,"Human Resources,Security & Facilities Division",,400190581,
DFID,DFID,13/12/2011,MITIE Technical Facilities Management Ltd,742,Other Building Costs,"Human Resources,Security & Facilities Division",,400190904,
DFID,DFID,14/12/2011,Euan Weir Landscaping Ltd,"1,900",Other Building Costs,"Human Resources,Security & Facilities Division",,400190923,
DFID,DFID,16/12/2011,PITNEY BOWES LTD,550,Other Building Costs,"Human Resources,Security & Facilities Division",,400192470,
DFID,DFID,13/12/2011,MITIE Technical Facilities Management Ltd,"7,155","Repairs, Maint, Alter - Property & Constrct. Services","Human Resources,Security & Facilities Division",,400191496,
DFID,DFID,13/12/2011,MITIE Technical Facilities Management Ltd,"5,477","Repairs, Maint, Alter - Property & Constrct. Services","Human Resources,Security & Facilities Division",,400191496,
DFID,DFID,12/12/2011,SHANKS WASTE MANAGMENT LIMITED,969,"Repairs, Maint, Alter - Removal & waste disposal services","Human Resources,Security & Facilities Division",,400191053,
DFID,DFID,01/12/2011,Government Procurement Card,653,Reproduction & Printing Materials,"Human Resources,Security & Facilities Division",,100049,
DFID,DFID,01/12/2011,Government Procurement Card,653,Reproduction & Printing Materials,"Human Resources,Security & Facilities Division",,100049,
DFID,DFID,01/12/2011,Government Procurement Card,653,Reproduction & Printing Materials,"Human Resources,Security & Facilities Division",,100049,
DFID,DFID,01/12/2011,Government Procurement Card,653,Reproduction & Printing Materials,"Human Resources,Security & Facilities Division",,100049,
DFID,DFID,30/12/2011,Government Procurement Card,653,Reproduction & Printing Materials,"Human Resources,Security & Facilities Division",,100050,
DFID,DFID,30/12/2011,Government Procurement Card,544,Reproduction & Printing Materials,"Human Resources,Security & Facilities Division",,100050,
DFID,DFID,30/12/2011,Government Procurement Card,653,Reproduction & Printing Materials,"Human Resources,Security & Facilities Division",,100050,
DFID,DFID,02/12/2011,RICOH UK LTD,831,Reproduction & Printing Materials,"Human Resources,Security & Facilities Division",,400189795,
DFID,DFID,16/12/2011,RICOH UK LTD,676,Reproduction & Printing Materials,"Human Resources,Security & Facilities Division",,400192468,
DFID,DFID,21/12/2011,BANNER BUSINESS SUPPLIES LTD,"1,089",Reproduction & Printing Materials,"Human Resources,Security & Facilities Division",,400193257,
DFID,DFID,29/12/2011,RICOH UK LTD,"2,076",Reproduction & Printing Materials,"Human Resources,Security & Facilities Division",,400193917,
DFID,DFID,16/12/2011,Corporate Travel Provider,973,Air fares,"Human Resources,Security & Facilities Division",,6000064,
DFID,DFID,01/12/2011,Recipient name withheld,750,Air fares,"Human Resources,Security & Facilities Division",,400188944,
DFID,DFID,07/12/2011,CATHERINE ANDERSON,851,Air fares,"Human Resources,Security & Facilities Division",,400189012,
DFID,DFID,19/12/2011,Michael Schroll,"1,056",Air fares,"Human Resources,Security & Facilities Division",,400192125,
DFID,DFID,19/12/2011,Mathew Kurian,723,Air fares,"Human Resources,Security & Facilities Division",,400192602,
DFID,DFID,23/12/2011,Simon Rynn,901,Air fares,"Human Resources,Security & Facilities Division",,400192625,
DFID,DFID,23/12/2011,Marek Dalibor,557,Air fares,"Human Resources,Security & Facilities Division",,400192631,
DFID,DFID,30/12/2011,Robert John Palmer,763,Air fares,"Human Resources,Security & Facilities Division",,400192725,
DFID,DFID,02/12/2011,PRICEWATERHOUSECOOPERS,"39,465",Technical and Advisory Services,"Human Resources,Security & Facilities Division",,400189764,
DFID,DFID,06/12/2011,XAFINITY PAYMASTER,"5,807",Technical and Advisory Services,"Human Resources,Security & Facilities Division",,400190449,
DFID,DFID,13/12/2011,MITIE Technical Facilities Management Ltd,748,Technical and Advisory Services,"Human Resources,Security & Facilities Division",,400191496,
DFID,DFID,23/12/2011,MidlandHR,"18,778",Technical and Advisory Services,"Human Resources,Security & Facilities Division",,400193623,
DFID,DFID,30/12/2011,MidlandHR,"9,872",Technical and Advisory Services,"Human Resources,Security & Facilities Division",,400193705,
DFID,DFID,30/12/2011,MidlandHR,"8,775",Technical and Advisory Services,"Human Resources,Security & Facilities Division",,400193706,
DFID,DFID,30/12/2011,MidlandHR,"6,075",Technical and Advisory Services,"Human Resources,Security & Facilities Division",,400193707,
DFID,DFID,30/12/2011,MidlandHR,"18,778",Technical and Advisory Services,"Human Resources,Security & Facilities Division",,400193710,
DFID,DFID,29/12/2011,FCO RECOVERIES UNIT,"6,898",Technical and Advisory Services,"Human Resources,Security & Facilities Division",,400193953,
DFID,DFID,01/12/2011,Government Procurement Card,679,Training - Course Fees,"Human Resources,Security & Facilities Division",,100049,
DFID,DFID,01/12/2011,Government Procurement Card,"1,014",Training - Course Fees,"Human Resources,Security & Facilities Division",,100049,
DFID,DFID,16/12/2011,NATIONAL SCHOOL OF GOVERNMENT,"1,020",Training - Course Fees,"Human Resources,Security & Facilities Division",,400191399,
DFID,DFID,16/12/2011,NATIONAL SCHOOL OF GOVERNMENT,"1,020",Training - Course Fees,"Human Resources,Security & Facilities Division",,400191406,
DFID,DFID,14/12/2011,NATIONAL SCHOOL OF GOVERNMENT,"1,020",Training - Course Fees,"Human Resources,Security & Facilities Division",,400191943,
DFID,DFID,21/12/2011,NATIONAL SCHOOL OF GOVERNMENT,833,Training - Course Fees,"Human Resources,Security & Facilities Division",,400193444,
DFID,DFID,21/12/2011,NATIONAL SCHOOL OF GOVERNMENT,"1,210",Training - Course Fees,"Human Resources,Security & Facilities Division",,400193448,
DFID,DFID,23/12/2011,NATIONAL SCHOOL OF GOVERNMENT,"1,210",Training - Course Fees,"Human Resources,Security & Facilities Division",,400193450,
DFID,DFID,29/12/2011,NATIONAL SCHOOL OF GOVERNMENT,"7,850",Training - Course Fees,"Human Resources,Security & Facilities Division",,400193928,
DFID,DFID,01/12/2011,Government Procurement Card,755,Water charges,"Human Resources,Security & Facilities Division",,100049,
DFID,DFID,07/12/2011,BUSINESS STREAM,"9,004",Water charges,"Human Resources,Security & Facilities Division",,400190544,
DFID,DFID,20/12/2011,THAMES WATER UTILITIES LTD,"1,170",Water charges,"Human Resources,Security & Facilities Division",,400193044,
DFID,DFID,06/12/2011,University of Portsmouth Enterprise Limited,"1,250",Consultancy Services,Internal Audit,,400189730,
DFID,DFID,07/12/2011,CONTROL RISKS GROUP,"2,268",Hostile Environment Training,Internal Audit,,400190193,
DFID,DFID,06/12/2011,CONTROL RISKS GROUP,"3,641",Hostile Environment Training,Internal Audit,,400190261,
DFID,DFID,05/12/2011,Corporate Travel Provider,638,Hotels - Accommodation only,Internal Audit,,6000063,
DFID,DFID,05/12/2011,Corporate Travel Provider,638,Hotels - Accommodation only,Internal Audit,,6000063,
DFID,DFID,05/12/2011,Corporate Travel Provider,638,Hotels - Accommodation only,Internal Audit,,6000063,
DFID,DFID,05/12/2011,Corporate Travel Provider,638,Hotels - Accommodation only,Internal Audit,,6000063,
DFID,DFID,30/12/2011,UNIVERSITY OF PORTSMOUTH,760,Training - Course Fees,Internal Audit,,400193708,
DFID,DFID,14/12/2011,Crown Agents Govts and Admin,"1,526,651",Aid Programme - Accountable Grant Payments,International Finance Division,,400191775,
DFID,DFID,14/12/2011,INSPIRIS,"4,080",Consultancy Services,International Finance Division,,400191926,
DFID,DFID,09/12/2011,The World  Bank IBRD,"17,700,149",Aid Programme - Core contributions,International Finance Division,,400190254,
DFID,DFID,09/12/2011,The World  Bank IBRD,"2,257,554",Aid Programme - Core contributions,International Finance Division,,400190260,
DFID,DFID,13/12/2011,UN Global Compact,"80,000",Aid Programme - Core contributions,International Finance Division,,400190910,
DFID,DFID,14/12/2011,SG HAMBROS TRUST COMPANY LIMITED,"10,970,000",Aid Programme - Core contributions,International Finance Division,,400191795,
DFID,DFID,14/12/2011,Martin Dinham,"36,417",Aid Programme - Core contributions,International Finance Division,,400191809,
DFID,DFID,15/12/2011,IBRD HSBC T,"69,620,000",Aid Programme - Core contributions,International Finance Division,,400192268,
DFID,DFID,08/12/2011,Crown Agents Govts and Admin,"42,265",Aid Programme - Contributions to Debt Relief,International Finance Division,,400190663,
DFID,DFID,21/12/2011,INTERNATIONAL DEVELOPMENT ASSOCIATION 'B ACC',"65,610,000",Aid Programme - Contributions to Debt Relief,International Finance Division,,400193390,
DFID,DFID,29/12/2011,ECGD ACCOUNT,"4,809",Aid Programme - Contributions to Debt Relief,International Finance Division,,400193956,
DFID,DFID,28/12/2011,World Bank,"83,760,000",Encashment of Promissory Notes,International Finance Division,,400193803,
DFID,DFID,28/12/2011,World Bank,"32,890,000",Encashment of Promissory Notes,International Finance Division,,400193804,
DFID,DFID,22/12/2011,MITIE Catering Services Ltd,696,Entertainment & Hospitality,International Finance Division,,400191537,
DFID,DFID,01/12/2011,Government Procurement Card,"1,334",Hotels - Accommodation only,International Finance Division,,100049,
DFID,DFID,01/12/2011,Government Procurement Card,908,Hotels - Accommodation only,International Finance Division,,100049,
DFID,DFID,01/12/2011,Government Procurement Card,"1,508",Hotels - Accommodation only,International Finance Division,,100049,
DFID,DFID,01/12/2011,Government Procurement Card,"1,334",Hotels - Accommodation only,International Finance Division,,100049,
DFID,DFID,01/12/2011,Government Procurement Card,953,Hotels - Accommodation only,International Finance Division,,100049,
DFID,DFID,12/12/2011,Recipient name withheld,715,Hotels - Accommodation only,International Finance Division,,400191070,
DFID,DFID,01/12/2011,Government Procurement Card,675,Air fares,International Finance Division,,100049,
DFID,DFID,05/12/2011,Corporate Travel Provider,609,Air fares,International Finance Division,,6000063,
DFID,DFID,05/12/2011,Corporate Travel Provider,814,Air fares,International Finance Division,,6000063,
DFID,DFID,05/12/2011,Corporate Travel Provider,"2,867",Air fares,International Finance Division,,6000063,
DFID,DFID,05/12/2011,Corporate Travel Provider,506,Air fares,International Finance Division,,6000063,
DFID,DFID,05/12/2011,Corporate Travel Provider,579,Air fares,International Finance Division,,6000063,
DFID,DFID,05/12/2011,Corporate Travel Provider,"1,439",Air fares,International Finance Division,,6000063,
DFID,DFID,16/12/2011,Corporate Travel Provider,"1,956",Air fares,International Finance Division,,6000064,
DFID,DFID,16/12/2011,Corporate Travel Provider,722,Air fares,International Finance Division,,6000064,
DFID,DFID,16/12/2011,Corporate Travel Provider,"3,516",Air fares,International Finance Division,,6000064,
DFID,DFID,16/12/2011,Corporate Travel Provider,"1,057",Air fares,International Finance Division,,6000064,
DFID,DFID,16/12/2011,Corporate Travel Provider,751,Air fares,International Finance Division,,6000064,
DFID,DFID,16/12/2011,Corporate Travel Provider,"1,595",Air fares,International Finance Division,,6000064,
DFID,DFID,16/12/2011,Corporate Travel Provider,"1,235",Air fares,International Finance Division,,6000064,
DFID,DFID,08/12/2011,EMERGING MARKETS GROUP,"196,222",Technical and Advisory Services,International Finance Division,,400190407,
DFID,DFID,07/12/2011,EMERGING MARKETS GROUP,"4,800",Technical and Advisory Services,International Finance Division,,400190604,
DFID,DFID,19/12/2011,INSPIRIS,"6,000",Technical and Advisory Services,International Finance Division,,400191840,
DFID,DFID,16/12/2011,MAXWELL STAMP PLC,"5,781",Technical and Advisory Services,International Finance Division,,400192420,
DFID,DFID,16/12/2011,MAXWELL STAMP PLC,"13,747",Technical and Advisory Services,International Finance Division,,400192420,
DFID,DFID,16/12/2011,MAXWELL STAMP PLC,"63,373",Technical and Advisory Services,International Finance Division,,400192421,
DFID,DFID,16/12/2011,Nathan Associates London Ltd,"36,392",Technical and Advisory Services,International Finance Division,,400192422,
DFID,DFID,16/12/2011,Nathan Associates London Ltd,"1,310",Technical and Advisory Services,International Finance Division,,400192424,
DFID,DFID,16/12/2011,Nathan Associates London Ltd,"39,421",Technical and Advisory Services,International Finance Division,,400192447,
DFID,DFID,29/12/2011,PRICEWATERHOUSECOOPERS,"136,160",Technical and Advisory Services,International Finance Division,,400193929,
DFID,DFID,13/12/2011,Genius Within Ltd,600,Training - Course Fees,International Finance Division,,400191470,
DFID,DFID,29/12/2011,Roger Drew,"1,418",Training - Course Fees,International Finance Division,,400193923,
DFID,DFID,20/12/2011,UNESCO,"89,418",Aid Programme - Accountable Grant Payments,International Relations Division,,400193039,
DFID,DFID,02/12/2011,WILTON PARK,"2,333","Conferences, Seminars & Meeting/Event Resource",International Relations Division,,400189718,
DFID,DFID,07/12/2011,UN WOMEN,"5,000,000",Aid Programme - Core contributions,International Relations Division,,400190599,
DFID,DFID,22/12/2011,European Investment Bank (EIB),"10,577,115",Aid Programme - Core contributions,International Relations Division,,400192960,
DFID,DFID,22/12/2011,COMMISSION EUROPEAN COMMUNITY - DFID EURO ACCOUNT,"240,786,468",Aid Programme - Core contributions,International Relations Division,,400193004,
DFID,DFID,09/12/2011,Foreign & Commonwealth Office,657,Data Network - land lines,International Relations Division,,400190935,
DFID,DFID,19/12/2011,Foreign & Commonwealth Office,"5,762",FCO shared service charges,International Relations Division,,400192701,
DFID,DFID,19/12/2011,Foreign & Commonwealth Office,606,FCO shared service charges,International Relations Division,,400192701,
DFID,DFID,19/12/2011,Foreign & Commonwealth Office,"2,757",FCO shared service charges,International Relations Division,,400192701,
DFID,DFID,05/12/2011,Recipient name withheld,861,Hotels - Accommodation only,International Relations Division,,400189926,
DFID,DFID,12/12/2011,Recipient name withheld,"1,191",Hotels - Accommodation only,International Relations Division,,400191061,
DFID,DFID,09/12/2011,Supplier name withheld,860,Secure staff accommodation,International Relations Division,,400190996,
DFID,DFID,05/12/2011,Corporate Travel Provider,650,Air fares,International Relations Division,,6000063,
DFID,DFID,05/12/2011,Corporate Travel Provider,655,Air fares,International Relations Division,,6000063,
DFID,DFID,05/12/2011,Corporate Travel Provider,655,Air fares,International Relations Division,,6000063,
DFID,DFID,05/12/2011,Corporate Travel Provider,556,Air fares,International Relations Division,,6000063,
DFID,DFID,16/12/2011,Corporate Travel Provider,"1,103",Air fares,International Relations Division,,6000064,
DFID,DFID,02/12/2011,COFFEY INTERNATIONAL DEVELOPMENT LTD,"101,942",Technical and Advisory Services,International Relations Division,,400189751,
DFID,DFID,05/12/2011,COFFEY INTERNATIONAL DEVELOPMENT LTD,"29,892",Technical and Advisory Services,International Relations Division,,400189970,
DFID,DFID,09/12/2011,Foreign & Commonwealth Office,681,Technical and Advisory Services,International Relations Division,,400190935,
DFID,DFID,09/12/2011,Foreign & Commonwealth Office,764,Technical and Advisory Services,International Relations Division,,400190935,
DFID,DFID,14/12/2011,MOKORO LIMITED,"24,887",Technical and Advisory Services,International Relations Division,,400191235,
DFID,DFID,15/12/2011,PRICEWATERHOUSECOOPERS,"46,547",Technical and Advisory Services,International Relations Division,,400192246,
DFID,DFID,19/12/2011,Foreign & Commonwealth Office,521,Technical and Advisory Services,International Relations Division,,400192701,
DFID,DFID,19/12/2011,Foreign & Commonwealth Office,641,Technical and Advisory Services,International Relations Division,,400192701,
DFID,DFID,20/12/2011,Europartners Consulting Group,"29,648",Technical and Advisory Services,International Relations Division,,400192747,
DFID,DFID,20/12/2011,Europartners Consulting Group,"15,339",Technical and Advisory Services,International Relations Division,,400192796,
DFID,DFID,21/12/2011,HAREWELLE INTERNATIONAL LIMITED,"19,886",Technical and Advisory Services,International Relations Division,,400193301,
DFID,DFID,21/12/2011,PUBLIC ADMINISTRATION INTERN,"63,771",Technical and Advisory Services,International Relations Division,,400193311,
DFID,DFID,28/12/2011,ART OF LIVING,"2,760",Technical and Advisory Services,International Relations Division,,400193642,
DFID,DFID,23/12/2011,PUBLIC ADMINISTRATION INTERN,"8,099",Technical and Advisory Services,International Relations Division,,400193690,
DFID,DFID,19/12/2011,Foreign & Commonwealth Office,"1,238",Taxi costs,International Relations Division,,400192683,
DFID,DFID,13/12/2011,GATEWAY LANGUAGE SERVICES LTD,894,Training - Course Fees,International Relations Division,,400191624,
DFID,DFID,13/12/2011,Foreign & Commonwealth Office,"2,159",Training - Travel & Subsistence,International Relations Division,,400191551,
DFID,DFID,19/12/2011,  OECD,"668,990",Aid Programme - Voluntary contributions,International Relations Division,,400192257,
DFID,DFID,13/12/2011,BT BACS PAYMENTS,"1,593",other information and communication technologies,Joint Trade Policy Division,,400191491,
DFID,DFID,07/12/2011,CROWN RELOCATIONS  UK,"1,145",Relocation costs,Joint Trade Policy Division,,400189643,
DFID,DFID,02/12/2011,EUROPEAN FOREST INSTITUTE,"413,804",Aid Programme - Accountable Grant Payments,Policy Division,,400188507,
DFID,DFID,05/12/2011,Heath Action International,"68,570",Aid Programme - Accountable Grant Payments,Policy Division,,400189369,
DFID,DFID,02/12/2011,KPMG DEVELOPMENT SERVICE,"1,042,568",Aid Programme - Accountable Grant Payments,Policy Division,,400189762,
DFID,DFID,05/12/2011,WILTON PARK,"25,000",Aid Programme - Accountable Grant Payments,Policy Division,,400189810,
DFID,DFID,06/12/2011,The Rights & Resources Group,"828,802",Aid Programme - Accountable Grant Payments,Policy Division,,400190061,
DFID,DFID,06/12/2011,CMI MICHELSEN INSTITUTE,"34,000",Aid Programme - Accountable Grant Payments,Policy Division,,400190076,
DFID,DFID,06/12/2011,WELL GROUNDED LTD,"10,115",Aid Programme - Accountable Grant Payments,Policy Division,,400190107,
DFID,DFID,07/12/2011, Overseas Development Institute,"9,152",Aid Programme - Accountable Grant Payments,Policy Division,,400190702,
DFID,DFID,13/12/2011,Chinese Academy of Foretry ,"91,000",Aid Programme - Accountable Grant Payments,Policy Division,,400190922,
DFID,DFID,13/12/2011,ICAR (UK),"122,500",Aid Programme - Accountable Grant Payments,Policy Division,,400190942,
DFID,DFID,09/12/2011,KPMG DEVELOPMENT SERVICE,"948,727",Aid Programme - Accountable Grant Payments,Policy Division,,400190968,
DFID,DFID,13/12/2011,Africa Public Health Alliance,"14,617",Aid Programme - Accountable Grant Payments,Policy Division,,400191293,
DFID,DFID,14/12/2011,The Carter Center,"1,830,000",Aid Programme - Accountable Grant Payments,Policy Division,,400191440,
DFID,DFID,14/12/2011,NIKE FOUNDATION,"840,131",Aid Programme - Accountable Grant Payments,Policy Division,,400191517,
DFID,DFID,14/12/2011,THE ROYAL INSTITUTE OF INTERNATIONAL AFFAIRS,"84,500",Aid Programme - Accountable Grant Payments,Policy Division,,400191952,
DFID,DFID,14/12/2011,BOND,"78,530",Aid Programme - Accountable Grant Payments,Policy Division,,400191966,
DFID,DFID,28/12/2011,YAYASAN KEANEKARAGMAN HAYATI INDONESIA - KEHATI,"385,654",Aid Programme - Accountable Grant Payments,Policy Division,,400192111,
DFID,DFID,19/12/2011,The George Washington University,"103,359",Aid Programme - Accountable Grant Payments,Policy Division,,400192182,
DFID,DFID,22/12/2011,KPMG DEVELOPMENT SERVICE,"751,107",Aid Programme - Accountable Grant Payments,Policy Division,,400193629,
DFID,DFID,28/12/2011,COMIC RELIEF,"706,167",Aid Programme - Accountable Grant Payments,Policy Division,,400193802,
DFID,DFID,06/12/2011,Triple Line Consulting Limited,"442,393",Aid Programme - Challenge Fund payments,Policy Division,,400190415,
DFID,DFID,20/12/2011,Triple Line Consulting Limited,"212,791",Aid Programme - Challenge Fund payments,Policy Division,,400192880,
DFID,DFID,01/12/2011,Government Procurement Card,559,Contract & Agency Staff,Policy Division,,100049,
DFID,DFID,01/12/2011,Government Procurement Card,604,Contract & Agency Staff,Policy Division,,100049,
DFID,DFID,01/12/2011,Government Procurement Card,604,Contract & Agency Staff,Policy Division,,100049,
DFID,DFID,01/12/2011,Government Procurement Card,604,Contract & Agency Staff,Policy Division,,100049,
DFID,DFID,01/12/2011,Government Procurement Card,604,Contract & Agency Staff,Policy Division,,100049,
DFID,DFID,30/12/2011,Government Procurement Card,604,Contract & Agency Staff,Policy Division,,100050,
DFID,DFID,30/12/2011,Government Procurement Card,604,Contract & Agency Staff,Policy Division,,100050,
DFID,DFID,30/12/2011,Government Procurement Card,604,Contract & Agency Staff,Policy Division,,100050,
DFID,DFID,30/12/2011,Government Procurement Card,810,Contract & Agency Staff,Policy Division,,100050,
DFID,DFID,01/12/2011,Crown Agents Bank,"13,507",Contract & Agency Staff,Policy Division,,400189657,
DFID,DFID,06/12/2011,SOCIAL DEVELOPMENT DIRECT LTD,"9,648",Contract & Agency Staff,Policy Division,,400190241,
DFID,DFID,06/12/2011,WHO Human Reproduction Programme,"1,000,000",Aid Programme - Core contributions,Policy Division,,400190074,
DFID,DFID,05/12/2011,IBRD HSBC T,"200,000",Aid Programme - Core contributions,Policy Division,,400190100,
DFID,DFID,16/12/2011,Corporate Travel Provider,"1,047",Hotels - Accommodation only,Policy Division,,6000064,
DFID,DFID,01/12/2011,Recipient name withheld,514,Hotels - Accommodation only,Policy Division,,400189617,
DFID,DFID,05/12/2011,Recipient name withheld,755,Hotels - Accommodation only,Policy Division,,400189969,
DFID,DFID,05/12/2011,Recipient name withheld,815,Hotels - Accommodation only,Policy Division,,400189977,
DFID,DFID,08/12/2011,Recipient name withheld,588,Hotels - Accommodation only,Policy Division,,400190814,
DFID,DFID,08/12/2011,Recipient name withheld,515,Hotels - Accommodation only,Policy Division,,400190814,
DFID,DFID,09/12/2011,Recipient name withheld,624,Hotels - Accommodation only,Policy Division,,400190903,
DFID,DFID,13/12/2011,Recipient name withheld,524,Hotels - Accommodation only,Policy Division,,400191635,
DFID,DFID,05/12/2011,Crown Agents Govts and Admin,805,Legal costs,Policy Division,,400188535,
DFID,DFID,05/12/2011,Crown Agents Govts and Admin,717,Legal costs,Policy Division,,400188535,
DFID,DFID,05/12/2011,Crown Agents Govts and Admin,640,Legal costs,Policy Division,,400188535,
DFID,DFID,07/12/2011,PEOPLE IN AID LTD,"51,700",Aid Programme - Partnership Programme Arrangements,Policy Division,,400189304,
DFID,DFID,21/12/2011,PRACTICAL ACTION LTD,"722,765",Aid Programme - Partnership Programme Arrangements,Policy Division,,400192926,
DFID,DFID,29/12/2011,WORLD VISION UNITED KINGDOM,"984,441",Aid Programme - Partnership Programme Arrangements,Policy Division,,400193260,
DFID,DFID,29/12/2011,SIGHT SAVERS INTERNATIONAL,"934,670",Aid Programme - Partnership Programme Arrangements,Policy Division,,400193805,
DFID,DFID,29/12/2011,PROGRESSIO,"506,254",Aid Programme - Partnership Programme Arrangements,Policy Division,,400193807,
DFID,DFID,30/12/2011,TRANSPARENCY INTERNAT,"834,586",Aid Programme - Partnership Programme Arrangements,Policy Division,,400193808,
DFID,DFID,30/12/2011,PLAN INTERNATIONAL UK,"1,025,264",Aid Programme - Partnership Programme Arrangements,Policy Division,,400193810,
DFID,DFID,30/12/2011,HELPAGE INTERNATIONAL,"667,567",Aid Programme - Partnership Programme Arrangements,Policy Division,,400193871,
DFID,DFID,29/12/2011,SAVE THE CHILDREN,"2,352,166",Aid Programme - Partnership Programme Arrangements,Policy Division,,400193874,
DFID,DFID,29/12/2011,INTERNATIONAL ALERT,"434,790",Aid Programme - Partnership Programme Arrangements,Policy Division,,400193878,
DFID,DFID,30/12/2011,  Norwegian Refugee Council,"635,786",Aid Programme - Partnership Programme Arrangements,Policy Division,,400193879,
DFID,DFID,29/12/2011,WOMANKIND WORLDWIDE (JFS),"140,096",Aid Programme - Partnership Programme Arrangements,Policy Division,,400193882,
DFID,DFID,29/12/2011,MAPACTION,"37,790",Aid Programme - Partnership Programme Arrangements,Policy Division,,400193884,
DFID,DFID,29/12/2011,CHRISTIAN AID,"1,813,982",Aid Programme - Partnership Programme Arrangements,Policy Division,,400193949,
DFID,DFID,30/12/2011,BRITISH RED CROSS,"409,499",Aid Programme - Partnership Programme Arrangements,Policy Division,,400193958,
DFID,DFID,05/12/2011,Corporate Travel Provider,995,Air fares,Policy Division,,6000063,
DFID,DFID,05/12/2011,Corporate Travel Provider,789,Air fares,Policy Division,,6000063,
DFID,DFID,05/12/2011,Corporate Travel Provider,789,Air fares,Policy Division,,6000063,
DFID,DFID,05/12/2011,Corporate Travel Provider,839,Air fares,Policy Division,,6000063,
DFID,DFID,05/12/2011,Corporate Travel Provider,600,Air fares,Policy Division,,6000063,
DFID,DFID,05/12/2011,Corporate Travel Provider,647,Air fares,Policy Division,,6000063,
DFID,DFID,05/12/2011,Corporate Travel Provider,550,Air fares,Policy Division,,6000063,
DFID,DFID,05/12/2011,Corporate Travel Provider,556,Air fares,Policy Division,,6000063,
DFID,DFID,05/12/2011,Corporate Travel Provider,748,Air fares,Policy Division,,6000063,
DFID,DFID,05/12/2011,Corporate Travel Provider,"1,416",Air fares,Policy Division,,6000063,
DFID,DFID,05/12/2011,Corporate Travel Provider,963,Air fares,Policy Division,,6000063,
DFID,DFID,05/12/2011,Corporate Travel Provider,"2,666",Air fares,Policy Division,,6000063,
DFID,DFID,05/12/2011,Corporate Travel Provider,"1,326",Air fares,Policy Division,,6000063,
DFID,DFID,16/12/2011,Corporate Travel Provider,663,Air fares,Policy Division,,6000064,
DFID,DFID,16/12/2011,Corporate Travel Provider,"1,352",Air fares,Policy Division,,6000064,
DFID,DFID,16/12/2011,Corporate Travel Provider,551,Air fares,Policy Division,,6000064,
DFID,DFID,13/12/2011,VSO,"7,500,000",Aid Programme - Strategic Grant Arrangement payments,Policy Division,,400191479,
DFID,DFID,01/12/2011,HLSP LIMITED,"8,655",Technical and Advisory Services,Policy Division,,400189318,
DFID,DFID,02/12/2011,PRICEWATERHOUSECOOPERS,"61,742",Technical and Advisory Services,Policy Division,,400189733,
DFID,DFID,02/12/2011,PRICEWATERHOUSECOOPERS,"345,492",Technical and Advisory Services,Policy Division,,400189733,
DFID,DFID,02/12/2011,PRICEWATERHOUSECOOPERS,"50,266",Technical and Advisory Services,Policy Division,,400189733,
DFID,DFID,02/12/2011,HAREWELLE INTERNATIONAL LIMITED,"13,750",Technical and Advisory Services,Policy Division,,400189755,
DFID,DFID,07/12/2011,Perspectives GmbH,"45,000",Technical and Advisory Services,Policy Division,,400189955,
DFID,DFID,06/12/2011,Triple Line Consulting Limited,"43,597",Technical and Advisory Services,Policy Division,,400190125,
DFID,DFID,06/12/2011,Triple Line Consulting Limited,"7,909",Technical and Advisory Services,Policy Division,,400190125,
DFID,DFID,07/12/2011,LONDON SCHOOL OF ECONOMICS AND POLITICAL SCIENCE,"276,850",Technical and Advisory Services,Policy Division,,400190395,
DFID,DFID,07/12/2011,LONDON SCHOOL OF ECONOMICS AND POLITICAL SCIENCE,"493,470",Technical and Advisory Services,Policy Division,,400190395,
DFID,DFID,06/12/2011,UNITED NATIONS RESEARCH INSTITUTE FOR SOCIAL DEVELOPMENT (UNRISD),"25,000",Technical and Advisory Services,Policy Division,,400190418,
DFID,DFID,06/12/2011,Recipient name withheld,"13,297",Technical and Advisory Services,Policy Division,,400190442,
DFID,DFID,09/12/2011,HLSP LIMITED,"11,070",Technical and Advisory Services,Policy Division,,400190453,
DFID,DFID,07/12/2011,LONDON SCHOOL OF HYGIENE AND TR,"16,000",Technical and Advisory Services,Policy Division,,400190464,
DFID,DFID,06/12/2011,HAREWELLE INTERNATIONAL LIMITED,"2,750",Technical and Advisory Services,Policy Division,,400190467,
DFID,DFID,09/12/2011,Trevaylor Consulting,"3,759",Technical and Advisory Services,Policy Division,,400190794,
DFID,DFID,09/12/2011,Crown Agents Govts and Admin,"2,616",Technical and Advisory Services,Policy Division,,400190809,
DFID,DFID,09/12/2011,CAMBRIDGE ECONOMIC POLICY ASSOCIATES,"28,410",Technical and Advisory Services,Policy Division,,400190959,
DFID,DFID,13/12/2011,CAMBRIDGE ECONOMIC POLICY ASSOCIATES,"28,410",Technical and Advisory Services,Policy Division,,400190962,
DFID,DFID,12/12/2011,IMC Worldwide Ltd,"14,805",Technical and Advisory Services,Policy Division,,400191048,
DFID,DFID,16/12/2011,IMC Worldwide Ltd,"14,805",Technical and Advisory Services,Policy Division,,400191050,
DFID,DFID,12/12/2011,HAREWELLE INTERNATIONAL LIMITED,"5,335",Technical and Advisory Services,Policy Division,,400191262,
DFID,DFID,13/12/2011,TROPICAL HEALTH EDUCATION TRUST,"46,001",Technical and Advisory Services,Policy Division,,400191609,
DFID,DFID,14/12/2011,PRICEWATERHOUSECOOPERS,"41,888",Technical and Advisory Services,Policy Division,,400191782,
DFID,DFID,14/12/2011,PRICEWATERHOUSECOOPERS,"26,217",Technical and Advisory Services,Policy Division,,400191782,
DFID,DFID,14/12/2011,Triple Line Consulting Limited,"1,699,096",Technical and Advisory Services,Policy Division,,400191922,
DFID,DFID,20/12/2011,ANDREW ROBY,"24,607",Technical and Advisory Services,Policy Division,,400192011,
DFID,DFID,15/12/2011,PRICEWATERHOUSECOOPERS,"70,309",Technical and Advisory Services,Policy Division,,400192220,
DFID,DFID,15/12/2011,PRICEWATERHOUSECOOPERS,"183,891",Technical and Advisory Services,Policy Division,,400192220,
DFID,DFID,16/12/2011,TROPICAL HEALTH EDUCATION TRUST,"17,124",Technical and Advisory Services,Policy Division,,400192418,
DFID,DFID,20/12/2011,Crown Agents Govts and Admin,"35,711",Technical and Advisory Services,Policy Division,,400193068,
DFID,DFID,20/12/2011,Crown Agents Govts and Admin,853,Technical and Advisory Services,Policy Division,,400193070,
DFID,DFID,20/12/2011,Crown Agents Govts and Admin,"24,362",Technical and Advisory Services,Policy Division,,400193089,
DFID,DFID,21/12/2011,HLSP LIMITED,"25,621",Technical and Advisory Services,Policy Division,,400193231,
DFID,DFID,21/12/2011,HAREWELLE INTERNATIONAL LIMITED,"6,875",Technical and Advisory Services,Policy Division,,400193235,
DFID,DFID,21/12/2011,HAREWELLE INTERNATIONAL LIMITED,"8,370",Technical and Advisory Services,Policy Division,,400193266,
DFID,DFID,21/12/2011,HAREWELLE INTERNATIONAL LIMITED,"2,790",Technical and Advisory Services,Policy Division,,400193269,
DFID,DFID,29/12/2011,KPMG Development Services,"46,559",Technical and Advisory Services,Policy Division,,400193279,
DFID,DFID,21/12/2011,IMC Worldwide Ltd,"18,415",Technical and Advisory Services,Policy Division,,400193297,
DFID,DFID,23/12/2011,HLSP LIMITED,"5,748",Technical and Advisory Services,Policy Division,,400193318,
DFID,DFID,21/12/2011,HLSP LIMITED,"9,130",Technical and Advisory Services,Policy Division,,400193322,
DFID,DFID,21/12/2011,HLSP LTD,"23,152",Technical and Advisory Services,Policy Division,,400193351,
DFID,DFID,21/12/2011,HTSPE LTD,"104,244",Technical and Advisory Services,Policy Division,,400193404,
DFID,DFID,28/12/2011,Triple Line Consulting Limited,"7,232",Technical and Advisory Services,Policy Division,,400193761,
DFID,DFID,29/12/2011,Trevaylor Consulting,"3,644",Technical and Advisory Services,Policy Division,,400193843,
DFID,DFID,29/12/2011,HTSPE LTD,"2,828",Technical and Advisory Services,Policy Division,,400193913,
DFID,DFID,29/12/2011,Recipient name withheld,"9,408",Technical and Advisory Services,Policy Division,,400193915,
DFID,DFID,30/12/2011,IMPERIAL COLLEGE LONDON,"204,137",Technical and Advisory Services,Policy Division,,400193941,
DFID,DFID,29/12/2011,TRIPLE LINE CONSULTING LTD,"84,042",Technical and Advisory Services,Policy Division,,400193948,
DFID,DFID,30/12/2011,LONDON SCHOOL OF ECONOMICS AND POLITICAL SCIENCE,"62,669",Technical and Advisory Services,Policy Division,,400193990,
DFID,DFID,09/12/2011,HTSPE LTD,"4,685",Training Providers/Facilitation Services,Policy Division,,400190980,
DFID,DFID,15/12/2011,GOVNET COMMUNICATIONS,750,Training Providers/Facilitation Services,Policy Division,,400192305,
DFID,DFID,08/12/2011,UNOPS,"500,000",Aid Programme - Trust Funds contributions,Policy Division,,400190099,
DFID,DFID,12/12/2011,UNOPS,"1,300,000",Aid Programme - Trust Funds contributions,Policy Division,,400190915,
DFID,DFID,19/12/2011,IBRD HSBC T,"10,000,000",Aid Programme - Trust Funds contributions,Policy Division,,400192803,
DFID,DFID,22/12/2011,UNOPS,"150,000",Aid Programme - Trust Funds contributions,Policy Division,,400193435,
DFID,DFID,22/12/2011,UNOPS,"150,000",Aid Programme - Trust Funds contributions,Policy Division,,400193435,
DFID,DFID,02/12/2011,WHO (GENEVA),"599,999",Aid Programme - Voluntary contributions,Policy Division,,400188666,
DFID,DFID,02/12/2011,WHO (GENEVA),"1,000,001",Aid Programme - Voluntary contributions,Policy Division,,400188666,
DFID,DFID,01/12/2011,WHO (GENEVA),"1,500,000",Aid Programme - Voluntary contributions,Policy Division,,400188962,
DFID,DFID,01/12/2011,WHO (GENEVA),"500,000",Aid Programme - Voluntary contributions,Policy Division,,400189249,
DFID,DFID,12/12/2011,EUROPEAN FOREST INSTITUTE,"2,000,000",Aid Programme - Voluntary contributions,Policy Division,,400190900,
DFID,DFID,15/12/2011,EITI Secretariat,"175,000",Aid Programme - Voluntary contributions,Policy Division,,400191599,
DFID,DFID,19/12/2011,IBRD HSBC T,"50,000",Aid Programme - Voluntary contributions,Policy Division,,400192654,
DFID,DFID,20/12/2011,UNDP CONTRIBUTIONS GBP,"200,000",Aid Programme - Voluntary contributions,Policy Division,,400193079,
DFID,DFID,02/12/2011,INSTITUTE OF DEV  STUDIES UNIVER,"11,371",Aid Programme - Accountable Grant Payments,Research and Evidence Division,,400189771,
DFID,DFID,08/12/2011,Global Development Network,"205,000",Aid Programme - Accountable Grant Payments,Research and Evidence Division,,400190682,
DFID,DFID,13/12/2011,THE DEVELOPMENT STUDIES ASSOCIATION,"87,475",Aid Programme - Accountable Grant Payments,Research and Evidence Division,,400191475,
DFID,DFID,14/12/2011,World Federation of Science Journalists (GBP),"3,941",Aid Programme - Accountable Grant Payments,Research and Evidence Division,,400191488,
DFID,DFID,19/12/2011,Forschungsinstitut zur Zukunft der Arbeit GmbH,"34,239",Aid Programme - Accountable Grant Payments,Research and Evidence Division,,400192429,
DFID,DFID,19/12/2011,"3ie, Global Development Network","42,644",Aid Programme - Accountable Grant Payments,Research and Evidence Division,,400192433,
DFID,DFID,20/12/2011,OVERSEAS DEVELOPMENT INSTITUTE,"178,521",Aid Programme - Accountable Grant Payments,Research and Evidence Division,,400192883,
DFID,DFID,29/12/2011,GLOBAL DEVELOPMENT NETWORK (3ie),"1,359,500",Aid Programme - Accountable Grant Payments,Research and Evidence Division,,400193058,
DFID,DFID,29/12/2011,GLOBAL DEVELOPMENT NETWORK (3ie),"625,000",Aid Programme - Accountable Grant Payments,Research and Evidence Division,,400193058,
DFID,DFID,29/12/2011,SCIDEV.NET,"150,000",Aid Programme - Accountable Grant Payments,Research and Evidence Division,,400193942,
DFID,DFID,12/12/2011,EDENPARK HOTELS PVT LTD,"2,691","Conferences, Seminars & Meeting/Event Resource",Research and Evidence Division,,400191103,
DFID,DFID,28/12/2011,THE UK EVALUATION SOCIETY,"4,167","Conferences, Seminars & Meeting/Event Resource",Research and Evidence Division,,400193811,
DFID,DFID,01/12/2011,Government Procurement Card,686,Contract & Agency Staff,Research and Evidence Division,,100049,
DFID,DFID,01/12/2011,Government Procurement Card,664,Contract & Agency Staff,Research and Evidence Division,,100049,
DFID,DFID,01/12/2011,Government Procurement Card,813,Contract & Agency Staff,Research and Evidence Division,,100049,
DFID,DFID,01/12/2011,Government Procurement Card,555,Contract & Agency Staff,Research and Evidence Division,,100049,
DFID,DFID,01/12/2011,Government Procurement Card,742,Contract & Agency Staff,Research and Evidence Division,,100049,
DFID,DFID,01/12/2011,Government Procurement Card,"2,061",Contract & Agency Staff,Research and Evidence Division,,100049,
DFID,DFID,01/12/2011,Government Procurement Card,593,Contract & Agency Staff,Research and Evidence Division,,100049,
DFID,DFID,01/12/2011,Government Procurement Card,778,Contract & Agency Staff,Research and Evidence Division,,100049,
DFID,DFID,01/12/2011,Government Procurement Card,565,Contract & Agency Staff,Research and Evidence Division,,100049,
DFID,DFID,01/12/2011,Government Procurement Card,698,Contract & Agency Staff,Research and Evidence Division,,100049,
DFID,DFID,01/12/2011,Government Procurement Card,558,Contract & Agency Staff,Research and Evidence Division,,100049,
DFID,DFID,01/12/2011,Government Procurement Card,724,Contract & Agency Staff,Research and Evidence Division,,100049,
DFID,DFID,01/12/2011,Government Procurement Card,576,Contract & Agency Staff,Research and Evidence Division,,100049,
DFID,DFID,01/12/2011,Government Procurement Card,576,Contract & Agency Staff,Research and Evidence Division,,100049,
DFID,DFID,01/12/2011,Government Procurement Card,576,Contract & Agency Staff,Research and Evidence Division,,100049,
DFID,DFID,01/12/2011,Government Procurement Card,576,Contract & Agency Staff,Research and Evidence Division,,100049,
DFID,DFID,01/12/2011,Government Procurement Card,576,Contract & Agency Staff,Research and Evidence Division,,100049,
DFID,DFID,01/12/2011,Government Procurement Card,576,Contract & Agency Staff,Research and Evidence Division,,100049,
DFID,DFID,30/12/2011,Government Procurement Card,576,Contract & Agency Staff,Research and Evidence Division,,100050,
DFID,DFID,30/12/2011,Government Procurement Card,998,Contract & Agency Staff,Research and Evidence Division,,100050,
DFID,DFID,30/12/2011,Government Procurement Card,749,Contract & Agency Staff,Research and Evidence Division,,100050,
DFID,DFID,30/12/2011,Government Procurement Card,663,Contract & Agency Staff,Research and Evidence Division,,100050,
DFID,DFID,30/12/2011,Government Procurement Card,544,Contract & Agency Staff,Research and Evidence Division,,100050,
DFID,DFID,30/12/2011,Government Procurement Card,818,Contract & Agency Staff,Research and Evidence Division,,100050,
DFID,DFID,30/12/2011,Government Procurement Card,690,Contract & Agency Staff,Research and Evidence Division,,100050,
DFID,DFID,06/12/2011,The World Bank (EFO),"75,000",Aid Programme - Core contributions,Research and Evidence Division,,400189213,
DFID,DFID,07/12/2011,The World Bank (EFO),"100,000",Aid Programme - Core contributions,Research and Evidence Division,,400189742,
DFID,DFID,09/12/2011,Medicines for Malaria Venture,"3,200,000",Aid Programme - Core contributions,Research and Evidence Division,,400190812,
DFID,DFID,12/12/2011,WHO Human Reproduction Programme,"1,500,000",Aid Programme - Core contributions,Research and Evidence Division,,400190908,
DFID,DFID,14/12/2011,IFPRI,"10,000,000",Aid Programme - Core contributions,Research and Evidence Division,,400191589,
DFID,DFID,15/12/2011,WHO (GENEVA),"1,000,000",Aid Programme - Core contributions,Research and Evidence Division,,400191779,
DFID,DFID,23/12/2011,Drugs for Neglected Diseases Initiative,"1,750,000",Aid Programme - Core contributions,Research and Evidence Division,,400192953,
DFID,DFID,23/12/2011,The Foundation for Innovative Diagnostics (FIND),"1,200,000",Aid Programme - Core contributions,Research and Evidence Division,,400193073,
DFID,DFID,30/12/2011,WHO (GENEVA),"1,000,000",Aid Programme - Core contributions,Research and Evidence Division,,400193824,
DFID,DFID,01/12/2011,Government Procurement Card,575,Government Car Scheme UK,Research and Evidence Division,,100049,
DFID,DFID,21/12/2011,JAYPEE VASANT CONTINENTAL,535,Hotels - Accommodation only,Research and Evidence Division,,400193138,
DFID,DFID,22/12/2011,Fairview Hotel,534,Hotels - Accommodation only,Research and Evidence Division,,400193524,
DFID,DFID,06/12/2011, OECD,"175,000",Aid Programme - Joint programme contribution,Research and Evidence Division,,400190277,
DFID,DFID,02/12/2011,LONDON SCHOOL OF ECONOMICS AND POLITICAL SCIENCE,"120,393",Research & Development costs,Research and Evidence Division,,400189711,
DFID,DFID,07/12/2011,Research into Results Ltd,"208,086",Research & Development costs,Research and Evidence Division,,400190071,
DFID,DFID,07/12/2011,Research into Results Ltd,"287,383",Research & Development costs,Research and Evidence Division,,400190071,
DFID,DFID,08/12/2011,University of Cape Town,"288,889",Research & Development costs,Research and Evidence Division,,400190098,
DFID,DFID,12/12/2011,Crown Agents Bank,"89,307",Research & Development costs,Research and Evidence Division,,400190281,
DFID,DFID,07/12/2011,LONDON SCHOOL OF HYGIENE AND TR,"240,192",Research & Development costs,Research and Evidence Division,,400190690,
DFID,DFID,12/12/2011,LEONARD CHESHIRE DISABILITY,"47,809",Research & Development costs,Research and Evidence Division,,400190963,
DFID,DFID,14/12/2011,Hendrix College,"19,777",Research & Development costs,Research and Evidence Division,,400191280,
DFID,DFID,13/12/2011,CRANFIELD UNIVERSITY,"4,620",Research & Development costs,Research and Evidence Division,,400191587,
DFID,DFID,14/12/2011,UNIVERSITY OF LEEDS,"31,248",Research & Development costs,Research and Evidence Division,,400191846,
DFID,DFID,14/12/2011,THE UNIVERSITY OF GREENWICH,"5,123",Research & Development costs,Research and Evidence Division,,400191872,
DFID,DFID,16/12/2011,Population Council,"110,167",Research & Development costs,Research and Evidence Division,,400192057,
DFID,DFID,15/12/2011,GBS Re DFID Third Party Monies,"3,389",Research & Development costs,Research and Evidence Division,,400192131,
DFID,DFID,21/12/2011,INSTITUTE OF DEVELOPMENT STUDIES,"15,475",Research & Development costs,Research and Evidence Division,,400193281,
DFID,DFID,21/12/2011,INSTITUTE OF DEVELOPMENT STUDIES,"89,975",Research & Development costs,Research and Evidence Division,,400193281,
DFID,DFID,28/12/2011, University Of Oxford,"228,159",Research & Development costs,Research and Evidence Division,,400193797,
DFID,DFID,28/12/2011, University Of Oxford,"483,567",Research & Development costs,Research and Evidence Division,,400193798,
DFID,DFID,30/12/2011,Innovations for Poverty Action,"6,709",Research & Development costs,Research and Evidence Division,,400193817,
DFID,DFID,30/12/2011,Innovations for Poverty Action,"1,999",Research & Development costs,Research and Evidence Division,,400193817,
DFID,DFID,29/12/2011,THE UNIVERSITY OF MANCHESTER,"239,152",Research & Development costs,Research and Evidence Division,,400193931,
DFID,DFID,30/12/2011, Overseas Development Institute,"839,470",Research & Development costs,Research and Evidence Division,,400193991,
DFID,DFID,05/12/2011,Corporate Travel Provider,693,Air fares,Research and Evidence Division,,6000063,
DFID,DFID,05/12/2011,Corporate Travel Provider,718,Air fares,Research and Evidence Division,,6000063,
DFID,DFID,05/12/2011,Corporate Travel Provider,940,Air fares,Research and Evidence Division,,6000063,
DFID,DFID,05/12/2011,Corporate Travel Provider,868,Air fares,Research and Evidence Division,,6000063,
DFID,DFID,16/12/2011,Corporate Travel Provider,593,Air fares,Research and Evidence Division,,6000064,
DFID,DFID,16/12/2011,Corporate Travel Provider,772,Air fares,Research and Evidence Division,,6000064,
DFID,DFID,16/12/2011,Corporate Travel Provider,"1,003",Air fares,Research and Evidence Division,,6000064,
DFID,DFID,16/12/2011,Corporate Travel Provider,"1,192",Air fares,Research and Evidence Division,,6000064,
DFID,DFID,16/12/2011,Corporate Travel Provider,686,Air fares,Research and Evidence Division,,6000064,
DFID,DFID,16/12/2011,Corporate Travel Provider,812,Air fares,Research and Evidence Division,,6000064,
DFID,DFID,16/12/2011,Corporate Travel Provider,601,Air fares,Research and Evidence Division,,6000064,
DFID,DFID,13/12/2011,Corporate Travel Provider,"2,357",Air fares,Research and Evidence Division,,400191551,
DFID,DFID,01/12/2011,Government Procurement Card,783,Subscriptions,Research and Evidence Division,,100049,
DFID,DFID,01/12/2011,AAAS/SCIENCE,"2,799",Subscriptions,Research and Evidence Division,,400189320,
DFID,DFID,02/12/2011,NATURE PUBLISHING GROUP,672,Subscriptions,Research and Evidence Division,,400189809,
DFID,DFID,02/12/2011,NATURE PUBLISHING GROUP,"5,500",Subscriptions,Research and Evidence Division,,400189816,
DFID,DFID,21/12/2011,Supplier name withheld,"49,265",Subscriptions,Research and Evidence Division,"E-Library Subscription. A searchable database provided via the eLibrary which includes peer reviewed journals, conference proceedings, book series and quality web sources covering various DFID related areas",400191424,
DFID,DFID,21/12/2011,SAGE PUBLICATIONS LTD,"2,303",Subscriptions,Research and Evidence Division,,400193440,
DFID,DFID,29/12/2011,Supplier name withheld,"44,337",Subscriptions,Research and Evidence Division,E-Library subscription. A collection of subject journals (related to DFID priorities and the professional families/groups) ,400193636,
DFID,DFID,02/12/2011,PRICEWATERHOUSECOOPERS,"305,198",Technical and Advisory Services,Research and Evidence Division,,400189733,
DFID,DFID,02/12/2011,HAREWELLE INTERNATIONAL LIMITED,"3,825",Technical and Advisory Services,Research and Evidence Division,,400189774,
DFID,DFID,06/12/2011,Martin Prowse,"1,660",Technical and Advisory Services,Research and Evidence Division,,400190273,
DFID,DFID,06/12/2011,HAREWELLE INTERNATIONAL LIMITED,"2,750",Technical and Advisory Services,Research and Evidence Division,,400190467,
DFID,DFID,13/12/2011,Foreign & Commonwealth Office,"1,189",Technical and Advisory Services,Research and Evidence Division,,400191551,
DFID,DFID,13/12/2011,Foreign & Commonwealth Office,"11,805",Technical and Advisory Services,Research and Evidence Division,,400191551,
DFID,DFID,13/12/2011,CAB INTERNATIONAL,"29,015",Technical and Advisory Services,Research and Evidence Division,,400191610,
DFID,DFID,14/12/2011,ATTENDA LIMITED,"2,376",Technical and Advisory Services,Research and Evidence Division,,400191623,
DFID,DFID,14/12/2011,PRICEWATERHOUSECOOPERS,"75,399",Technical and Advisory Services,Research and Evidence Division,,400191782,
DFID,DFID,15/12/2011,PRICEWATERHOUSECOOPERS,"275,837",Technical and Advisory Services,Research and Evidence Division,,400192220,
DFID,DFID,15/12/2011,GRM INTERNATIONAL LTD,"71,000",Technical and Advisory Services,Research and Evidence Division,,400192229,
DFID,DFID,16/12/2011,CAB INTERNATIONAL,"31,636",Technical and Advisory Services,Research and Evidence Division,,400192410,
DFID,DFID,20/12/2011,IOD PARC,"5,122",Technical and Advisory Services,Research and Evidence Division,,400192874,
DFID,DFID,20/12/2011, University Of Oxford,"100,000",Technical and Advisory Services,Research and Evidence Division,,400192881,
DFID,DFID,20/12/2011,IOD PARC,"16,306",Technical and Advisory Services,Research and Evidence Division,,400193017,
DFID,DFID,20/12/2011,critical faculty,"7,000",Technical and Advisory Services,Research and Evidence Division,,400193029,
DFID,DFID,20/12/2011,Crown Agents Govts and Admin,"44,115",Technical and Advisory Services,Research and Evidence Division,,400193059,
DFID,DFID,21/12/2011,SAFERWORLD,"16,789",Technical and Advisory Services,Research and Evidence Division,,400193277,
DFID,DFID,29/12/2011, Dr Alan Roe ,"28,379",Technical and Advisory Services,Research and Evidence Division,,400193755,
DFID,DFID,28/12/2011,CfBT,"143,811",Technical and Advisory Services,Research and Evidence Division,,400193799,
DFID,DFID,12/12/2011,UNIVERSITY OF SOUTHAMPTON,640,Training - Course Fees,Research and Evidence Division,,400191255,
DFID,DFID,12/12/2011,UNIVERSITY OF SOUTHAMPTON,640,Training - Course Fees,Research and Evidence Division,,400191258,
DFID,DFID,12/12/2011,UNIVERSITY OF SOUTHAMPTON,640,Training - Course Fees,Research and Evidence Division,,400191261,
DFID,DFID,19/12/2011,7city Learning,"2,075",Training - Course Fees,Research and Evidence Division,,400192596,
DFID,DFID,07/12/2011,CONTROL RISKS GROUP,"1,134",Training Providers/Facilitation Services,Research and Evidence Division,,400190193,
DFID,DFID,14/12/2011,IBRD HSBC T,"15,000,000",Aid Programme - Trust Funds contributions,Research and Evidence Division,,400191822,
DFID,DFID,19/12/2011,IBRD HSBC T,"2,000,000",Aid Programme - Trust Funds contributions,Research and Evidence Division,,400192803,
DFID,DFID,29/12/2011,IBRD HSBC T,"560,000",Aid Programme - Trust Funds contributions,Research and Evidence Division,,400193971,
DFID,DFID,30/12/2011,IBRD HSBC T,"440,000",Aid Programme - Trust Funds contributions,Research and Evidence Division,,400193980,
DFID,DFID,09/12/2011, Overseas Development Institute,672,Other travel costs,Research and Evidence Division,,400190547,
DFID,DFID,02/12/2011,International Monetary Fund (GBP),"430,000",Aid Programme - Voluntary contributions,Research and Evidence Division,,400189725,
DFID,DFID,07/12/2011,Carnegie Endowment for International Peace,"75,000",Aid Programme - Accountable Grant Payments,Security & Humanitarian and Middle East Division,,400190217,
DFID,DFID,08/12/2011,International Crisis Group,"170,000",Aid Programme - Accountable Grant Payments,Security & Humanitarian and Middle East Division,,400190458,
DFID,DFID,15/12/2011, Norwegian Refugee Council,"281,394",Aid Programme - Accountable Grant Payments,Security & Humanitarian and Middle East Division,,400191786,
DFID,DFID,15/12/2011, Norwegian Refugee Council,"327,918",Aid Programme - Accountable Grant Payments,Security & Humanitarian and Middle East Division,,400191804,
DFID,DFID,15/12/2011,CARE INTERNATIONAL,"669,686",Aid Programme - Accountable Grant Payments,Security & Humanitarian and Middle East Division,,400192238,
DFID,DFID,02/12/2011,WILTON PARK,800,"Conferences, Seminars & Meeting/Event Resource",Security & Humanitarian and Middle East Division,,400189757,
DFID,DFID,09/12/2011,Swank Audio Visuals,"2,410","Conferences, Seminars & Meeting/Event Resource",Security & Humanitarian and Middle East Division,,400190894,
DFID,DFID,19/12/2011,Ghion Hotel Enterprise,"4,295","Conferences, Seminars & Meeting/Event Resource",Security & Humanitarian and Middle East Division,,400192760,
DFID,DFID,09/12/2011,Foreign & Commonwealth Office,510,Consultancy Services,Security & Humanitarian and Middle East Division,,400190996,
DFID,DFID,16/12/2011,COFFEY INTERNATIONAL DEVELOPMENT LTD,"10,000",Consultancy Services,Security & Humanitarian and Middle East Division,,400191478,
DFID,DFID,01/12/2011,Government Procurement Card,624,Contract & Agency Staff,Security & Humanitarian and Middle East Division,,100049,
DFID,DFID,01/12/2011,Government Procurement Card,546,Contract & Agency Staff,Security & Humanitarian and Middle East Division,,100049,
DFID,DFID,30/12/2011,Government Procurement Card,589,Contract & Agency Staff,Security & Humanitarian and Middle East Division,,100050,
DFID,DFID,30/12/2011,Government Procurement Card,"1,179",Contract & Agency Staff,Security & Humanitarian and Middle East Division,,100050,
DFID,DFID,30/12/2011,Government Procurement Card,504,Contract & Agency Staff,Security & Humanitarian and Middle East Division,,100050,
DFID,DFID,30/12/2011,Government Procurement Card,504,Contract & Agency Staff,Security & Humanitarian and Middle East Division,,100050,
DFID,DFID,30/12/2011,Government Procurement Card,518,Contract & Agency Staff,Security & Humanitarian and Middle East Division,,100050,
DFID,DFID,01/12/2011,Crown Agents Govts and Admin,"7,332",Contract & Agency Staff,Security & Humanitarian and Middle East Division,,400189377,
DFID,DFID,02/12/2011,Crown Agents Govts and Admin,"11,844",Contract & Agency Staff,Security & Humanitarian and Middle East Division,,400189379,
DFID,DFID,23/12/2011,Crown Agents Govts and Admin,"1,520",Contract & Agency Staff,Security & Humanitarian and Middle East Division,,400193429,
DFID,DFID,21/12/2011,Crown Agents Govts and Admin,"15,358",Contract & Agency Staff,Security & Humanitarian and Middle East Division,,400193431,
DFID,DFID,01/12/2011, UNHCR,"39,000,000",Aid Programme - Core contributions,Security & Humanitarian and Middle East Division,,400189340,
DFID,DFID,12/12/2011,UN RELIEF AND WORKS AGENCY,"7,250,000",Aid Programme - Core contributions,Security & Humanitarian and Middle East Division,,400190988,
DFID,DFID,15/12/2011,THE INTERNATIONAL COMMITTEE OF THE RED CROSS (ICRC),"20,000,000",Aid Programme - Core contributions,Security & Humanitarian and Middle East Division,,400191836,
DFID,DFID,23/12/2011,MPTF Office PBF,"5,500,000",Aid Programme - Core contributions,Security & Humanitarian and Middle East Division,,400193019,
DFID,DFID,30/12/2011,FCO SERVICES,"6,750",FCO shared service charges,Security & Humanitarian and Middle East Division,,400193957,
DFID,DFID,09/12/2011,Foreign & Commonwealth Office,"1,237",Furniture & Fittings,Security & Humanitarian and Middle East Division,,400190996,
DFID,DFID,13/12/2011,Foreign & Commonwealth Office,724,Furniture & Fittings,Security & Humanitarian and Middle East Division,,400191551,
DFID,DFID,13/12/2011,Foreign & Commonwealth Office,603,Furniture & Fittings,Security & Humanitarian and Middle East Division,,400191551,
DFID,DFID,13/12/2011,Foreign & Commonwealth Office,638,Furniture & Fittings,Security & Humanitarian and Middle East Division,,400191551,
DFID,DFID,13/12/2011,Foreign & Commonwealth Office,982,Furniture & Fittings,Security & Humanitarian and Middle East Division,,400191551,
DFID,DFID,09/12/2011,Crown Agents Govts and Admin,"3,517",Hostile Environment Training,Security & Humanitarian and Middle East Division,,400189804,
DFID,DFID,09/12/2011,Crown Agents Govts and Admin,"7,033",Hostile Environment Training,Security & Humanitarian and Middle East Division,,400189804,
DFID,DFID,05/12/2011,Corporate Travel Provider,578,Hotels - Accommodation only,Security & Humanitarian and Middle East Division,,6000063,
DFID,DFID,06/12/2011,Recipient name withheld,611,Hotels - Accommodation only,Security & Humanitarian and Middle East Division,,400190384,
DFID,DFID,06/12/2011,Recipient name withheld,522,Hotels - Accommodation only,Security & Humanitarian and Middle East Division,,400190384,
DFID,DFID,09/12/2011,Recipient name withheld,"1,286",Hotels - Accommodation only,Security & Humanitarian and Middle East Division,,400190933,
DFID,DFID,09/12/2011,Recipient name withheld,"1,470",Hotels - Accommodation only,Security & Humanitarian and Middle East Division,,400190933,
DFID,DFID,12/12/2011,Recipient name withheld,599,Hotels - Accommodation only,Security & Humanitarian and Middle East Division,,400191301,
DFID,DFID,16/12/2011,Recipient name withheld,505,Hotels - Accommodation only,Security & Humanitarian and Middle East Division,,400192496,
DFID,DFID,13/12/2011,Supplier name withheld,"20,549",Secure staff accommodation,Security & Humanitarian and Middle East Division,,400191551,
DFID,DFID,02/12/2011,Crown Agents Govts and Admin,"5,856",Aid Programme - Humanitarian Material Relief Assistance and Services,Security & Humanitarian and Middle East Division,,400189753,
DFID,DFID,02/12/2011,MINES ADVISORY GROUP,"369,731",Aid Programme - Humanitarian Material Relief Assistance and Services,Security & Humanitarian and Middle East Division,,400189813,
DFID,DFID,14/12/2011,Crown Agents Govts and Admin,"53,552",Aid Programme - Humanitarian Material Relief Assistance and Services,Security & Humanitarian and Middle East Division,,400190084,
DFID,DFID,14/12/2011,Crown Agents Govts and Admin,"7,603",Aid Programme - Humanitarian Material Relief Assistance and Services,Security & Humanitarian and Middle East Division,,400190084,
DFID,DFID,06/12/2011,Crown Agents Govts and Admin,"9,423",Aid Programme - Humanitarian Material Relief Assistance and Services,Security & Humanitarian and Middle East Division,,400190116,
DFID,DFID,13/12/2011,Crown Agents Govts and Admin,"122,561",Aid Programme - Humanitarian Material Relief Assistance and Services,Security & Humanitarian and Middle East Division,,400191242,
DFID,DFID,15/12/2011,   UNOPS,"67,830",Aid Programme - Humanitarian Material Relief Assistance and Services,Security & Humanitarian and Middle East Division,,400192290,
DFID,DFID,16/12/2011,SOCIAL DEVELOPMENT FUND,"1,250,000",Aid Programme - Joint programme contribution,Security & Humanitarian and Middle East Division,,400192147,
DFID,DFID,20/12/2011, Social Fund for Development ,"3,500,000",Aid Programme - Joint programme contribution,Security & Humanitarian and Middle East Division,,400192616,
DFID,DFID,21/12/2011,UNDP MULTI-DONOR TRUST FUND OFFICE (USD) ACCOUNT,"14,572,500",Aid Programme - Pooled/Basket funding,Security & Humanitarian and Middle East Division,,400192690,
DFID,DFID,01/12/2011,Government Procurement Card,610,Air fares,Security & Humanitarian and Middle East Division,,100049,
DFID,DFID,01/12/2011,Government Procurement Card,566,Air fares,Security & Humanitarian and Middle East Division,,100049,
DFID,DFID,05/12/2011,Corporate Travel Provider,606,Air fares,Security & Humanitarian and Middle East Division,,6000063,
DFID,DFID,05/12/2011,Corporate Travel Provider,637,Air fares,Security & Humanitarian and Middle East Division,,6000063,
DFID,DFID,05/12/2011,Corporate Travel Provider,543,Air fares,Security & Humanitarian and Middle East Division,,6000063,
DFID,DFID,05/12/2011,Corporate Travel Provider,"1,406",Air fares,Security & Humanitarian and Middle East Division,,6000063,
DFID,DFID,05/12/2011,Corporate Travel Provider,"1,521",Air fares,Security & Humanitarian and Middle East Division,,6000063,
DFID,DFID,05/12/2011,Corporate Travel Provider,605,Air fares,Security & Humanitarian and Middle East Division,,6000063,
DFID,DFID,05/12/2011,Corporate Travel Provider,556,Air fares,Security & Humanitarian and Middle East Division,,6000063,
DFID,DFID,05/12/2011,Corporate Travel Provider,866,Air fares,Security & Humanitarian and Middle East Division,,6000063,
DFID,DFID,05/12/2011,Corporate Travel Provider,651,Air fares,Security & Humanitarian and Middle East Division,,6000063,
DFID,DFID,05/12/2011,Corporate Travel Provider,556,Air fares,Security & Humanitarian and Middle East Division,,6000063,
DFID,DFID,05/12/2011,Corporate Travel Provider,541,Air fares,Security & Humanitarian and Middle East Division,,6000063,
DFID,DFID,05/12/2011,Corporate Travel Provider,556,Air fares,Security & Humanitarian and Middle East Division,,6000063,
DFID,DFID,05/12/2011,Corporate Travel Provider,556,Air fares,Security & Humanitarian and Middle East Division,,6000063,
DFID,DFID,16/12/2011,Corporate Travel Provider,739,Air fares,Security & Humanitarian and Middle East Division,,6000064,
DFID,DFID,16/12/2011,Corporate Travel Provider,570,Air fares,Security & Humanitarian and Middle East Division,,6000064,
DFID,DFID,16/12/2011,Corporate Travel Provider,557,Air fares,Security & Humanitarian and Middle East Division,,6000064,
DFID,DFID,16/12/2011,Corporate Travel Provider,731,Air fares,Security & Humanitarian and Middle East Division,,6000064,
DFID,DFID,16/12/2011,Corporate Travel Provider,556,Air fares,Security & Humanitarian and Middle East Division,,6000064,
DFID,DFID,16/12/2011,Corporate Travel Provider,565,Air fares,Security & Humanitarian and Middle East Division,,6000064,
DFID,DFID,16/12/2011,Corporate Travel Provider,503,Air fares,Security & Humanitarian and Middle East Division,,6000064,
DFID,DFID,16/12/2011,Corporate Travel Provider,"1,541",Air fares,Security & Humanitarian and Middle East Division,,6000064,
DFID,DFID,19/12/2011,Crown Agents Govts and Admin,"1,106",Technical and Advisory Services,Security & Humanitarian and Middle East Division,,400182104,
DFID,DFID,13/12/2011,Crown Agents Govts and Admin,"5,000",Technical and Advisory Services,Security & Humanitarian and Middle East Division,,400189781,
DFID,DFID,13/12/2011,Crown Agents Govts and Admin,"24,000",Technical and Advisory Services,Security & Humanitarian and Middle East Division,,400189781,
DFID,DFID,09/12/2011,Crown Agents Govts and Admin,"28,133",Technical and Advisory Services,Security & Humanitarian and Middle East Division,,400189804,
DFID,DFID,05/12/2011,MINES ADVISORY GROUP,"45,196",Technical and Advisory Services,Security & Humanitarian and Middle East Division,,400190103,
DFID,DFID,05/12/2011,MINES ADVISORY GROUP,"28,137",Technical and Advisory Services,Security & Humanitarian and Middle East Division,,400190106,
DFID,DFID,05/12/2011,MINES ADVISORY GROUP,"28,455",Technical and Advisory Services,Security & Humanitarian and Middle East Division,,400190108,
DFID,DFID,09/12/2011,Coffey International Development ,"19,702",Technical and Advisory Services,Security & Humanitarian and Middle East Division,,400190109,
DFID,DFID,07/12/2011,HOME OFFICE,"1,376",Technical and Advisory Services,Security & Humanitarian and Middle East Division,,400190111,
DFID,DFID,06/12/2011,MINES ADVISORY GROUP,"33,509",Technical and Advisory Services,Security & Humanitarian and Middle East Division,,400190233,
DFID,DFID,06/12/2011,MINES ADVISORY GROUP,"23,821",Technical and Advisory Services,Security & Humanitarian and Middle East Division,,400190239,
DFID,DFID,06/12/2011,MINES ADVISORY GROUP,"36,781",Technical and Advisory Services,Security & Humanitarian and Middle East Division,,400190248,
DFID,DFID,06/12/2011,THE HALO TRUST,"205,199",Technical and Advisory Services,Security & Humanitarian and Middle East Division,,400190308,
DFID,DFID,09/12/2011,ADAM SMITH INTERNATIONAL  LTD,"32,611",Technical and Advisory Services,Security & Humanitarian and Middle East Division,,400190949,
DFID,DFID,09/12/2011,ADAM SMITH INTERNATIONAL  LTD,563,Technical and Advisory Services,Security & Humanitarian and Middle East Division,,400190956,
DFID,DFID,15/12/2011,THE HALO TRUST,"236,910",Technical and Advisory Services,Security & Humanitarian and Middle East Division,,400190966,
DFID,DFID,09/12/2011,Foreign & Commonwealth Office,"3,425",Technical and Advisory Services,Security & Humanitarian and Middle East Division,,400190996,
DFID,DFID,14/12/2011,HAREWELLE INTERNATIONAL LIMITED,"5,725",Technical and Advisory Services,Security & Humanitarian and Middle East Division,,400191474,
DFID,DFID,14/12/2011,DAI EUROPE LIMITED,"57,748",Technical and Advisory Services,Security & Humanitarian and Middle East Division,,400191895,
DFID,DFID,15/12/2011,MOTT MACDONALD LTD,"6,000",Technical and Advisory Services,Security & Humanitarian and Middle East Division,,400192158,
DFID,DFID,15/12/2011,ADAM SMITH INTERNATIONAL  LTD,"55,204",Technical and Advisory Services,Security & Humanitarian and Middle East Division,,400192179,
DFID,DFID,22/12/2011,Crown Agents Govts and Admin,"5,838",Technical and Advisory Services,Security & Humanitarian and Middle East Division,,400193520,
DFID,DFID,22/12/2011,Crown Agents Govts and Admin,"1,557",Technical and Advisory Services,Security & Humanitarian and Middle East Division,,400193521,
DFID,DFID,30/12/2011,Crown Agents Govts and Admin,"4,977",Technical and Advisory Services,Security & Humanitarian and Middle East Division,,400193823,
DFID,DFID,30/12/2011,DAI EUROPE LIMITED,"132,668",Technical and Advisory Services,Security & Humanitarian and Middle East Division,,400194000,
DFID,DFID,09/12/2011,Foreign & Commonwealth Office,853,Training - Course Fees,Security & Humanitarian and Middle East Division,,400190996,
DFID,DFID,13/12/2011,Foreign & Commonwealth Office,616,Training - Course Fees,Security & Humanitarian and Middle East Division,,400191551,
DFID,DFID,13/12/2011,Foreign & Commonwealth Office,610,Training - Course Fees,Security & Humanitarian and Middle East Division,,400191551,
DFID,DFID,29/12/2011,PentagonIT,774,Training - Course Fees,Security & Humanitarian and Middle East Division,,400193626,
DFID,DFID,05/12/2011,INTERNATIONAL ALERT,"2,223",Training Providers/Facilitation Services,Security & Humanitarian and Middle East Division,,400190104,
DFID,DFID,06/12/2011,IOE University of London,525,Training Providers/Facilitation Services,Security & Humanitarian and Middle East Division,,400190272,
DFID,DFID,16/12/2011,INTERNATIONAL ALERT,"8,450",Training Providers/Facilitation Services,Security & Humanitarian and Middle East Division,,400192397,
DFID,DFID,19/12/2011,MS C GAYNOR,"6,752",Training Providers/Facilitation Services,Security & Humanitarian and Middle East Division,,400192670,
DFID,DFID,09/12/2011,Foreign & Commonwealth Office,502,Travel - Subsistence,Security & Humanitarian and Middle East Division,,400190996,
DFID,DFID,20/12/2011,IBRD HSBC T,"20,000,000",Aid Programme - Trust Funds contributions,Security & Humanitarian and Middle East Division,,400192938,
DFID,DFID,13/12/2011,Foreign & Commonwealth Office,809,Vehicle Repairs & Maintenance,Security & Humanitarian and Middle East Division,,400191551,
DFID,DFID,01/12/2011,WFP CONTRIBUTIONS UNIT,"2,200,000",Aid Programme - Voluntary contributions,Security & Humanitarian and Middle East Division,,400188935,
DFID,DFID,15/12/2011,ISLAMIC DEVELOPMENT BANK,"650,000",Aid Programme - Voluntary contributions,Security & Humanitarian and Middle East Division,,400192142,
DFID,DFID,15/12/2011,UN RELIEF AND WORKS AGENCY,"1,500,000",Aid Programme - Voluntary contributions,Security & Humanitarian and Middle East Division,,400192221,
DFID,DFID,29/12/2011,DCAF,"250,000",Aid Programme - Voluntary contributions,Security & Humanitarian and Middle East Division,,400192774,
DFID,DFID,29/12/2011,United Nations General Trust Fund Account,"20,000,000",Aid Programme - Voluntary contributions,Security & Humanitarian and Middle East Division,,400193445,
DFID,DFID,30/12/2011,WFP CONTRIBUTIONS UNIT,"10,000,000",Aid Programme - Voluntary contributions,Security & Humanitarian and Middle East Division,,400193718,
DFID,DFID,01/12/2011,Government Procurement Card,716,Contract & Agency Staff,Top Management Group,,100049,
DFID,DFID,01/12/2011,Government Procurement Card,699,Contract & Agency Staff,Top Management Group,,100049,
DFID,DFID,01/12/2011,Government Procurement Card,644,Contract & Agency Staff,Top Management Group,,100049,
DFID,DFID,01/12/2011,Government Procurement Card,626,Contract & Agency Staff,Top Management Group,,100049,
DFID,DFID,01/12/2011,Government Procurement Card,630,Contract & Agency Staff,Top Management Group,,100049,
DFID,DFID,01/12/2011,Government Procurement Card,"1,100",Contract & Agency Staff,Top Management Group,,100049,
DFID,DFID,01/12/2011,Government Procurement Card,"1,375",Contract & Agency Staff,Top Management Group,,100049,
DFID,DFID,01/12/2011,Government Procurement Card,"1,375",Contract & Agency Staff,Top Management Group,,100049,
DFID,DFID,01/12/2011,Government Procurement Card,825,Contract & Agency Staff,Top Management Group,,100049,
DFID,DFID,01/12/2011,Government Procurement Card,"1,375",Contract & Agency Staff,Top Management Group,,100049,
DFID,DFID,01/12/2011,Government Procurement Card,"1,100",Contract & Agency Staff,Top Management Group,,100049,
DFID,DFID,01/12/2011,Government Procurement Card,"1,375",Contract & Agency Staff,Top Management Group,,100049,
DFID,DFID,01/12/2011,Government Procurement Card,532,Contract & Agency Staff,Top Management Group,,100049,
DFID,DFID,01/12/2011,Government Procurement Card,614,Contract & Agency Staff,Top Management Group,,100049,
DFID,DFID,30/12/2011,Government Procurement Card,647,Contract & Agency Staff,Top Management Group,,100050,
DFID,DFID,30/12/2011,Government Procurement Card,825,Contract & Agency Staff,Top Management Group,,100050,
DFID,DFID,30/12/2011,Government Procurement Card,"1,375",Contract & Agency Staff,Top Management Group,,100050,
DFID,DFID,30/12/2011,Government Procurement Card,687,Contract & Agency Staff,Top Management Group,,100050,
DFID,DFID,30/12/2011,Government Procurement Card,705,Contract & Agency Staff,Top Management Group,,100050,
DFID,DFID,30/12/2011,Government Procurement Card,686,Contract & Agency Staff,Top Management Group,,100050,
DFID,DFID,30/12/2011,Government Procurement Card,634,Contract & Agency Staff,Top Management Group,,100050,
DFID,DFID,12/12/2011,Recipient name withheld,791,Hotels - Accommodation only,Top Management Group,,400191302,
DFID,DFID,13/12/2011,Foreign & Commonwealth Office,753,Hotels - Accommodation only,Top Management Group,,400191551,
DFID,DFID,20/12/2011,Recipient name withheld,"1,072",Hotels - Accommodation only,Top Management Group,,400193094,
DFID,DFID,21/12/2011,Recipient name withheld,888,Hotels - Accommodation only,Top Management Group,,400193389,
DFID,DFID,19/12/2011,Foreign & Commonwealth Office,933,Other passenger transport,Top Management Group,,400192701,
DFID,DFID,05/12/2011,Corporate Travel Provider,"5,726",Air fares,Top Management Group,,6000063,
DFID,DFID,05/12/2011,Corporate Travel Provider,"5,726",Air fares,Top Management Group,,6000063,
DFID,DFID,05/12/2011,Corporate Travel Provider,"3,329",Air fares,Top Management Group,,6000063,
DFID,DFID,05/12/2011,Corporate Travel Provider,"3,341",Air fares,Top Management Group,,6000063,
DFID,DFID,05/12/2011,Corporate Travel Provider,"5,740",Air fares,Top Management Group,,6000063,
DFID,DFID,05/12/2011,Corporate Travel Provider,"5,740",Air fares,Top Management Group,,6000063,
DFID,DFID,05/12/2011,Corporate Travel Provider,"5,740",Air fares,Top Management Group,,6000063,
DFID,DFID,05/12/2011,Corporate Travel Provider,533,Air fares,Top Management Group,,6000063,
DFID,DFID,05/12/2011,Corporate Travel Provider,533,Air fares,Top Management Group,,6000063,
DFID,DFID,05/12/2011,Corporate Travel Provider,706,Air fares,Top Management Group,,6000063,
DFID,DFID,16/12/2011,Corporate Travel Provider,"2,442",Air fares,Top Management Group,,6000064,
DFID,DFID,16/12/2011,Corporate Travel Provider,"2,891",Air fares,Top Management Group,,6000064,
DFID,DFID,16/12/2011,Corporate Travel Provider,"1,956",Air fares,Top Management Group,,6000064,
DFID,DFID,16/12/2011,Corporate Travel Provider,"1,161",Air fares,Top Management Group,,6000064,
DFID,DFID,16/12/2011,Corporate Travel Provider,683,Air fares,Top Management Group,,6000064,
DFID,DFID,16/12/2011,Corporate Travel Provider,"2,713",Air fares,Top Management Group,,6000064,
DFID,DFID,16/12/2011,Corporate Travel Provider,"1,230",Air fares,Top Management Group,,6000064,
DFID,DFID,16/12/2011,Corporate Travel Provider,"2,713",Air fares,Top Management Group,,6000064,
DFID,DFID,16/12/2011,Corporate Travel Provider,"1,230",Air fares,Top Management Group,,6000064,
DFID,DFID,16/12/2011,Corporate Travel Provider,600,Air fares,Top Management Group,,6000064,
DFID,DFID,16/12/2011,Corporate Travel Provider,"1,150",Air fares,Top Management Group,,6000064,
DFID,DFID,16/12/2011,Corporate Travel Provider,"1,150",Air fares,Top Management Group,,6000064,
DFID,DFID,16/12/2011,Corporate Travel Provider,"1,712",Air fares,Top Management Group,,6000064,
DFID,DFID,16/12/2011,Corporate Travel Provider,"1,056",Air fares,Top Management Group,,6000064,
DFID,DFID,16/12/2011,Corporate Travel Provider,693,Air fares,Top Management Group,,6000064,
DFID,DFID,16/12/2011,Corporate Travel Provider,"1,150",Air fares,Top Management Group,,6000064,
DFID,DFID,16/12/2011,Corporate Travel Provider,600,Air fares,Top Management Group,,6000064,
DFID,DFID,16/12/2011,Corporate Travel Provider,"1,056",Air fares,Top Management Group,,6000064,
DFID,DFID,29/12/2011,Aryan Tourist and Travel Agency,717,Air fares,Top Management Group,,400192001,
DFID,DFID,01/12/2011,RESTLESS DEVELOPMENT,"406,781",Aid Programme - Accountable Grant Payments,West and Southern Africa,,400189228,
DFID,DFID,05/12/2011,UDEBA- LAB,"7,103",Aid Programme - Accountable Grant Payments,West and Southern Africa,,400189615,
DFID,DFID,15/12/2011,Farmers Union of Malawi,"149,880",Aid Programme - Accountable Grant Payments,West and Southern Africa,,400189646,
DFID,DFID,15/12/2011,University of Cape Town,"534,758",Aid Programme - Accountable Grant Payments,West and Southern Africa,,400190425,
DFID,DFID,07/12/2011,OXFAM,"826,369",Aid Programme - Accountable Grant Payments,West and Southern Africa,,400190676,
DFID,DFID,14/12/2011,SNV,"21,518",Aid Programme - Accountable Grant Payments,West and Southern Africa,,400190696,
DFID,DFID,13/12/2011,Population Council (USD),"211,692",Aid Programme - Accountable Grant Payments,West and Southern Africa,,400190916,
DFID,DFID,15/12/2011,INSTITUTE OF ECONOMICS AND SOCIAL STUDIES,"30,594",Aid Programme - Accountable Grant Payments,West and Southern Africa,,400191256,
DFID,DFID,14/12/2011,Health Reform Foundation of Nigeria,"267,684",Aid Programme - Accountable Grant Payments,West and Southern Africa,,400191512,
DFID,DFID,13/12/2011,Evidence for Development,"27,080",Aid Programme - Accountable Grant Payments,West and Southern Africa,,400191642,
DFID,DFID,14/12/2011,VOLUNTARY SERVICE OVERSEAS (YOHANNES TESFAMICHAEL),"84,889",Aid Programme - Accountable Grant Payments,West and Southern Africa,,400191796,
DFID,DFID,15/12/2011,FinMark  TRUST,"1,514,499",Aid Programme - Accountable Grant Payments,West and Southern Africa,,400191907,
DFID,DFID,15/12/2011,A A PeaceWorks,"152,819",Aid Programme - Accountable Grant Payments,West and Southern Africa,,400191931,
DFID,DFID,15/12/2011,ZAMBIA CENTRE FOR INTER-PARTY DIALOGUE,"1,198",Aid Programme - Accountable Grant Payments,West and Southern Africa,,400192214,
DFID,DFID,20/12/2011,NELSON MANDELA FOUNDATION,"314,310",Aid Programme - Accountable Grant Payments,West and Southern Africa,,400192427,
DFID,DFID,19/12/2011,Zambia Climate Change Network,"10,883",Aid Programme - Accountable Grant Payments,West and Southern Africa,,400192452,
DFID,DFID,19/12/2011,Zambia Climate Change Network,"7,703",Aid Programme - Accountable Grant Payments,West and Southern Africa,,400192452,
DFID,DFID,16/12/2011,CONCERN UNIVERSAL,"224,041",Aid Programme - Accountable Grant Payments,West and Southern Africa,,400192471,
DFID,DFID,28/12/2011,Institute of Governance and Social Research,"65,205",Aid Programme - Accountable Grant Payments,West and Southern Africa,,400192915,
DFID,DFID,20/12/2011,Africare Zambia,"12,062",Aid Programme - Accountable Grant Payments,West and Southern Africa,,400192990,
DFID,DFID,29/12/2011,GLOBAL DEVELOPMENT NETWORK (3ie),"288,506",Aid Programme - Accountable Grant Payments,West and Southern Africa,,400193058,
DFID,DFID,20/12/2011,SAVE THE CHILDREN UK,"45,425",Aid Programme - Accountable Grant Payments,West and Southern Africa,,400193081,
DFID,DFID,21/12/2011,OVERSEAS DEVELOPMENT INSTITUTE,"9,220",Aid Programme - Accountable Grant Payments,West and Southern Africa,,400193378,
DFID,DFID,28/12/2011,Paralegal Advisory Service Institute,"122,970",Aid Programme - Accountable Grant Payments,West and Southern Africa,,400193388,
DFID,DFID,30/12/2011,POPULATION SERVICES INTER,"1,200,000",Aid Programme - Accountable Grant Payments,West and Southern Africa,,400193815,
DFID,DFID,01/12/2011,Government Procurement Card,"1,927",Computer Consumables,West and Southern Africa,,100049,
DFID,DFID,01/12/2011,Government Procurement Card,"2,891",Computer Consumables,West and Southern Africa,,100049,
DFID,DFID,05/12/2011,De Vin Vecil Global Concept Ltd,"3,406","Conferences, Seminars & Meeting/Event Resource",West and Southern Africa,,400189596,
DFID,DFID,14/12/2011,REIZ Continental Hotel,"1,283","Conferences, Seminars & Meeting/Event Resource",West and Southern Africa,,400191100,
DFID,DFID,14/12/2011,Gold Value Hotel Ltd,"2,901","Conferences, Seminars & Meeting/Event Resource",West and Southern Africa,,400191412,
DFID,DFID,14/12/2011,Supplier name withheld,"2,016","Conferences, Seminars & Meeting/Event Resource",West and Southern Africa,,400191423,
DFID,DFID,14/12/2011,Supplier name withheld,"2,715","Conferences, Seminars & Meeting/Event Resource",West and Southern Africa,,400191797,
DFID,DFID,14/12/2011,Supplier name withheld,"25,514","Conferences, Seminars & Meeting/Event Resource",West and Southern Africa,,400191800,
DFID,DFID,19/12/2011,State Accountability and Voice Initiative,"7,911","Conferences, Seminars & Meeting/Event Resource",West and Southern Africa,,400192303,
DFID,DFID,01/12/2011,INFRASTRUCTURE AFRICA LTD,"2,995",Technical and Advisory Services,West and Southern Africa,,400188515,
DFID,DFID,06/12/2011,SOCIAL DEVELOPMENT DIRECT LTD,"10,460",Technical and Advisory Services,West and Southern Africa,,400190451,
DFID,DFID,12/12/2011,Crown Agents Govts and Admin,"2,100",Technical and Advisory Services,West and Southern Africa,,400191167,
